Workbook

Sheet Ctrl
B3: #Pute@Praxis
B6: Das Puten-Tool
D10: Bitte auswählen per Dropdown
B11: Vollkosten | D11: Analyse mit Zusatzkosten intakter Schnabel
B12: Futtermitteleingabe | D12: Futterkosten-Optimierer
B14: Haltung von Hennen mit intaktem Schnabel - Wirtschaftlickeitsrechner
B31: weitere gesetzte Maßnahmen
C33: Notfallkoffer
C35: Zusätzliche Arbeitszeit

Sheet Dateneingabe
A1: Dateneingabe Putenmast
A3: Stallplätze | B3: 2800 | D3: Gewicht | E3: 12
A4: Leertage/Durchgang | B4: 14 | D4: L. Beschau | E4: 57 | F4: je Durchgang
A5: Verlustrate | B5: 5 | D5: Verladekosten/DG | E5: 20 | F5: 10
A6: Erlös je kg LG | B6: 2.7 | D6: Zahlungseingang | E6: 30 | F6: nach Verkauf
A7: Masttage je Durchgang | B7: 100
A9: Variable Kosten | B9: Kosten/Stück | C9: Gewicht/St.
A10: Küken | B10: 7 | C10: 1
A11: Nebenkosten | B11: 0.05
A12: Reinigen u. Desinfektion | C12: 1200
A13: Wasser | B13: Je Durchgang | C13: 60 | D13: 1
A14: Sonstiges | B14: Je Durchgang | C14: 0 | D14: 0.01
A15: Stroh | B15: Je Durchgang | C15: 1.53 | D15: 15
A16: Weitere Einstreu | B16: Je Durchgang | C16: 1.53 | D16: 15
A17: Sonstiges | B17: Je Durchgang | C17: 1200
A18: Var. Kosten intakter Schnabel | B18: Je Durchgang | C18: 0
A19: Futtermenge je Tier | B19: kg je Tier | C19: 28
A20: Mischpreis | B20: €/to | C20: =0.45*1000 -> 450
A22: Arbeitserledigung | C22: Gesamt | D22: €/Std.
A23: Kontrollarbeiten | B23: Je Tag | C23: 1.2 | D23: 20
A24: Ausmisten | B24: Je Durchgang | C24: 14 | D24: 20
A25: Einstreuen | B25: Je Durchgang | C25: 45 | D25: 20
A27: Betriebszweigbezogene Fixkosten
A28: Gas | B28: im Jahr | C28: 150 | D28: 1
A29: Strom | B29: im Jahr | C29: 150 | D29: 1
A30: Feuer u. Inventar | B30: im Jahr | C30: 1200
A31: Ertragsausfall | B31: im Jahr | C31: 12
A33: Festkosten | B33: Anschaffung | C33: Afa in % | D33: Unterhalt | E33: Zinsansatz
A34: Stallgebäude | B34: 200000 | C34: 5 | D34: 2 | E34: 3
A35: Grundstück | B35: 20000 | C35: 5 | D35: 2 | E35: 3
A36: Inventar & Technik | B36: 10000 | C36: 10 | D36: 3 | E36: 3
A38: Verzinssung des Umlaufkapitals | C38: Zinstage
A39: Zinsansatz | B39: 3 | C39: =B7+E6 -> 130
H43: Autor: Fa. UNIPLAN www.Georgshof.de

Sheet Verfügbarkeit
A1: Komponente | B1: Kategorie | C1: Preis EUR/t | D1: Verfügbarkeit
A2: Mais | B2: Getreide | C2: 270
A3: Weizen | B3: Getreide | C3: 220
A4: Gerste | B4: Getreide | C4: 200
A5: Triticale | B5: Getreide | C5: 200
A6: Roggen | B6: Getreide | C6: 190
A7: Hafer | B7: Getreide | C7: 210
A8: Maiskleberfutter | B8: Getreidenebenprodukt | C8: 230
A9: Maisklebermehl | B9: Getreidenebenprodukt | C9: 650
A10: Weizenkleie | B10: Getreidenebenprodukt | C10: 210
A11: Weizenschrot | B11: Getreide | C11: 220
A12: Gerstenschrot | B12: Getreide | C12: 210
A13: Komponente | B13: Kategorie | C13: Preis EUR/t | D13: Verfügbarkeit
A14: Sojaschrot 48 | B14: Eiweißträger | C14: 400
A15: Sojaschrot 44 | B15: Eiweißträger | C15: 370
A16: Rapskuchen | B16: Eiweißträger | C16: 290
A17: Rapsschrot | B17: Eiweißträger | C17: 260
A18: Sonnenblumenschrot 33 | B18: Eiweißträger | C18: 270
A19: Sonnenblumenexpeller | B19: Eiweißträger | C19: 300
A20: Ackerbohnen | B20: Eiweißträger | C20: 320
A21: Erbsen | B21: Eiweißträger | C21: 300
A22: Lupinen weiß | B22: Eiweißträger | C22: 380
A23: Lupinen blau | B23: Eiweißträger | C23: 360
A24: Komponente | B24: Kategorie | C24: Preis EUR/t | D24: Verfügbarkeit
A25: Geflügelproteinmehl | B25: Tierisches Protein | C25: 1200
A26: Blutplasma | B26: Tierisches Protein | C26: 4000
A27: Blutmehl | B27: Tierisches Protein | C27: 1400
A28: Fischmehl | B28: Tierisches Protein | C28: 1900
A29: Komponente | B29: Kategorie | C29: Preis EUR/t | D29: Verfügbarkeit
A30: Pflanzenöl | B30: Öl/Fett | C30: 1200
A31: Rapsöl | B31: Öl/Fett | C31: 1100
A32: Sojaöl | B32: Öl/Fett | C32: 1150
A33: Palmöl | B33: Öl/Fett | C33: 1050
A34: Tierfett | B34: Öl/Fett | C34: 950
A35: Komponente | B35: Kategorie | C35: Preis EUR/t | D35: Verfügbarkeit
A36: Melasse | B36: Nebenprodukt Energie | C36: 220
A37: Zuckerrübenschnitzel (trocken) | B37: Nebenprodukt Energie | C37: 300
A38: Bierhefe | B38: Nebenprodukt Eiweiß | C38: 650
A39: Biertreber (trocken) | B39: Nebenprodukt Eiweiß | C39: 250
A40: Kartoffelprotein | B40: Nebenprodukt Eiweiß | C40: 750
A41: Kartoffeldampfschälprodukte | B41: Nebenprodukt Energie | C41: 180
A42: Mais-DDGS | B42: DDGS | C42: 280
A43: Weizen-DDGS | B43: DDGS | C43: 270
A44: Komponente | B44: Kategorie | C44: Preis EUR/t | D44: Verfügbarkeit
A45: Kalkstein | B45: Mineral | C45: 90
A46: Monocalciumphosphat (MCP) | B46: Mineral | C46: 580
A47: Dicalciumphosphat (DCP) | B47: Mineral | C47: 520
A48: Dinatriumphosphat | B48: Mineral | C48: 1600
A49: Natriumbikarbonat | B49: Mineral | C49: 750
A50: Natriumchlorid (Salz) | B50: Mineral | C50: 120
A51: Magnesiumoxid | B51: Mineral | C51: 950
A52: Komponente | B52: Kategorie | C52: Preis EUR/t | D52: Verfügbarkeit
A53: L-Lysin | B53: Aminosäure | C53: 2100
A54: DL-Methionin | B54: Aminosäure | C54: 3200
A55: L-Threonin | B55: Aminosäure | C55: 2800
A56: L-Tryptophan | B56: Aminosäure | C56: 9000
A57: Valin | B57: Aminosäure | C57: 4500
A58: Isoleucin | B58: Aminosäure | C58: 4800
A59: Arginin | B59: Aminosäure | C59: 6000
A60: Komponente | B60: Kategorie | C60: Preis EUR/t | D60: Verfügbarkeit
A61: Geflügel-Premix | B61: Premix | C61: 1600
A62: Puten-Premix | B62: Premix | C62: 1700
A63: Broiler-Premix | B63: Premix | C63: 1700
A64: Legehennen-Premix | B64: Premix | C64: 1500
A65: Schwein-Mast-Premix | B65: Premix | C65: 1300
A66: Sauen-Premix | B66: Premix | C66: 1400
A67: Rinder-Premix | B67: Premix | C67: 1200
A68: Kälber-Premix | B68: Premix | C68: 1800
A69: Komponente | B69: Kategorie | C69: Preis EUR/t | D69: Verfügbarkeit
A70: Enzym-Mix | B70: Zusatzstoff | C70: 12000
A71: Phytase | B71: Zusatzstoff | C71: 10000
A72: Kokzidiostatikum | B72: Zusatzstoff | C72: 15000
A73: Buttersäuresalz | B73: Zusatzstoff | C73: 2500
A74: Organische Säuren | B74: Zusatzstoff | C74: 1400
A75: Toxinbinder | B75: Zusatzstoff | C75: 2800
A76: Hefekulturen | B76: Zusatzstoff | C76: 3200
A77: Pansenstabilisator | B77: Zusatzstoff | C77: 2700

Sheet Vollkosten_V (hidden)
B1: Baseline | C1: Szenario
A2: Eingestallte Tiere je DG | B2: =Dateneingabe!B3 -> 2800 | C2: =B2 -> 2800
A3: Verkaufte Tiere je DG | B3: =B2*(1-Dateneingabe!B5/100) -> 2660 | C3: =B3-Backup!G11 -> 2658
A4: Lebendgewicht je Tier (kg) | B4: =Dateneingabe!E3 -> 12 | C4: 12
A5: Verkaufte kg LG je DG | B5: =B3*B4 -> 31920 | C5: =C3*C4 -> 31896
A7: Erlös je kg LG | B7: =Dateneingabe!B6 -> 2.7 | C7: 2.7
A8: Bruttoerlös je DG | B8: =B5*B7 -> 86184 | C8: =C5*C7 -> 86119.2
A9: Beschau je DG | B9: =Dateneingabe!E4 -> 57 | C9: 57
A10: Verladekosten je DG | B10: =Dateneingabe!E5*Dateneingabe!F5 -> 200 | C10: 200
A11: =IF(Backup!B6=1,"Nettoerlös je DG","Nettoerlös je DG mit Verlusten") -> Nettoerlös je DG mit Verlusten | B11: =B8-B9-B10 -> 85927 | C11: =C8-C9-C10 -> 85862.2
A12: Nettoerlös je kg LG | B12: =B11/B5 -> 2.691948622 | C12: =C11/C5 -> 2.691942563
A14: Kükenkosten je DG | B14: =B2*Dateneingabe!B10 -> 19600 | C14: 19600
A15: Nebenkosten je DG | B15: =B2*Dateneingabe!B11 -> 140 | C15: 140
A16: Summe tierbezogene variable Kosten je DG | B16: =B14+B15 -> 19740 | C16: 19740
A17: Tierbezogene variable Kosten je kg LG | B17: =B16/B5 -> 0.6184210526 | C17: 0.6184210526
A19: =IF(Backup!B5=1,"Futterkosten","Futterkosten optimiert") -> Futterkosten optimiert | B19: =Dateneingabe!C19*Dateneingabe!B3*(Dateneingabe!C20/1000) -> 35280 | C19: =IF(Backup!B5=1,Dateneingabe!C19*Dateneingabe!B3*(Dateneingabe!C20/1000),Dateneingabe!B3*Report_Futter!$F$8) -> 17420.97969
A20: Reinigen & Desinfektion je DG | B20: =Dateneingabe!C12 -> 1200 | C20: 1200
A21: Wasser je DG | B21: =Dateneingabe!C13*Dateneingabe!D13 -> 60 | C21: 60
A22: Stroh je DG | B22: =Dateneingabe!C15*Dateneingabe!D15 -> 22.95 | C22: =B22+Backup!F13 -> 44.25434783
A23: Weitere Einstreu je DG | B23: =Dateneingabe!C16*Dateneingabe!D16 -> 22.95 | C23: 22.95
A24: Sonstiges 1 je DG | B24: =Dateneingabe!C17 -> 1200 | C24: 1200
A25: Sonstiges 2 je DG | B25: =Dateneingabe!C18 -> 0 | C25: =Backup!F9+Backup!F10+Backup!F15+Backup!F16+Backup!F17+Backup!F18+Backup!F19+Backup!F20+Backup!F21 -> 2677.113381
A26: Summe variable Durchgangskosten je DG | B26: =SUM(B19:B25) -> 37785.9 | C26: =SUM(C19:C25) -> 22625.29742
A27: Variable Durchgangskosten je kg LG | B27: =B26/B5 -> 1.183768797 | C27: =C26/C5 -> 0.7093459185
A29: Summe Arbeit je DG | B29: =Dateneingabe!C23*Dateneingabe!B7*Dateneingabe!D23+Dateneingabe!C24*Dateneingabe!D24+Dateneingabe!C25*Dateneingabe!D25 -> 3580 | C29: =((Dateneingabe!C23*Dateneingabe!B7+Backup!F22/60)*Dateneingabe!D23+Dateneingabe!C24*Dateneingabe!D24+Dateneingabe!C25*Dateneingabe!D25) -> 3636
A30: Arbeitskosten je kg LG | B30: =B29/B5 -> 0.1121553885 | C30: =C29/C5 -> 0.1139954853
A32: Durchgänge je Jahr | B32: =365/(Dateneingabe!B7+Dateneingabe!B4) -> 3.201754386 | C32: 3.201754386
A34: Summe betriebszweigbezogene Fixkosten je Jahr | B34: =Dateneingabe!C28*Dateneingabe!D28+Dateneingabe!C29*Dateneingabe!D29+Dateneingabe!C30+Dateneingabe!C31 -> 1512 | C34: =B34 -> 1512
A35: Summe betriebszweigbezogene Fixkosten je DG | B35: =B34/B32 -> 472.2410959 | C35: 472.2410959
A36: ... je kg LG | B36: =B35/B5 -> 0.01479452055 | C36: 0.01479452055
A38: AfA je Jahr (Summe) | B38: =(Dateneingabe!B34*Dateneingabe!C34)/100+(Dateneingabe!B35*Dateneingabe!C35)/100+(Dateneingabe!B36*Dateneingabe!C36)/100 -> 12000 | C38: =((Dateneingabe!B36+Backup!G14)*Dateneingabe!C36)/100+(Dateneingabe!B35*Dateneingabe!C35)/100+(Dateneingabe!B34*Dateneingabe!C34)/100 -> 14324.01535
A39: Unterhalt je Jahr (Gebäude+Grundstück+Inventar) | B39: =Dateneingabe!B34*Dateneingabe!D34/100+Dateneingabe!B35*Dateneingabe!D35/100+Dateneingabe!B36*Dateneingabe!D36/100 -> 4700 | C39: =(Dateneingabe!B34+Backup!G14)*Dateneingabe!D34/100+Dateneingabe!B35*Dateneingabe!D35/100+Dateneingabe!B36*Dateneingabe!D36/100 -> 5164.803071
A40: Zinsen Festkapital je Jahr | B40: =Dateneingabe!B34*Dateneingabe!E34/100+Dateneingabe!B35*Dateneingabe!E35/100+Dateneingabe!B36*Dateneingabe!E36/100 -> 6900 | C40: =(Dateneingabe!B36+Backup!G14)*Dateneingabe!E36/100+Dateneingabe!B35*Dateneingabe!E35/100+Dateneingabe!B34*Dateneingabe!E34/100 -> 7597.204606
A41: Summe Festkosten (AfA+Unterhalt+Zinsen) je Jahr | B41: =B38+B39+B40 -> 23600 | C41: =C38+C39+C40 -> 27086.02303
A42: Summe Festkosten je DG | B42: =B41/B32 -> 7370.958904 | C42: =C41/C32 -> 8459.74418
A43: ... je kg LG | B43: =B42/B5 -> 0.2309197652 | C43: =C42/C5 -> 0.2652289999
A45: verzinsbare Kostenbasis je DG (var + Arbeit) | B45: =B16+B26+B29 -> 61105.9 | C45: 61105.9
A46: Zinskosten Umlaufkapital je DG | B46: =B45*(Dateneingabe!B39/100)*(Dateneingabe!B7+Dateneingabe!E6)/360 -> 661.9805833 | C46: 661.9805833
A47: ... je kg LG | B47: =B46/B5 -> 0.02073874008 | C47: 0.02073874008
A49: Summe Kosten je DG (var + Arbeit + Fix + Fest + Zins Umlauf) | B49: =B16+B26+B29+B35+B42+B46 -> 69611.08058 | C49: 69611.08058
A50: Summe Kosten je kg LG | B50: =B49/B5 -> 2.180798264 | C50: 2.180798264
A51: Deckungsbeitrag / Gewinn je DG | B51: =B11-B49 -> 16315.91942 | C51: 16315.91942
A52: ... je kg LG | B52: =B12-B50 -> 0.5111503577 | C52: 0.5111503577

Sheet Ergebnisse
B1: Baseline | C1: Szenario
A2: Eingestallte Tiere je DG | B2: =Dateneingabe!B3 -> 2800 | C2: =B2 -> 2800
A3: Verkaufte Tiere je DG | B3: =B2*(1-Dateneingabe!B5/100) -> 2660 | C3: =B3-Backup!G11 -> 2658
A4: Lebendgewicht je Tier (kg) | B4: =Dateneingabe!E3 -> 12 | C4: 12
A5: Verkaufte kg LG je DG | B5: =B3*B4 -> 31920 | C5: =C3*C4 -> 31896
A7: Erlös je kg LG | B7: =Dateneingabe!B6 -> 2.7 | C7: 2.7
A8: Bruttoerlös je DG | B8: =B5*B7 -> 86184 | C8: =C5*C7 -> 86119.2
A9: Beschau je DG | B9: =Dateneingabe!E4 -> 57 | C9: 57
A10: Verladekosten je DG | B10: =Dateneingabe!E5*Dateneingabe!F5 -> 200 | C10: 200
A11: =IF(Backup!B6=1,"Nettoerlös je DG","Nettoerlös je DG mit Verlusten") -> Nettoerlös je DG mit Verlusten | B11: =B8-B9-B10 -> 85927 | C11: =C8-C9-C10 -> 85862.2
A12: Nettoerlös je kg LG | B12: =B11/B5 -> 2.691948622 | C12: =C11/C5 -> 2.691942563
A14: Kükenkosten je DG | B14: =B2*Dateneingabe!B10 -> 19600 | C14: 19600
A15: Nebenkosten je DG | B15: =B2*Dateneingabe!B11 -> 140 | C15: 140
A16: Summe tierbezogene variable Kosten je DG | B16: =B14+B15 -> 19740 | C16: 19740
A17: Tierbezogene variable Kosten je kg LG | B17: =B16/B5 -> 0.6184210526 | C17: 0.6184210526
A19: =IF(Backup!B5=1,"Futterkosten","Futterkosten optimiert") -> Futterkosten optimiert | B19: =Dateneingabe!C19*Dateneingabe!B3*(Dateneingabe!C20/1000) -> 35280 | C19: =IF(Backup!B5=1,Dateneingabe!C19*Dateneingabe!B3*(Dateneingabe!C20/1000),Dateneingabe!B3*Report_Futter!$F$8) -> 17420.97969
A20: Reinigen & Desinfektion je DG | B20: =Dateneingabe!C12 -> 1200 | C20: 1200
A21: Wasser je DG | B21: =Dateneingabe!C13*Dateneingabe!D13 -> 60 | C21: 60
A22: Stroh je DG | B22: =Dateneingabe!C15*Dateneingabe!D15 -> 22.95 | C22: =B22+Backup!F13 -> 44.25434783
A23: Weitere Einstreu je DG | B23: =Dateneingabe!C16*Dateneingabe!D16 -> 22.95 | C23: 22.95
A24: Sonstiges 1 je DG | B24: =Dateneingabe!C17 -> 1200 | C24: 1200
A25: Sonstiges 2 je DG | B25: =Dateneingabe!C18 -> 0 | C25: =Backup!F9+Backup!F10+Backup!F15+Backup!F16+Backup!F17+Backup!F18+Backup!F19+Backup!F20+Backup!F21 -> 2677.113381
A26: Summe variable Durchgangskosten je DG | B26: =SUM(B19:B25) -> 37785.9 | C26: =SUM(C19:C25) -> 22625.29742
A27: Variable Durchgangskosten je kg LG | B27: =B26/B5 -> 1.183768797 | C27: =C26/C5 -> 0.7093459185
A29: Summe Arbeit je DG | B29: =Dateneingabe!C23*Dateneingabe!B7*Dateneingabe!D23+Dateneingabe!C24*Dateneingabe!D24+Dateneingabe!C25*Dateneingabe!D25 -> 3580 | C29: =((Dateneingabe!C23*Dateneingabe!B7+Backup!F22/60)*Dateneingabe!D23+Dateneingabe!C24*Dateneingabe!D24+Dateneingabe!C25*Dateneingabe!D25) -> 3636
A30: Arbeitskosten je kg LG | B30: =B29/B5 -> 0.1121553885 | C30: =C29/C5 -> 0.1139954853
A32: Durchgänge je Jahr | B32: =365/(Dateneingabe!B7+Dateneingabe!B4) -> 3.201754386 | C32: 3.201754386
A34: Summe betriebszweigbezogene Fixkosten je Jahr | B34: =Dateneingabe!C28*Dateneingabe!D28+Dateneingabe!C29*Dateneingabe!D29+Dateneingabe!C30+Dateneingabe!C31 -> 1512 | C34: =B34 -> 1512
A35: Summe betriebszweigbezogene Fixkosten je DG | B35: =B34/B32 -> 472.2410959 | C35: 472.2410959
A36: ... je kg LG | B36: =B35/B5 -> 0.01479452055 | C36: 0.01479452055
A38: AfA je Jahr (Summe) | B38: =(Dateneingabe!B34*Dateneingabe!C34)/100+(Dateneingabe!B35*Dateneingabe!C35)/100+(Dateneingabe!B36*Dateneingabe!C36)/100 -> 12000 | C38: =((Dateneingabe!B36+Backup!G14)*Dateneingabe!C36)/100+(Dateneingabe!B35*Dateneingabe!C35)/100+(Dateneingabe!B34*Dateneingabe!C34)/100 -> 14324.01535
A39: Unterhalt je Jahr (Gebäude+Grundstück+Inventar) | B39: =Dateneingabe!B34*Dateneingabe!D34/100+Dateneingabe!B35*Dateneingabe!D35/100+Dateneingabe!B36*Dateneingabe!D36/100 -> 4700 | C39: =(Dateneingabe!B34+Backup!G14)*Dateneingabe!D34/100+Dateneingabe!B35*Dateneingabe!D35/100+Dateneingabe!B36*Dateneingabe!D36/100 -> 5164.803071
A40: Zinsen Festkapital je Jahr | B40: =Dateneingabe!B34*Dateneingabe!E34/100+Dateneingabe!B35*Dateneingabe!E35/100+Dateneingabe!B36*Dateneingabe!E36/100 -> 6900 | C40: =(Dateneingabe!B36+Backup!G14)*Dateneingabe!E36/100+Dateneingabe!B35*Dateneingabe!E35/100+Dateneingabe!B34*Dateneingabe!E34/100 -> 7597.204606
A41: Summe Festkosten (AfA+Unterhalt+Zinsen) je Jahr | B41: =B38+B39+B40 -> 23600 | C41: =C38+C39+C40 -> 27086.02303
A42: Summe Festkosten je DG | B42: =B41/B32 -> 7370.958904 | C42: =C41/C32 -> 8459.74418
A43: ... je kg LG | B43: =B42/B5 -> 0.2309197652 | C43: =C42/C5 -> 0.2652289999
A45: verzinsbare Kostenbasis je DG (var + Arbeit) | B45: =B16+B26+B29 -> 61105.9 | C45: 61105.9
A46: Zinskosten Umlaufkapital je DG | B46: =B45*(Dateneingabe!B39/100)*(Dateneingabe!B7+Dateneingabe!E6)/360 -> 661.9805833 | C46: 661.9805833
A47: ... je kg LG | B47: =B46/B5 -> 0.02073874008 | C47: 0.02073874008
A49: Summe Kosten je DG (var + Arbeit + Fix + Fest + Zins Umlauf) | B49: =B16+B26+B29+B35+B42+B46 -> 69611.08058 | C49: 69611.08058
A50: Summe Kosten je kg LG | B50: =B49/B5 -> 2.180798264 | C50: 2.180798264
A51: Deckungsbeitrag / Gewinn je DG | B51: =B11-B49 -> 16315.91942 | C51: 16315.91942
A52: ... je kg LG | B52: =B12-B50 -> 0.5111503577 | C52: 0.5111503577

Sheet Komponenten (hidden)
A1: Komponente | B1: Kategorie | C1: Preis_€/kg | D1: Verfügbar | E1: ME_MJkg | F1: XP_gkg | G1: Lysin_gkg | H1: Methionin_gkg | I1: MetCys_gkg | J1: Rohfett_gkg | K1: Rohfaser_gkg | L1: Ca_gkg | M1: Pverd_gkg | N1: Na_gkg
A2: Mais | B2: Getreide | C2: =Verfügbarkeit!$C2/1000 -> 0.27 | D2: TRUE | E2: 13.5 | F2: 80 | G2: 2.7 | H2: 1.8 | I2: 3.6 | J2: 40 | K2: 20 | L2: 0.3 | M2: 2.2 | N2: 0.1
A3: Weizen | B3: Getreide | C3: =Verfügbarkeit!$C3/1000 -> 0.22 | D3: TRUE | E3: 13.2 | F3: 115 | G3: 3.4 | H3: 1.9 | I3: 3.5 | J3: 18 | K3: 25 | L3: 0.5 | M3: 2.5 | N3: 0.1
A4: Gerste | B4: Getreide | C4: =Verfügbarkeit!$C4/1000 -> 0.2 | D4: TRUE | E4: 12.8 | F4: 110 | G4: 4 | H4: 1.9 | I4: 3.6 | J4: 25 | K4: 50 | L4: 0.6 | M4: 2.3 | N4: 0.1
A5: Triticale | B5: Getreide | C5: =Verfügbarkeit!$C5/1000 -> 0.2 | D5: TRUE | E5: 13 | F5: 120 | G5: 4.2 | H5: 1.9 | I5: 3.7 | J5: 20 | K5: 25 | L5: 0.6 | M5: 2.4 | N5: 0.1
A6: Roggen | B6: Getreide | C6: =Verfügbarkeit!$C6/1000 -> 0.19 | D6: TRUE | E6: 12.5 | F6: 105 | G6: 3.5 | H6: 1.8 | I6: 3.3 | J6: 20 | K6: 35 | L6: 0.5 | M6: 2.3 | N6: 0.1
A7: Hafer | B7: Getreide | C7: =Verfügbarkeit!$C7/1000 -> 0.21 | D7: TRUE | E7: 11.5 | F7: 110 | G7: 4.5 | H7: 2 | I7: 3.9 | J7: 55 | K7: 100 | L7: 0.8 | M7: 2 | N7: 0.1
A8: Maiskleberfutter | B8: Getreidenebenprodukt | C8: =Verfügbarkeit!$C8/1000 -> 0.23 | D8: TRUE | E8: 11.5 | F8: 210 | G8: 5 | H8: 3 | I8: 5.5 | J8: 40 | K8: 120 | L8: 0.5 | M8: 3 | N8: 0.3
A9: Maisklebermehl | B9: Getreidenebenprodukt | C9: =Verfügbarkeit!$C9/1000 -> 0.65 | D9: TRUE | E9: 12 | F9: 600 | G9: 12 | H9: 18 | I9: 22 | J9: 60 | K9: 20 | L9: 0.3 | M9: 4 | N9: 0.3
A10: Weizenkleie | B10: Getreidenebenprodukt | C10: =Verfügbarkeit!$C10/1000 -> 0.21 | D10: TRUE | E10: 9 | F10: 160 | G10: 5 | H10: 2.2 | I10: 4.5 | J10: 45 | K10: 110 | L10: 1.3 | M10: 3 | N10: 0.3
A11: Weizenschrot | B11: Getreide | C11: =Verfügbarkeit!$C11/1000 -> 0.22 | D11: TRUE | E11: 13 | F11: 120 | G11: 3.5 | H11: 2 | I11: 3.7 | J11: 20 | K11: 30 | L11: 0.6 | M11: 2.5 | N11: 0.1
A12: Gerstenschrot | B12: Getreide | C12: =Verfügbarkeit!$C12/1000 -> 0.21 | D12: TRUE | E12: 12.8 | F12: 110 | G12: 4 | H12: 1.9 | I12: 3.6 | J12: 25 | K12: 50 | L12: 0.6 | M12: 2.3 | N12: 0.1
A13: Sojaschrot 48 | B13: Eiweißträger | C13: =Verfügbarkeit!$C14/1000 -> 0.4 | D13: TRUE | E13: 12 | F13: 480 | G13: 28 | H13: 6 | I13: 11 | J13: 10 | K13: 35 | L13: 3 | M13: 2.5 | N13: 0.1
A14: Sojaschrot 44 | B14: Eiweißträger | C14: =Verfügbarkeit!$C15/1000 -> 0.37 | D14: TRUE | E14: 11.5 | F14: 440 | G14: 25 | H14: 5.5 | I14: 10 | J14: 15 | K14: 55 | L14: 3 | M14: 2.3 | N14: 0.1
A15: Rapskuchen | B15: Eiweißträger | C15: =Verfügbarkeit!$C16/1000 -> 0.29 | D15: TRUE | E15: 11 | F15: 340 | G15: 20 | H15: 6.5 | I15: 12 | J15: 80 | K15: 120 | L15: 7 | M15: 4 | N15: 0.5
A16: Rapsschrot | B16: Eiweißträger | C16: =Verfügbarkeit!$C17/1000 -> 0.26 | D16: TRUE | E16: 10.5 | F16: 360 | G16: 21 | H16: 7 | I16: 13 | J16: 35 | K16: 120 | L16: 7 | M16: 4 | N16: 0.5
A17: Sonnenblumenschrot 33 | B17: Eiweißträger | C17: =Verfügbarkeit!$C18/1000 -> 0.27 | D17: FALSE | E17: 9 | F17: 330 | G17: 13 | H17: 6.5 | I17: 11 | J17: 20 | K17: 220 | L17: 3 | M17: 3 | N17: 0.3
A18: Sonnenblumenexpeller | B18: Eiweißträger | C18: =Verfügbarkeit!$C19/1000 -> 0.3 | D18: FALSE | E18: 10 | F18: 300 | G18: 12 | H18: 6 | I18: 10 | J18: 80 | K18: 200 | L18: 3 | M18: 3 | N18: 0.3
A19: Ackerbohnen | B19: Eiweißträger | C19: =Verfügbarkeit!$C20/1000 -> 0.32 | D19: TRUE | E19: 12 | F19: 260 | G19: 18 | H19: 2.3 | I19: 4.8 | J19: 15 | K19: 70 | L19: 2 | M19: 2.3 | N19: 0.1
A20: Erbsen | B20: Eiweißträger | C20: =Verfügbarkeit!$C21/1000 -> 0.3 | D20: TRUE | E20: 12.5 | F20: 230 | G20: 17 | H20: 2 | I20: 4.3 | J20: 15 | K20: 60 | L20: 1.5 | M20: 2.1 | N20: 0.1
A21: Lupinen weiß | B21: Eiweißträger | C21: =Verfügbarkeit!$C22/1000 -> 0.38 | D21: TRUE | E21: 11 | F21: 360 | G21: 21 | H21: 3.5 | I21: 6.5 | J21: 60 | K21: 150 | L21: 2.5 | M21: 2.5 | N21: 0.1
A22: Lupinen blau | B22: Eiweißträger | C22: =Verfügbarkeit!$C23/1000 -> 0.36 | D22: TRUE | E22: 10.5 | F22: 340 | G22: 20 | H22: 3.5 | I22: 6.5 | J22: 55 | K22: 160 | L22: 2.5 | M22: 2.5 | N22: 0.1
A23: Geflügelproteinmehl | B23: Tierisches Protein | C23: =Verfügbarkeit!$C25/1000 -> 1.2 | D23: TRUE | E23: 12 | F23: 600 | G23: 40 | H23: 12 | I23: 22 | J23: 120 | K23: 0 | L23: 50 | M23: 30 | N23: 30
A24: Blutplasma | B24: Tierisches Protein | C24: =Verfügbarkeit!$C26/1000 -> 4 | D24: FALSE | E24: 14 | F24: 750 | G24: 70 | H24: 6 | I24: 12 | J24: 10 | K24: 0 | L24: 0.5 | M24: 3 | N24: 35
A25: Blutmehl | B25: Tierisches Protein | C25: =Verfügbarkeit!$C27/1000 -> 1.4 | D25: FALSE | E25: 12.5 | F25: 850 | G25: 80 | H25: 6 | I25: 10 | J25: 15 | K25: 0 | L25: 1 | M25: 3 | N25: 3
A26: Fischmehl | B26: Tierisches Protein | C26: =Verfügbarkeit!$C28/1000 -> 1.9 | D26: FALSE | E26: 11.5 | F26: 650 | G26: 50 | H26: 18 | I26: 26 | J26: 80 | K26: 0 | L26: 55 | M26: 30 | N26: 30
A27: Pflanzenöl | B27: Öl/Fett | C27: =Verfügbarkeit!$C30/1000 -> 1.2 | D27: TRUE | E27: 35 | F27: 0 | G27: 0 | H27: 0 | I27: 0 | J27: 1000 | K27: 0 | L27: 0 | M27: 0 | N27: 0
A28: Rapsöl | B28: Öl/Fett | C28: =Verfügbarkeit!$C31/1000 -> 1.1 | D28: TRUE | E28: 35 | F28: 0 | G28: 0 | H28: 0 | I28: 0 | J28: 1000 | K28: 0 | L28: 0 | M28: 0 | N28: 0
A29: Sojaöl | B29: Öl/Fett | C29: =Verfügbarkeit!$C32/1000 -> 1.15 | D29: TRUE | E29: 35 | F29: 0 | G29: 0 | H29: 0 | I29: 0 | J29: 1000 | K29: 0 | L29: 0 | M29: 0 | N29: 0
A30: Palmöl | B30: Öl/Fett | C30: =Verfügbarkeit!$C33/1000 -> 1.05 | D30: FALSE | E30: 35 | F30: 0 | G30: 0 | H30: 0 | I30: 0 | J30: 1000 | K30: 0 | L30: 0 | M30: 0 | N30: 0
A31: Tierfett | B31: Öl/Fett | C31: =Verfügbarkeit!$C34/1000 -> 0.95 | D31: FALSE | E31: 33 | F31: 0 | G31: 0 | H31: 0 | I31: 0 | J31: 1000 | K31: 0 | L31: 0 | M31: 0 | N31: 0
A32: Melasse | B32: Nebenprodukt Energie | C32: =Verfügbarkeit!$C36/1000 -> 0.22 | D32: TRUE | E32: 11.5 | F32: 60 | G32: 2 | H32: 1 | I32: 2 | J32: 5 | K32: 0 | L32: 7 | M32: 0.5 | N32: 5
A33: Zuckerrübenschnitzel (trocken) | B33: Nebenprodukt Energie | C33: =Verfügbarkeit!$C37/1000 -> 0.3 | D33: FALSE | E33: 10.5 | F33: 90 | G33: 5 | H33: 1.5 | I33: 3 | J33: 10 | K33: 200 | L33: 7 | M33: 1 | N33: 2
A34: Bierhefe | B34: Nebenprodukt Eiweiß | C34: =Verfügbarkeit!$C38/1000 -> 0.65 | D34: TRUE | E34: 11.5 | F34: 450 | G34: 28 | H34: 6 | I34: 11 | J34: 15 | K34: 50 | L34: 3 | M34: 3 | N34: 3
A35: Biertreber (trocken) | B35: Nebenprodukt Eiweiß | C35: =Verfügbarkeit!$C39/1000 -> 0.25 | D35: FALSE | E35: 10 | F35: 230 | G35: 14 | H35: 4 | I35: 8 | J35: 90 | K35: 170 | L35: 4 | M35: 2.5 | N35: 2
A36: Kartoffelprotein | B36: Nebenprodukt Eiweiß | C36: =Verfügbarkeit!$C40/1000 -> 0.75 | D36: TRUE | E36: 10.5 | F36: 780 | G36: 60 | H36: 18 | I36: 30 | J36: 5 | K36: 20 | L36: 2 | M36: 3 | N36: 5
A37: Kartoffeldampfschälprodukte | B37: Nebenprodukt Energie | C37: =Verfügbarkeit!$C41/1000 -> 0.18 | D37: FALSE | E37: 12 | F37: 80 | G37: 4 | H37: 1.5 | I37: 3 | J37: 10 | K37: 40 | L37: 2 | M37: 1 | N37: 3
A38: Mais-DDGS | B38: DDGS | C38: =Verfügbarkeit!$C42/1000 -> 0.28 | D38: FALSE | E38: 12 | F38: 300 | G38: 9 | H38: 5 | I38: 9 | J38: 110 | K38: 90 | L38: 2.5 | M38: 4 | N38: 3
A39: Weizen-DDGS | B39: DDGS | C39: =Verfügbarkeit!$C43/1000 -> 0.27 | D39: TRUE | E39: 11.5 | F39: 320 | G39: 11 | H39: 6 | I39: 10 | J39: 60 | K39: 120 | L39: 2.5 | M39: 4 | N39: 3
A40: Kalkstein | B40: Mineral | C40: =Verfügbarkeit!$C45/1000 -> 0.09 | D40: TRUE | E40: 0 | F40: 0 | G40: 0 | H40: 0 | I40: 0 | J40: 0 | K40: 0 | L40: 380 | M40: 0 | N40: 0
A41: Monocalciumphosphat (MCP) | B41: Mineral | C41: =Verfügbarkeit!$C46/1000 -> 0.58 | D41: TRUE | E41: 0 | F41: 0 | G41: 0 | H41: 0 | I41: 0 | J41: 0 | K41: 0 | L41: 170 | M41: 220 | N41: 0
A42: Dicalciumphosphat (DCP) | B42: Mineral | C42: =Verfügbarkeit!$C47/1000 -> 0.52 | D42: TRUE | E42: 0 | F42: 0 | G42: 0 | H42: 0 | I42: 0 | J42: 0 | K42: 0 | L42: 220 | M42: 180 | N42: 0
A43: Dinatriumphosphat | B43: Mineral | C43: =Verfügbarkeit!$C48/1000 -> 1.6 | D43: TRUE | E43: 0 | F43: 0 | G43: 0 | H43: 0 | I43: 0 | J43: 0 | K43: 0 | L43: 0 | M43: 190 | N43: 190
A44: Natriumbikarbonat | B44: Mineral | C44: =Verfügbarkeit!$C49/1000 -> 0.75 | D44: FALSE | E44: 0 | F44: 0 | G44: 0 | H44: 0 | I44: 0 | J44: 0 | K44: 0 | L44: 0 | M44: 0 | N44: 270
A45: Natriumchlorid (Salz) | B45: Mineral | C45: =Verfügbarkeit!$C50/1000 -> 0.12 | D45: TRUE | E45: 0 | F45: 0 | G45: 0 | H45: 0 | I45: 0 | J45: 0 | K45: 0 | L45: 0 | M45: 0 | N45: 390
A46: Magnesiumoxid | B46: Mineral | C46: =Verfügbarkeit!$C51/1000 -> 0.95 | D46: TRUE | E46: 0 | F46: 0 | G46: 0 | H46: 0 | I46: 0 | J46: 0 | K46: 0 | L46: 0 | M46: 0 | N46: 0
A47: L-Lysin | B47: Aminosäure | C47: =Verfügbarkeit!$C53/1000 -> 2.1 | D47: TRUE | E47: 12 | F47: 780 | G47: 780 | H47: 0 | I47: 0 | J47: 0 | K47: 0 | L47: 0 | M47: 0 | N47: 0
A48: DL-Methionin | B48: Aminosäure | C48: =Verfügbarkeit!$C54/1000 -> 3.2 | D48: TRUE | E48: 12 | F48: 600 | G48: 0 | H48: 600 | I48: 600 | J48: 0 | K48: 0 | L48: 0 | M48: 0 | N48: 0
A49: L-Threonin | B49: Aminosäure | C49: =Verfügbarkeit!$C55/1000 -> 2.8 | D49: TRUE | E49: 12 | F49: 780 | G49: 0 | H49: 0 | I49: 0 | J49: 0 | K49: 0 | L49: 0 | M49: 0 | N49: 0
A50: L-Tryptophan | B50: Aminosäure | C50: =Verfügbarkeit!$C56/1000 -> 9 | D50: TRUE | E50: 12 | F50: 780 | G50: 0 | H50: 0 | I50: 0 | J50: 0 | K50: 0 | L50: 0 | M50: 0 | N50: 0
A51: Valin | B51: Aminosäure | C51: =Verfügbarkeit!$C57/1000 -> 4.5 | D51: FALSE | E51: 12 | F51: 780 | G51: 0 | H51: 0 | I51: 0 | J51: 0 | K51: 0 | L51: 0 | M51: 0 | N51: 0
A52: Isoleucin | B52: Aminosäure | C52: =Verfügbarkeit!$C58/1000 -> 4.8 | D52: FALSE | E52: 12 | F52: 780 | G52: 0 | H52: 0 | I52: 0 | J52: 0 | K52: 0 | L52: 0 | M52: 0 | N52: 0
A53: Arginin | B53: Aminosäure | C53: =Verfügbarkeit!$C59/1000 -> 6 | D53: TRUE | E53: 12 | F53: 780 | G53: 0 | H53: 0 | I53: 0 | J53: 0 | K53: 0 | L53: 0 | M53: 0 | N53: 0
A54: Geflügel-Premix | B54: Premix | C54: =Verfügbarkeit!$C61/1000 -> 1.6 | D54: TRUE | E54: 0 | F54: 0 | G54: 0 | H54: 0 | I54: 0 | J54: 0 | K54: 0 | L54: 0 | M54: 0 | N54: 0
A55: Puten-Premix | B55: Premix | C55: =Verfügbarkeit!$C62/1000 -> 1.7 | D55: TRUE | E55: 0 | F55: 0 | G55: 0 | H55: 0 | I55: 0 | J55: 0 | K55: 0 | L55: 0 | M55: 0 | N55: 0
A56: Broiler-Premix | B56: Premix | C56: =Verfügbarkeit!$C63/1000 -> 1.7 | D56: TRUE | E56: 0 | F56: 0 | G56: 0 | H56: 0 | I56: 0 | J56: 0 | K56: 0 | L56: 0 | M56: 0 | N56: 0
A57: Legehennen-Premix | B57: Premix | C57: =Verfügbarkeit!$C64/1000 -> 1.5 | D57: TRUE | E57: 0 | F57: 0 | G57: 0 | H57: 0 | I57: 0 | J57: 0 | K57: 0 | L57: 0 | M57: 0 | N57: 0
A58: Schwein-Mast-Premix | B58: Premix | C58: =Verfügbarkeit!$C65/1000 -> 1.3 | D58: FALSE | E58: 0 | F58: 0 | G58: 0 | H58: 0 | I58: 0 | J58: 0 | K58: 0 | L58: 0 | M58: 0 | N58: 0
A59: Sauen-Premix | B59: Premix | C59: =Verfügbarkeit!$C66/1000 -> 1.4 | D59: TRUE | E59: 0 | F59: 0 | G59: 0 | H59: 0 | I59: 0 | J59: 0 | K59: 0 | L59: 0 | M59: 0 | N59: 0
A60: Rinder-Premix | B60: Premix | C60: =Verfügbarkeit!$C67/1000 -> 1.2 | D60: FALSE | E60: 0 | F60: 0 | G60: 0 | H60: 0 | I60: 0 | J60: 0 | K60: 0 | L60: 0 | M60: 0 | N60: 0
A61: Kälber-Premix | B61: Premix | C61: =Verfügbarkeit!$C68/1000 -> 1.8 | D61: FALSE | E61: 0 | F61: 0 | G61: 0 | H61: 0 | I61: 0 | J61: 0 | K61: 0 | L61: 0 | M61: 0 | N61: 0
A62: Enzym-Mix | B62: Zusatzstoff | C62: =Verfügbarkeit!$C70/1000 -> 12 | D62: TRUE | E62: 0 | F62: 0 | G62: 0 | H62: 0 | I62: 0 | J62: 0 | K62: 0 | L62: 0 | M62: 0 | N62: 0
A63: Phytase | B63: Zusatzstoff | C63: =Verfügbarkeit!$C71/1000 -> 10 | D63: FALSE | E63: 0 | F63: 0 | G63: 0 | H63: 0 | I63: 0 | J63: 0 | K63: 0 | L63: 0 | M63: 0 | N63: 0
A64: Kokzidiostatikum | B64: Zusatzstoff | C64: =Verfügbarkeit!$C72/1000 -> 15 | D64: TRUE | E64: 0 | F64: 0 | G64: 0 | H64: 0 | I64: 0 | J64: 0 | K64: 0 | L64: 0 | M64: 0 | N64: 0
A65: Buttersäuresalz | B65: Zusatzstoff | C65: =Verfügbarkeit!$C73/1000 -> 2.5 | D65: TRUE | E65: 0 | F65: 0 | G65: 0 | H65: 0 | I65: 0 | J65: 0 | K65: 0 | L65: 0 | M65: 0 | N65: 0
A66: Organische Säuren | B66: Zusatzstoff | C66: =Verfügbarkeit!$C74/1000 -> 1.4 | D66: TRUE | E66: 0 | F66: 0 | G66: 0 | H66: 0 | I66: 0 | J66: 0 | K66: 0 | L66: 0 | M66: 0 | N66: 0
A67: Toxinbinder | B67: Zusatzstoff | C67: =Verfügbarkeit!$C75/1000 -> 2.8 | D67: FALSE | E67: 0 | F67: 0 | G67: 0 | H67: 0 | I67: 0 | J67: 0 | K67: 0 | L67: 0 | M67: 0 | N67: 0
A68: Hefekulturen | B68: Zusatzstoff | C68: =Verfügbarkeit!$C76/1000 -> 3.2 | D68: FALSE | E68: 0 | F68: 0 | G68: 0 | H68: 0 | I68: 0 | J68: 0 | K68: 0 | L68: 0 | M68: 0 | N68: 0
A69: Pansenstabilisator | B69: Zusatzstoff | C69: =Verfügbarkeit!$C77/1000 -> 2.7 | D69: FALSE | E69: 0 | F69: 0 | G69: 0 | H69: 0 | I69: 0 | J69: 0 | K69: 0 | L69: 0 | M69: 0 | N69: 0

Sheet Backup (hidden)
A1: Futtermittelrechner | B1: Futterkosten-Rechner
B2: Futterkosten-Optimierer
A3: Vollkosten | B3: Analyse
B4: Analyse mit Zusatzkosten intakter Schnabel
A5: =IF(B5=1,"Futterkostenrechner","Optimierer") -> Optimierer | B5: =IF(Ctrl!D12=B1,1,2) -> 2
A6: Vollkosten | B6: =IF(Ctrl!D11=B3,1,2) -> 2 | F6: =Dateneingabe!B3 -> 2800
A7: Erhöhte Ebene | B7: TRUE | C7: =4828/5520 -> 0.8746376812 | E7: Afa | F7: =IF(B7=TRUE,C7*$F$6,0) -> 2448.985507 | G7: x
A8: Metallmobiles | B8: TRUE | C8: =12*18.31/5520 -> 0.03980434783 | E8: Afa | F8: =IF(B8=TRUE,C8*$F$6,0) -> 111.4521739 | G8: x
A9: Haferspender | B9: TRUE | C9: =1377.09/5520 -> 0.2494728261 | F9: =IF(B9=TRUE,C9*$F$6,0) -> 698.523913
A10: Heukörbe | B10: TRUE | C10: =(183+175)/5520 -> 0.06485507246 | F10: =IF(B10=TRUE,C10*$F$6,0) -> 181.5942029
A11: Tierverluste | B11: TRUE | C11: 0.01 | D11: 0.51 | F11: =IF(B11=TRUE,C11*$F$6,0) -> 28 | G11: =ROUNDUP(F11/(Vollkosten_V!C4*0.8*Vollkosten_V!C7),0) -> 2
A12: Fluchtboxen | B12: TRUE | C12: 1068.62 | E12: je 1500 Tiere | F12: =IF(B12=TRUE,C12*ROUNDUP($F$6/1500,0),0) -> 2137.24
A13: Strohballen | B13: TRUE | C13: =42/5520 -> 0.007608695652 | F13: =IF(B13=TRUE,C13*$F$6,0) -> 21.30434783
A14: Lichtmanagement | B14: TRUE | C14: =11306.59/5520 -> 2.04829529 | D14: =49793.17/7519 -> 6.622312808 | E14: Afa | F14: =IF(B14=TRUE,D14*$F$6,0) -> 18542.47586 | G14: =+F7+F14+F8+F12 -> 23240.15354
A15: Maischips | B15: TRUE | C15: =51.22/5520 -> 0.009278985507 | F15: =IF(B15=TRUE,C15*$F$6,0) -> 25.98115942
A16: Pickblock | B16: TRUE | C16: =86.24/3468 -> 0.02486735871 | F16: =IF(B16=TRUE,C16*$F$6,0) -> 69.62860438
A17: Luzerne | B17: TRUE | C17: =425.33/5520 -> 0.07705253623 | F17: =IF(B17=TRUE,C17*$F$6,0) -> 215.7471014
A18: Staubbad | B18: TRUE | C18: =265.26/3468 -> 0.07648788927 | F18: =IF(B18=TRUE,C18*$F$6,0) -> 214.16609
A19: Grit | B19: TRUE | C19: =170/5520 -> 0.03079710145 | F19: =IF(B19=TRUE,C19*$F$6,0) -> 86.23188406
A20: Hubsystem | B20: TRUE | C20: 917.9 | E20: bis 7519 Plätze | F20: =IF(B20=TRUE,C20*ROUNDUP($F$6/7500,0),0) -> 917.9
A21: Notfallkoffer | B21: TRUE | C21: =371/5520 -> 0.06721014493 | D21: =718/7520 -> 0.0954787234 | F21: =IF(B21=TRUE,D21*$F$6,0) -> 267.3404255
A22: Zusätzliche Arbeitszeit | B22: TRUE | C22: 0.06 | D22: 0.048 | E22: min./DG/Tier | F22: =IF(B22=TRUE,C22*$F$6,0) -> 168 | G22: x

Sheet Report_Futter
A1: Tierart | B1: Phase | C1: Futterpreis_€/t | D1: Futterpreis_€/kg | E1: Futter_kg_pro_Pute | F1: Futterkosten_€/Pute_Phase
A2: Pute | B2: Starter 1 | C2: 222.2063736 | D2: 0.2222063736 | E2: 3.36 | F2: 0.7466134151
A3: Pute | B3: Starter 2 | C3: 222.2063736 | D3: 0.2222063736 | E3: 3.36 | F3: 0.7466134151
A4: Pute | B4: Grower 1 | C4: 222.2063736 | D4: 0.2222063736 | E4: 5.6 | F4: 1.244355692
A5: Pute | B5: Grower 2 | C5: 222.2063736 | D5: 0.2222063736 | E5: 5.6 | F5: 1.244355692
A6: Pute | B6: Finisher 1 | C6: 222.2063736 | D6: 0.2222063736 | E6: 5.04 | F6: 1.119920123
A7: Pute | B7: Finisher 2 | C7: 222.2063736 | D7: 0.2222063736 | E7: 5.04 | F7: 1.119920123
A8: Summe Futterkosten je Pute | F8: =SUM(F2:F7) -> 6.221778459
A11: Tierart | B11: Phase | C11: Komponente | D11: Anteil_% | E11: Anteil_kg_1000
A12: Pute | B12: Starter 1 | C12: Roggen | D12: 66.82868093 | E12: 668.2868093
A13: Pute | B13: Starter 1 | C13: Rapskuchen | D13: 5.0053928 | E13: 50.053928
A14: Pute | B14: Starter 1 | C14: Kalkstein | D14: 23.68115545 | E14: 236.8115545
A15: Pute | B15: Starter 1 | C15: Monocalciumphosphat (MCP) | D15: 1.147760428 | E15: 11.47760428
A16: Pute | B16: Starter 1 | C16: Dicalciumphosphat (DCP) | D16: 0.5070356402 | E16: 5.070356402
A17: Pute | B17: Starter 1 | C17: Magnesiumoxid | D17: 0.1532588953 | E17: 1.532588953
A18: Pute | B18: Starter 1 | C18: DL-Methionin | D18: 0.6416585359 | E18: 6.416585359
A19: Pute | B19: Starter 1 | C19: L-Threonin | D19: 1.004306153 | E19: 10.04306153
A20: Pute | B20: Starter 1 | D20: 1.030751165 | E20: 10.30751165
A21: Pute | B21: Starter 2 | C21: Roggen | D21: 66.82868093 | E21: 668.2868093
A22: Pute | B22: Starter 2 | C22: Rapskuchen | D22: 5.0053928 | E22: 50.053928
A23: Pute | B23: Starter 2 | C23: Kalkstein | D23: 23.68115545 | E23: 236.8115545
A24: Pute | B24: Starter 2 | C24: Monocalciumphosphat (MCP) | D24: 1.147760428 | E24: 11.47760428
A25: Pute | B25: Starter 2 | C25: Dicalciumphosphat (DCP) | D25: 0.5070356402 | E25: 5.070356402
A26: Pute | B26: Starter 2 | C26: Magnesiumoxid | D26: 0.1532588953 | E26: 1.532588953
A27: Pute | B27: Starter 2 | C27: DL-Methionin | D27: 0.6416585359 | E27: 6.416585359
A28: Pute | B28: Starter 2 | C28: L-Threonin | D28: 1.004306153 | E28: 10.04306153
A29: Pute | B29: Starter 2 | D29: 1.030751165 | E29: 10.30751165
A30: Pute | B30: Grower 1 | C30: Roggen | D30: 66.82868093 | E30: 668.2868093
A31: Pute | B31: Grower 1 | C31: Rapskuchen | D31: 5.0053928 | E31: 50.053928
A32: Pute | B32: Grower 1 | C32: Kalkstein | D32: 23.68115545 | E32: 236.8115545
A33: Pute | B33: Grower 1 | C33: Monocalciumphosphat (MCP) | D33: 1.147760428 | E33: 11.47760428
A34: Pute | B34: Grower 1 | C34: Dicalciumphosphat (DCP) | D34: 0.5070356402 | E34: 5.070356402
A35: Pute | B35: Grower 1 | C35: Magnesiumoxid | D35: 0.1532588953 | E35: 1.532588953
A36: Pute | B36: Grower 1 | C36: DL-Methionin | D36: 0.6416585359 | E36: 6.416585359
A37: Pute | B37: Grower 1 | C37: L-Threonin | D37: 1.004306153 | E37: 10.04306153
A38: Pute | B38: Grower 1 | D38: 1.030751165 | E38: 10.30751165
A39: Pute | B39: Grower 2 | C39: Roggen | D39: 66.82868093 | E39: 668.2868093
A40: Pute | B40: Grower 2 | C40: Rapskuchen | D40: 5.0053928 | E40: 50.053928
A41: Pute | B41: Grower 2 | C41: Kalkstein | D41: 23.68115545 | E41: 236.8115545
A42: Pute | B42: Grower 2 | C42: Monocalciumphosphat (MCP) | D42: 1.147760428 | E42: 11.47760428
A43: Pute | B43: Grower 2 | C43: Dicalciumphosphat (DCP) | D43: 0.5070356402 | E43: 5.070356402
A44: Pute | B44: Grower 2 | C44: Magnesiumoxid | D44: 0.1532588953 | E44: 1.532588953
A45: Pute | B45: Grower 2 | C45: DL-Methionin | D45: 0.6416585359 | E45: 6.416585359
A46: Pute | B46: Grower 2 | C46: L-Threonin | D46: 1.004306153 | E46: 10.04306153
A47: Pute | B47: Grower 2 | D47: 1.030751165 | E47: 10.30751165
A48: Pute | B48: Finisher 1 | C48: Roggen | D48: 66.82868093 | E48: 668.2868093
A49: Pute | B49: Finisher 1 | C49: Rapskuchen | D49: 5.0053928 | E49: 50.053928
A50: Pute | B50: Finisher 1 | C50: Kalkstein | D50: 23.68115545 | E50: 236.8115545
A51: Pute | B51: Finisher 1 | C51: Monocalciumphosphat (MCP) | D51: 1.147760428 | E51: 11.47760428
A52: Pute | B52: Finisher 1 | C52: Dicalciumphosphat (DCP) | D52: 0.5070356402 | E52: 5.070356402
A53: Pute | B53: Finisher 1 | C53: Magnesiumoxid | D53: 0.1532588953 | E53: 1.532588953
A54: Pute | B54: Finisher 1 | C54: DL-Methionin | D54: 0.6416585359 | E54: 6.416585359
A55: Pute | B55: Finisher 1 | C55: L-Threonin | D55: 1.004306153 | E55: 10.04306153
A56: Pute | B56: Finisher 1 | D56: 1.030751165 | E56: 10.30751165
A57: Pute | B57: Finisher 2 | C57: Roggen | D57: 66.82868093 | E57: 668.2868093
A58: Pute | B58: Finisher 2 | C58: Rapskuchen | D58: 5.0053928 | E58: 50.053928
A59: Pute | B59: Finisher 2 | C59: Kalkstein | D59: 23.68115545 | E59: 236.8115545
A60: Pute | B60: Finisher 2 | C60: Monocalciumphosphat (MCP) | D60: 1.147760428 | E60: 11.47760428
A61: Pute | B61: Finisher 2 | C61: Dicalciumphosphat (DCP) | D61: 0.5070356402 | E61: 5.070356402
A62: Pute | B62: Finisher 2 | C62: Magnesiumoxid | D62: 0.1532588953 | E62: 1.532588953
A63: Pute | B63: Finisher 2 | C63: DL-Methionin | D63: 0.6416585359 | E63: 6.416585359
A64: Pute | B64: Finisher 2 | C64: L-Threonin | D64: 1.004306153 | E64: 10.04306153
A65: Pute | B65: Finisher 2 | D65: 1.030751165 | E65: 10.30751165

Sheet Anforderungen (hidden)
A1: Tierart | B1: Phase | C1: Alter_von_Wo | D1: Alter_bis_Wo | E1: Parameter | F1: Einheit | G1: Min | H1: Max
A2: Pute | B2: Starter 1 | C2: 0 | D2: 1 | E2: ME | F2: MJ/kg | G2: 10 | H2: 13.4
A3: Pute | B3: Starter 1 | C3: 0 | D3: 1 | E3: XP | F3: g/kg | G3: 260 | H3: =IF(tblAnforderungen[[#This Row],[Min]]="","",IF(tblAnforderungen[[#This Row],[Parameter]]="ME",tblAnforderungen[[#This Row],[Min]]+0.7,IF(tblAnforderungen[[#This Row],[Parameter]]="XP",tblAnforderungen[[#This Row],[Min]]*1.3,IF(tblAnforderungen[[#This Row],[Parameter]]="Lysin_gkg",tblAnforderungen[[#This Row],[Min]]*1.25,IF(tblAnforderungen[[#This Row],[Parameter]]="Methionin_gkg",tblAnforderungen[[#This Row],[Min]]*1.25,IF(tblAnforderungen[[#This Row],[Parameter]]="MetCys_gkg",tblAnforderungen[[#This Row],[Min]]*1.25,IF(tblAnforderungen[[#This Row],[Parameter]]="Rohfett_gkg",tblAnforderungen[[#This Row],[Min]]*2,IF(tblAnforderungen[[#This Row],[Parameter]]="Rohfaser_gkg",tblAnforderungen[[#This Row],[Min]]*2,IF(tblAnforderungen[[#This Row],[Parameter]]="Ca_gkg",tblAnforderungen[[#This Row],[Min]]*1.4,IF(tblAnforderungen[[#This Row],[Parameter]]="Pverd_gkg",tblAnforderungen[[#This Row],[Min]]*1.3,IF(tblAnforderungen[[#This Row],[Parameter]]="Na_gkg",tblAnforderungen[[#This Row],[Min]]*1.3,tblAnforderungen[[#This Row],[Min]]*1.3))))))))))) -> 338
A4: Pute | B4: Starter 1 | C4: 0 | D4: 1 | E4: Lysin_gkg | F4: g/kg | G4: 16 | H4: =IF(tblAnforderungen[[#This Row],[Min]]="","",IF(tblAnforderungen[[#This Row],[Parameter]]="ME",tblAnforderungen[[#This Row],[Min]]+0.7,IF(tblAnforderungen[[#This Row],[Parameter]]="XP",tblAnforderungen[[#This Row],[Min]]*1.3,IF(tblAnforderungen[[#This Row],[Parameter]]="Lysin_gkg",tblAnforderungen[[#This Row],[Min]]*1.25,IF(tblAnforderungen[[#This Row],[Parameter]]="Methionin_gkg",tblAnforderungen[[#This Row],[Min]]*1.25,IF(tblAnforderungen[[#This Row],[Parameter]]="MetCys_gkg",tblAnforderungen[[#This Row],[Min]]*1.25,IF(tblAnforderungen[[#This Row],[Parameter]]="Rohfett_gkg",tblAnforderungen[[#This Row],[Min]]*2,IF(tblAnforderungen[[#This Row],[Parameter]]="Rohfaser_gkg",tblAnforderungen[[#This Row],[Min]]*2,IF(tblAnforderungen[[#This Row],[Parameter]]="Ca_gkg",tblAnforderungen[[#This Row],[Min]]*1.4,IF(tblAnforderungen[[#This Row],[Parameter]]="Pverd_gkg",tblAnforderungen[[#This Row],[Min]]*1.3,IF(tblAnforderungen[[#This Row],[Parameter]]="Na_gkg",tblAnforderungen[[#This Row],[Min]]*1.3,tblAnforderungen[[#This Row],[Min]]*1.3))))))))))) -> 20
A5: Pute | B5: Starter 1 | C5: 0 | D5: 1 | E5: MetCys_gkg | F5: g/kg | G5: 13 | H5: =IF(tblAnforderungen[[#This Row],[Min]]="","",IF(tblAnforderungen[[#This Row],[Parameter]]="ME",tblAnforderungen[[#This Row],[Min]]+0.7,IF(tblAnforderungen[[#This Row],[Parameter]]="XP",tblAnforderungen[[#This Row],[Min]]*1.3,IF(tblAnforderungen[[#This Row],[Parameter]]="Lysin_gkg",tblAnforderungen[[#This Row],[Min]]*1.25,IF(tblAnforderungen[[#This Row],[Parameter]]="Methionin_gkg",tblAnforderungen[[#This Row],[Min]]*1.25,IF(tblAnforderungen[[#This Row],[Parameter]]="MetCys_gkg",tblAnforderungen[[#This Row],[Min]]*1.25,IF(tblAnforderungen[[#This Row],[Parameter]]="Rohfett_gkg",tblAnforderungen[[#This Row],[Min]]*2,IF(tblAnforderungen[[#This Row],[Parameter]]="Rohfaser_gkg",tblAnforderungen[[#This Row],[Min]]*2,IF(tblAnforderungen[[#This Row],[Parameter]]="Ca_gkg",tblAnforderungen[[#This Row],[Min]]*1.4,IF(tblAnforderungen[[#This Row],[Parameter]]="Pverd_gkg",tblAnforderungen[[#This Row],[Min]]*1.3,IF(tblAnforderungen[[#This Row],[Parameter]]="Na_gkg",tblAnforderungen[[#This Row],[Min]]*1.3,tblAnforderungen[[#This Row],[Min]]*1.3))))))))))) -> 16.25
A6: Pute | B6: Starter 1 | C6: 0 | D6: 1 | E6: Ca_gkg | F6: g/kg | G6: 9 | H6: 14
A7: Pute | B7: Starter 1 | C7: 0 | D7: 1 | E7: Pverd_gkg | F7: g/kg | G7: 5 | H7: =IF(tblAnforderungen[[#This Row],[Min]]="","",IF(tblAnforderungen[[#This Row],[Parameter]]="ME",tblAnforderungen[[#This Row],[Min]]+0.7,IF(tblAnforderungen[[#This Row],[Parameter]]="XP",tblAnforderungen[[#This Row],[Min]]*1.3,IF(tblAnforderungen[[#This Row],[Parameter]]="Lysin_gkg",tblAnforderungen[[#This Row],[Min]]*1.25,IF(tblAnforderungen[[#This Row],[Parameter]]="Methionin_gkg",tblAnforderungen[[#This Row],[Min]]*1.25,IF(tblAnforderungen[[#This Row],[Parameter]]="MetCys_gkg",tblAnforderungen[[#This Row],[Min]]*1.25,IF(tblAnforderungen[[#This Row],[Parameter]]="Rohfett_gkg",tblAnforderungen[[#This Row],[Min]]*2,IF(tblAnforderungen[[#This Row],[Parameter]]="Rohfaser_gkg",tblAnforderungen[[#This Row],[Min]]*2,IF(tblAnforderungen[[#This Row],[Parameter]]="Ca_gkg",tblAnforderungen[[#This Row],[Min]]*1.4,IF(tblAnforderungen[[#This Row],[Parameter]]="Pverd_gkg",tblAnforderungen[[#This Row],[Min]]*1.3,IF(tblAnforderungen[[#This Row],[Parameter]]="Na_gkg",tblAnforderungen[[#This Row],[Min]]*1.3,tblAnforderungen[[#This Row],[Min]]*1.3))))))))))) -> 6.5
A8: Pute | B8: Starter 1 | C8: 0 | D8: 1 | E8: Na_gkg | F8: g/kg | G8: 1.7 | H8: 60
A9: Pute | B9: Starter 1 | C9: 0 | D9: 1 | E9: Rohfett_gkg | F9: g/kg | H9: 20
A10: Pute | B10: Starter 1 | C10: 0 | D10: 1 | E10: Rohfaser_gkg | F10: g/kg | H10: 8
A11: Pute | B11: Starter 2 | C11: 1 | D11: 3 | E11: ME | F11: MJ/kg | G11: 12.6 | H11: =IF(tblAnforderungen[[#This Row],[Min]]="","",IF(tblAnforderungen[[#This Row],[Parameter]]="ME",tblAnforderungen[[#This Row],[Min]]+0.7,IF(tblAnforderungen[[#This Row],[Parameter]]="XP",tblAnforderungen[[#This Row],[Min]]*1.3,IF(tblAnforderungen[[#This Row],[Parameter]]="Lysin_gkg",tblAnforderungen[[#This Row],[Min]]*1.25,IF(tblAnforderungen[[#This Row],[Parameter]]="Methionin_gkg",tblAnforderungen[[#This Row],[Min]]*1.25,IF(tblAnforderungen[[#This Row],[Parameter]]="MetCys_gkg",tblAnforderungen[[#This Row],[Min]]*1.25,IF(tblAnforderungen[[#This Row],[Parameter]]="Rohfett_gkg",tblAnforderungen[[#This Row],[Min]]*2,IF(tblAnforderungen[[#This Row],[Parameter]]="Rohfaser_gkg",tblAnforderungen[[#This Row],[Min]]*2,IF(tblAnforderungen[[#This Row],[Parameter]]="Ca_gkg",tblAnforderungen[[#This Row],[Min]]*1.4,IF(tblAnforderungen[[#This Row],[Parameter]]="Pverd_gkg",tblAnforderungen[[#This Row],[Min]]*1.3,IF(tblAnforderungen[[#This Row],[Parameter]]="Na_gkg",tblAnforderungen[[#This Row],[Min]]*1.3,tblAnforderungen[[#This Row],[Min]]*1.3))))))))))) -> 13.3
A12: Pute | B12: Starter 2 | C12: 1 | D12: 3 | E12: XP | F12: g/kg | G12: 240 | H12: =IF(tblAnforderungen[[#This Row],[Min]]="","",IF(tblAnforderungen[[#This Row],[Parameter]]="ME",tblAnforderungen[[#This Row],[Min]]+0.7,IF(tblAnforderungen[[#This Row],[Parameter]]="XP",tblAnforderungen[[#This Row],[Min]]*1.3,IF(tblAnforderungen[[#This Row],[Parameter]]="Lysin_gkg",tblAnforderungen[[#This Row],[Min]]*1.25,IF(tblAnforderungen[[#This Row],[Parameter]]="Methionin_gkg",tblAnforderungen[[#This Row],[Min]]*1.25,IF(tblAnforderungen[[#This Row],[Parameter]]="MetCys_gkg",tblAnforderungen[[#This Row],[Min]]*1.25,IF(tblAnforderungen[[#This Row],[Parameter]]="Rohfett_gkg",tblAnforderungen[[#This Row],[Min]]*2,IF(tblAnforderungen[[#This Row],[Parameter]]="Rohfaser_gkg",tblAnforderungen[[#This Row],[Min]]*2,IF(tblAnforderungen[[#This Row],[Parameter]]="Ca_gkg",tblAnforderungen[[#This Row],[Min]]*1.4,IF(tblAnforderungen[[#This Row],[Parameter]]="Pverd_gkg",tblAnforderungen[[#This Row],[Min]]*1.3,IF(tblAnforderungen[[#This Row],[Parameter]]="Na_gkg",tblAnforderungen[[#This Row],[Min]]*1.3,tblAnforderungen[[#This Row],[Min]]*1.3))))))))))) -> 312
A13: Pute | B13: Starter 2 | C13: 1 | D13: 3 | E13: Lysin_gkg | F13: g/kg | G13: 15 | H13: =IF(tblAnforderungen[[#This Row],[Min]]="","",IF(tblAnforderungen[[#This Row],[Parameter]]="ME",tblAnforderungen[[#This Row],[Min]]+0.7,IF(tblAnforderungen[[#This Row],[Parameter]]="XP",tblAnforderungen[[#This Row],[Min]]*1.3,IF(tblAnforderungen[[#This Row],[Parameter]]="Lysin_gkg",tblAnforderungen[[#This Row],[Min]]*1.25,IF(tblAnforderungen[[#This Row],[Parameter]]="Methionin_gkg",tblAnforderungen[[#This Row],[Min]]*1.25,IF(tblAnforderungen[[#This Row],[Parameter]]="MetCys_gkg",tblAnforderungen[[#This Row],[Min]]*1.25,IF(tblAnforderungen[[#This Row],[Parameter]]="Rohfett_gkg",tblAnforderungen[[#This Row],[Min]]*2,IF(tblAnforderungen[[#This Row],[Parameter]]="Rohfaser_gkg",tblAnforderungen[[#This Row],[Min]]*2,IF(tblAnforderungen[[#This Row],[Parameter]]="Ca_gkg",tblAnforderungen[[#This Row],[Min]]*1.4,IF(tblAnforderungen[[#This Row],[Parameter]]="Pverd_gkg",tblAnforderungen[[#This Row],[Min]]*1.3,IF(tblAnforderungen[[#This Row],[Parameter]]="Na_gkg",tblAnforderungen[[#This Row],[Min]]*1.3,tblAnforderungen[[#This Row],[Min]]*1.3))))))))))) -> 18.75
A14: Pute | B14: Starter 2 | C14: 1 | D14: 3 | E14: MetCys_gkg | F14: g/kg | G14: 12 | H14: =IF(tblAnforderungen[[#This Row],[Min]]="","",IF(tblAnforderungen[[#This Row],[Parameter]]="ME",tblAnforderungen[[#This Row],[Min]]+0.7,IF(tblAnforderungen[[#This Row],[Parameter]]="XP",tblAnforderungen[[#This Row],[Min]]*1.3,IF(tblAnforderungen[[#This Row],[Parameter]]="Lysin_gkg",tblAnforderungen[[#This Row],[Min]]*1.25,IF(tblAnforderungen[[#This Row],[Parameter]]="Methionin_gkg",tblAnforderungen[[#This Row],[Min]]*1.25,IF(tblAnforderungen[[#This Row],[Parameter]]="MetCys_gkg",tblAnforderungen[[#This Row],[Min]]*1.25,IF(tblAnforderungen[[#This Row],[Parameter]]="Rohfett_gkg",tblAnforderungen[[#This Row],[Min]]*2,IF(tblAnforderungen[[#This Row],[Parameter]]="Rohfaser_gkg",tblAnforderungen[[#This Row],[Min]]*2,IF(tblAnforderungen[[#This Row],[Parameter]]="Ca_gkg",tblAnforderungen[[#This Row],[Min]]*1.4,IF(tblAnforderungen[[#This Row],[Parameter]]="Pverd_gkg",tblAnforderungen[[#This Row],[Min]]*1.3,IF(tblAnforderungen[[#This Row],[Parameter]]="Na_gkg",tblAnforderungen[[#This Row],[Min]]*1.3,tblAnforderungen[[#This Row],[Min]]*1.3))))))))))) -> 15
A15: Pute | B15: Starter 2 | C15: 1 | D15: 3 | E15: Ca_gkg | F15: g/kg | G15: 8.5 | H15: 10
A16: Pute | B16: Starter 2 | C16: 1 | D16: 3 | E16: Pverd_gkg | F16: g/kg | G16: 4.8 | H16: =IF(tblAnforderungen[[#This Row],[Min]]="","",IF(tblAnforderungen[[#This Row],[Parameter]]="ME",tblAnforderungen[[#This Row],[Min]]+0.7,IF(tblAnforderungen[[#This Row],[Parameter]]="XP",tblAnforderungen[[#This Row],[Min]]*1.3,IF(tblAnforderungen[[#This Row],[Parameter]]="Lysin_gkg",tblAnforderungen[[#This Row],[Min]]*1.25,IF(tblAnforderungen[[#This Row],[Parameter]]="Methionin_gkg",tblAnforderungen[[#This Row],[Min]]*1.25,IF(tblAnforderungen[[#This Row],[Parameter]]="MetCys_gkg",tblAnforderungen[[#This Row],[Min]]*1.25,IF(tblAnforderungen[[#This Row],[Parameter]]="Rohfett_gkg",tblAnforderungen[[#This Row],[Min]]*2,IF(tblAnforderungen[[#This Row],[Parameter]]="Rohfaser_gkg",tblAnforderungen[[#This Row],[Min]]*2,IF(tblAnforderungen[[#This Row],[Parameter]]="Ca_gkg",tblAnforderungen[[#This Row],[Min]]*1.4,IF(tblAnforderungen[[#This Row],[Parameter]]="Pverd_gkg",tblAnforderungen[[#This Row],[Min]]*1.3,IF(tblAnforderungen[[#This Row],[Parameter]]="Na_gkg",tblAnforderungen[[#This Row],[Min]]*1.3,tblAnforderungen[[#This Row],[Min]]*1.3))))))))))) -> 6.24
A17: Pute | B17: Starter 2 | C17: 1 | D17: 3 | E17: Na_gkg | F17: g/kg | G17: 1.6 | H17: 2
A18: Pute | B18: Starter 2 | C18: 1 | D18: 3 | E18: Rohfett_gkg | F18: g/kg | H18: 80
A19: Pute | B19: Starter 2 | C19: 1 | D19: 3 | E19: Rohfaser_gkg | F19: g/kg | H19: 50
A20: Pute | B20: Grower 1 | C20: 3 | D20: 6 | E20: ME | F20: MJ/kg | G20: 12.4 | H20: =IF(tblAnforderungen[[#This Row],[Min]]="","",IF(tblAnforderungen[[#This Row],[Parameter]]="ME",tblAnforderungen[[#This Row],[Min]]+0.7,IF(tblAnforderungen[[#This Row],[Parameter]]="XP",tblAnforderungen[[#This Row],[Min]]*1.3,IF(tblAnforderungen[[#This Row],[Parameter]]="Lysin_gkg",tblAnforderungen[[#This Row],[Min]]*1.25,IF(tblAnforderungen[[#This Row],[Parameter]]="Methionin_gkg",tblAnforderungen[[#This Row],[Min]]*1.25,IF(tblAnforderungen[[#This Row],[Parameter]]="MetCys_gkg",tblAnforderungen[[#This Row],[Min]]*1.25,IF(tblAnforderungen[[#This Row],[Parameter]]="Rohfett_gkg",tblAnforderungen[[#This Row],[Min]]*2,IF(tblAnforderungen[[#This Row],[Parameter]]="Rohfaser_gkg",tblAnforderungen[[#This Row],[Min]]*2,IF(tblAnforderungen[[#This Row],[Parameter]]="Ca_gkg",tblAnforderungen[[#This Row],[Min]]*1.4,IF(tblAnforderungen[[#This Row],[Parameter]]="Pverd_gkg",tblAnforderungen[[#This Row],[Min]]*1.3,IF(tblAnforderungen[[#This Row],[Parameter]]="Na_gkg",tblAnforderungen[[#This Row],[Min]]*1.3,tblAnforderungen[[#This Row],[Min]]*1.3))))))))))) -> 13.1
A21: Pute | B21: Grower 1 | C21: 3 | D21: 6 | E21: XP | F21: g/kg | G21: 220 | H21: =IF(tblAnforderungen[[#This Row],[Min]]="","",IF(tblAnforderungen[[#This Row],[Parameter]]="ME",tblAnforderungen[[#This Row],[Min]]+0.7,IF(tblAnforderungen[[#This Row],[Parameter]]="XP",tblAnforderungen[[#This Row],[Min]]*1.3,IF(tblAnforderungen[[#This Row],[Parameter]]="Lysin_gkg",tblAnforderungen[[#This Row],[Min]]*1.25,IF(tblAnforderungen[[#This Row],[Parameter]]="Methionin_gkg",tblAnforderungen[[#This Row],[Min]]*1.25,IF(tblAnforderungen[[#This Row],[Parameter]]="MetCys_gkg",tblAnforderungen[[#This Row],[Min]]*1.25,IF(tblAnforderungen[[#This Row],[Parameter]]="Rohfett_gkg",tblAnforderungen[[#This Row],[Min]]*2,IF(tblAnforderungen[[#This Row],[Parameter]]="Rohfaser_gkg",tblAnforderungen[[#This Row],[Min]]*2,IF(tblAnforderungen[[#This Row],[Parameter]]="Ca_gkg",tblAnforderungen[[#This Row],[Min]]*1.4,IF(tblAnforderungen[[#This Row],[Parameter]]="Pverd_gkg",tblAnforderungen[[#This Row],[Min]]*1.3,IF(tblAnforderungen[[#This Row],[Parameter]]="Na_gkg",tblAnforderungen[[#This Row],[Min]]*1.3,tblAnforderungen[[#This Row],[Min]]*1.3))))))))))) -> 286
A22: Pute | B22: Grower 1 | C22: 3 | D22: 6 | E22: Lysin_gkg | F22: g/kg | G22: 14 | H22: =IF(tblAnforderungen[[#This Row],[Min]]="","",IF(tblAnforderungen[[#This Row],[Parameter]]="ME",tblAnforderungen[[#This Row],[Min]]+0.7,IF(tblAnforderungen[[#This Row],[Parameter]]="XP",tblAnforderungen[[#This Row],[Min]]*1.3,IF(tblAnforderungen[[#This Row],[Parameter]]="Lysin_gkg",tblAnforderungen[[#This Row],[Min]]*1.25,IF(tblAnforderungen[[#This Row],[Parameter]]="Methionin_gkg",tblAnforderungen[[#This Row],[Min]]*1.25,IF(tblAnforderungen[[#This Row],[Parameter]]="MetCys_gkg",tblAnforderungen[[#This Row],[Min]]*1.25,IF(tblAnforderungen[[#This Row],[Parameter]]="Rohfett_gkg",tblAnforderungen[[#This Row],[Min]]*2,IF(tblAnforderungen[[#This Row],[Parameter]]="Rohfaser_gkg",tblAnforderungen[[#This Row],[Min]]*2,IF(tblAnforderungen[[#This Row],[Parameter]]="Ca_gkg",tblAnforderungen[[#This Row],[Min]]*1.4,IF(tblAnforderungen[[#This Row],[Parameter]]="Pverd_gkg",tblAnforderungen[[#This Row],[Min]]*1.3,IF(tblAnforderungen[[#This Row],[Parameter]]="Na_gkg",tblAnforderungen[[#This Row],[Min]]*1.3,tblAnforderungen[[#This Row],[Min]]*1.3))))))))))) -> 17.5
A23: Pute | B23: Grower 1 | C23: 3 | D23: 6 | E23: MetCys_gkg | F23: g/kg | G23: 11 | H23: =IF(tblAnforderungen[[#This Row],[Min]]="","",IF(tblAnforderungen[[#This Row],[Parameter]]="ME",tblAnforderungen[[#This Row],[Min]]+0.7,IF(tblAnforderungen[[#This Row],[Parameter]]="XP",tblAnforderungen[[#This Row],[Min]]*1.3,IF(tblAnforderungen[[#This Row],[Parameter]]="Lysin_gkg",tblAnforderungen[[#This Row],[Min]]*1.25,IF(tblAnforderungen[[#This Row],[Parameter]]="Methionin_gkg",tblAnforderungen[[#This Row],[Min]]*1.25,IF(tblAnforderungen[[#This Row],[Parameter]]="MetCys_gkg",tblAnforderungen[[#This Row],[Min]]*1.25,IF(tblAnforderungen[[#This Row],[Parameter]]="Rohfett_gkg",tblAnforderungen[[#This Row],[Min]]*2,IF(tblAnforderungen[[#This Row],[Parameter]]="Rohfaser_gkg",tblAnforderungen[[#This Row],[Min]]*2,IF(tblAnforderungen[[#This Row],[Parameter]]="Ca_gkg",tblAnforderungen[[#This Row],[Min]]*1.4,IF(tblAnforderungen[[#This Row],[Parameter]]="Pverd_gkg",tblAnforderungen[[#This Row],[Min]]*1.3,IF(tblAnforderungen[[#This Row],[Parameter]]="Na_gkg",tblAnforderungen[[#This Row],[Min]]*1.3,tblAnforderungen[[#This Row],[Min]]*1.3))))))))))) -> 13.75
A24: Pute | B24: Grower 1 | C24: 3 | D24: 6 | E24: Ca_gkg | F24: g/kg | G24: 8 | H24: 10
A25: Pute | B25: Grower 1 | C25: 3 | D25: 6 | E25: Pverd_gkg | F25: g/kg | G25: 4.5 | H25: =IF(tblAnforderungen[[#This Row],[Min]]="","",IF(tblAnforderungen[[#This Row],[Parameter]]="ME",tblAnforderungen[[#This Row],[Min]]+0.7,IF(tblAnforderungen[[#This Row],[Parameter]]="XP",tblAnforderungen[[#This Row],[Min]]*1.3,IF(tblAnforderungen[[#This Row],[Parameter]]="Lysin_gkg",tblAnforderungen[[#This Row],[Min]]*1.25,IF(tblAnforderungen[[#This Row],[Parameter]]="Methionin_gkg",tblAnforderungen[[#This Row],[Min]]*1.25,IF(tblAnforderungen[[#This Row],[Parameter]]="MetCys_gkg",tblAnforderungen[[#This Row],[Min]]*1.25,IF(tblAnforderungen[[#This Row],[Parameter]]="Rohfett_gkg",tblAnforderungen[[#This Row],[Min]]*2,IF(tblAnforderungen[[#This Row],[Parameter]]="Rohfaser_gkg",tblAnforderungen[[#This Row],[Min]]*2,IF(tblAnforderungen[[#This Row],[Parameter]]="Ca_gkg",tblAnforderungen[[#This Row],[Min]]*1.4,IF(tblAnforderungen[[#This Row],[Parameter]]="Pverd_gkg",tblAnforderungen[[#This Row],[Min]]*1.3,IF(tblAnforderungen[[#This Row],[Parameter]]="Na_gkg",tblAnforderungen[[#This Row],[Min]]*1.3,tblAnforderungen[[#This Row],[Min]]*1.3))))))))))) -> 5.85
A26: Pute | B26: Grower 1 | C26: 3 | D26: 6 | E26: Na_gkg | F26: g/kg | G26: 1.6 | H26: 1.9
A27: Pute | B27: Grower 1 | C27: 3 | D27: 6 | E27: Rohfett_gkg | F27: g/kg | H27: 80
A28: Pute | B28: Grower 1 | C28: 3 | D28: 6 | E28: Rohfaser_gkg | F28: g/kg | H28: 55
A29: Pute | B29: Grower 2 | C29: 6 | D29: 9 | E29: ME | F29: MJ/kg | G29: 12.2 | H29: =IF(tblAnforderungen[[#This Row],[Min]]="","",IF(tblAnforderungen[[#This Row],[Parameter]]="ME",tblAnforderungen[[#This Row],[Min]]+0.7,IF(tblAnforderungen[[#This Row],[Parameter]]="XP",tblAnforderungen[[#This Row],[Min]]*1.3,IF(tblAnforderungen[[#This Row],[Parameter]]="Lysin_gkg",tblAnforderungen[[#This Row],[Min]]*1.25,IF(tblAnforderungen[[#This Row],[Parameter]]="Methionin_gkg",tblAnforderungen[[#This Row],[Min]]*1.25,IF(tblAnforderungen[[#This Row],[Parameter]]="MetCys_gkg",tblAnforderungen[[#This Row],[Min]]*1.25,IF(tblAnforderungen[[#This Row],[Parameter]]="Rohfett_gkg",tblAnforderungen[[#This Row],[Min]]*2,IF(tblAnforderungen[[#This Row],[Parameter]]="Rohfaser_gkg",tblAnforderungen[[#This Row],[Min]]*2,IF(tblAnforderungen[[#This Row],[Parameter]]="Ca_gkg",tblAnforderungen[[#This Row],[Min]]*1.4,IF(tblAnforderungen[[#This Row],[Parameter]]="Pverd_gkg",tblAnforderungen[[#This Row],[Min]]*1.3,IF(tblAnforderungen[[#This Row],[Parameter]]="Na_gkg",tblAnforderungen[[#This Row],[Min]]*1.3,tblAnforderungen[[#This Row],[Min]]*1.3))))))))))) -> 12.9
A30: Pute | B30: Grower 2 | C30: 6 | D30: 9 | E30: XP | F30: g/kg | G30: 205 | H30: =IF(tblAnforderungen[[#This Row],[Min]]="","",IF(tblAnforderungen[[#This Row],[Parameter]]="ME",tblAnforderungen[[#This Row],[Min]]+0.7,IF(tblAnforderungen[[#This Row],[Parameter]]="XP",tblAnforderungen[[#This Row],[Min]]*1.3,IF(tblAnforderungen[[#This Row],[Parameter]]="Lysin_gkg",tblAnforderungen[[#This Row],[Min]]*1.25,IF(tblAnforderungen[[#This Row],[Parameter]]="Methionin_gkg",tblAnforderungen[[#This Row],[Min]]*1.25,IF(tblAnforderungen[[#This Row],[Parameter]]="MetCys_gkg",tblAnforderungen[[#This Row],[Min]]*1.25,IF(tblAnforderungen[[#This Row],[Parameter]]="Rohfett_gkg",tblAnforderungen[[#This Row],[Min]]*2,IF(tblAnforderungen[[#This Row],[Parameter]]="Rohfaser_gkg",tblAnforderungen[[#This Row],[Min]]*2,IF(tblAnforderungen[[#This Row],[Parameter]]="Ca_gkg",tblAnforderungen[[#This Row],[Min]]*1.4,IF(tblAnforderungen[[#This Row],[Parameter]]="Pverd_gkg",tblAnforderungen[[#This Row],[Min]]*1.3,IF(tblAnforderungen[[#This Row],[Parameter]]="Na_gkg",tblAnforderungen[[#This Row],[Min]]*1.3,tblAnforderungen[[#This Row],[Min]]*1.3))))))))))) -> 266.5
A31: Pute | B31: Grower 2 | C31: 6 | D31: 9 | E31: Lysin_gkg | F31: g/kg | G31: 13 | H31: =IF(tblAnforderungen[[#This Row],[Min]]="","",IF(tblAnforderungen[[#This Row],[Parameter]]="ME",tblAnforderungen[[#This Row],[Min]]+0.7,IF(tblAnforderungen[[#This Row],[Parameter]]="XP",tblAnforderungen[[#This Row],[Min]]*1.3,IF(tblAnforderungen[[#This Row],[Parameter]]="Lysin_gkg",tblAnforderungen[[#This Row],[Min]]*1.25,IF(tblAnforderungen[[#This Row],[Parameter]]="Methionin_gkg",tblAnforderungen[[#This Row],[Min]]*1.25,IF(tblAnforderungen[[#This Row],[Parameter]]="MetCys_gkg",tblAnforderungen[[#This Row],[Min]]*1.25,IF(tblAnforderungen[[#This Row],[Parameter]]="Rohfett_gkg",tblAnforderungen[[#This Row],[Min]]*2,IF(tblAnforderungen[[#This Row],[Parameter]]="Rohfaser_gkg",tblAnforderungen[[#This Row],[Min]]*2,IF(tblAnforderungen[[#This Row],[Parameter]]="Ca_gkg",tblAnforderungen[[#This Row],[Min]]*1.4,IF(tblAnforderungen[[#This Row],[Parameter]]="Pverd_gkg",tblAnforderungen[[#This Row],[Min]]*1.3,IF(tblAnforderungen[[#This Row],[Parameter]]="Na_gkg",tblAnforderungen[[#This Row],[Min]]*1.3,tblAnforderungen[[#This Row],[Min]]*1.3))))))))))) -> 16.25
A32: Pute | B32: Grower 2 | C32: 6 | D32: 9 | E32: MetCys_gkg | F32: g/kg | G32: 10.5 | H32: =IF(tblAnforderungen[[#This Row],[Min]]="","",IF(tblAnforderungen[[#This Row],[Parameter]]="ME",tblAnforderungen[[#This Row],[Min]]+0.7,IF(tblAnforderungen[[#This Row],[Parameter]]="XP",tblAnforderungen[[#This Row],[Min]]*1.3,IF(tblAnforderungen[[#This Row],[Parameter]]="Lysin_gkg",tblAnforderungen[[#This Row],[Min]]*1.25,IF(tblAnforderungen[[#This Row],[Parameter]]="Methionin_gkg",tblAnforderungen[[#This Row],[Min]]*1.25,IF(tblAnforderungen[[#This Row],[Parameter]]="MetCys_gkg",tblAnforderungen[[#This Row],[Min]]*1.25,IF(tblAnforderungen[[#This Row],[Parameter]]="Rohfett_gkg",tblAnforderungen[[#This Row],[Min]]*2,IF(tblAnforderungen[[#This Row],[Parameter]]="Rohfaser_gkg",tblAnforderungen[[#This Row],[Min]]*2,IF(tblAnforderungen[[#This Row],[Parameter]]="Ca_gkg",tblAnforderungen[[#This Row],[Min]]*1.4,IF(tblAnforderungen[[#This Row],[Parameter]]="Pverd_gkg",tblAnforderungen[[#This Row],[Min]]*1.3,IF(tblAnforderungen[[#This Row],[Parameter]]="Na_gkg",tblAnforderungen[[#This Row],[Min]]*1.3,tblAnforderungen[[#This Row],[Min]]*1.3))))))))))) -> 13.125
A33: Pute | B33: Grower 2 | C33: 6 | D33: 9 | E33: Ca_gkg | F33: g/kg | G33: 7.5 | H33: 9
A34: Pute | B34: Grower 2 | C34: 6 | D34: 9 | E34: Pverd_gkg | F34: g/kg | G34: 4.2 | H34: =IF(tblAnforderungen[[#This Row],[Min]]="","",IF(tblAnforderungen[[#This Row],[Parameter]]="ME",tblAnforderungen[[#This Row],[Min]]+0.7,IF(tblAnforderungen[[#This Row],[Parameter]]="XP",tblAnforderungen[[#This Row],[Min]]*1.3,IF(tblAnforderungen[[#This Row],[Parameter]]="Lysin_gkg",tblAnforderungen[[#This Row],[Min]]*1.25,IF(tblAnforderungen[[#This Row],[Parameter]]="Methionin_gkg",tblAnforderungen[[#This Row],[Min]]*1.25,IF(tblAnforderungen[[#This Row],[Parameter]]="MetCys_gkg",tblAnforderungen[[#This Row],[Min]]*1.25,IF(tblAnforderungen[[#This Row],[Parameter]]="Rohfett_gkg",tblAnforderungen[[#This Row],[Min]]*2,IF(tblAnforderungen[[#This Row],[Parameter]]="Rohfaser_gkg",tblAnforderungen[[#This Row],[Min]]*2,IF(tblAnforderungen[[#This Row],[Parameter]]="Ca_gkg",tblAnforderungen[[#This Row],[Min]]*1.4,IF(tblAnforderungen[[#This Row],[Parameter]]="Pverd_gkg",tblAnforderungen[[#This Row],[Min]]*1.3,IF(tblAnforderungen[[#This Row],[Parameter]]="Na_gkg",tblAnforderungen[[#This Row],[Min]]*1.3,tblAnforderungen[[#This Row],[Min]]*1.3))))))))))) -> 5.46
A35: Pute | B35: Grower 2 | C35: 6 | D35: 9 | E35: Na_gkg | F35: g/kg | G35: 1.5 | H35: 1.8
A36: Pute | B36: Grower 2 | C36: 6 | D36: 9 | E36: Rohfett_gkg | F36: g/kg | H36: 80
A37: Pute | B37: Grower 2 | C37: 6 | D37: 9 | E37: Rohfaser_gkg | F37: g/kg | H37: 60
A38: Pute | B38: Finisher 1 | C38: 9 | D38: 12 | E38: ME | F38: MJ/kg | G38: 12 | H38: =IF(tblAnforderungen[[#This Row],[Min]]="","",IF(tblAnforderungen[[#This Row],[Parameter]]="ME",tblAnforderungen[[#This Row],[Min]]+0.7,IF(tblAnforderungen[[#This Row],[Parameter]]="XP",tblAnforderungen[[#This Row],[Min]]*1.3,IF(tblAnforderungen[[#This Row],[Parameter]]="Lysin_gkg",tblAnforderungen[[#This Row],[Min]]*1.25,IF(tblAnforderungen[[#This Row],[Parameter]]="Methionin_gkg",tblAnforderungen[[#This Row],[Min]]*1.25,IF(tblAnforderungen[[#This Row],[Parameter]]="MetCys_gkg",tblAnforderungen[[#This Row],[Min]]*1.25,IF(tblAnforderungen[[#This Row],[Parameter]]="Rohfett_gkg",tblAnforderungen[[#This Row],[Min]]*2,IF(tblAnforderungen[[#This Row],[Parameter]]="Rohfaser_gkg",tblAnforderungen[[#This Row],[Min]]*2,IF(tblAnforderungen[[#This Row],[Parameter]]="Ca_gkg",tblAnforderungen[[#This Row],[Min]]*1.4,IF(tblAnforderungen[[#This Row],[Parameter]]="Pverd_gkg",tblAnforderungen[[#This Row],[Min]]*1.3,IF(tblAnforderungen[[#This Row],[Parameter]]="Na_gkg",tblAnforderungen[[#This Row],[Min]]*1.3,tblAnforderungen[[#This Row],[Min]]*1.3))))))))))) -> 12.7
A39: Pute | B39: Finisher 1 | C39: 9 | D39: 12 | E39: XP | F39: g/kg | G39: 190 | H39: =IF(tblAnforderungen[[#This Row],[Min]]="","",IF(tblAnforderungen[[#This Row],[Parameter]]="ME",tblAnforderungen[[#This Row],[Min]]+0.7,IF(tblAnforderungen[[#This Row],[Parameter]]="XP",tblAnforderungen[[#This Row],[Min]]*1.3,IF(tblAnforderungen[[#This Row],[Parameter]]="Lysin_gkg",tblAnforderungen[[#This Row],[Min]]*1.25,IF(tblAnforderungen[[#This Row],[Parameter]]="Methionin_gkg",tblAnforderungen[[#This Row],[Min]]*1.25,IF(tblAnforderungen[[#This Row],[Parameter]]="MetCys_gkg",tblAnforderungen[[#This Row],[Min]]*1.25,IF(tblAnforderungen[[#This Row],[Parameter]]="Rohfett_gkg",tblAnforderungen[[#This Row],[Min]]*2,IF(tblAnforderungen[[#This Row],[Parameter]]="Rohfaser_gkg",tblAnforderungen[[#This Row],[Min]]*2,IF(tblAnforderungen[[#This Row],[Parameter]]="Ca_gkg",tblAnforderungen[[#This Row],[Min]]*1.4,IF(tblAnforderungen[[#This Row],[Parameter]]="Pverd_gkg",tblAnforderungen[[#This Row],[Min]]*1.3,IF(tblAnforderungen[[#This Row],[Parameter]]="Na_gkg",tblAnforderungen[[#This Row],[Min]]*1.3,tblAnforderungen[[#This Row],[Min]]*1.3))))))))))) -> 247
A40: Pute | B40: Finisher 1 | C40: 9 | D40: 12 | E40: Lysin_gkg | F40: g/kg | G40: 12 | H40: =IF(tblAnforderungen[[#This Row],[Min]]="","",IF(tblAnforderungen[[#This Row],[Parameter]]="ME",tblAnforderungen[[#This Row],[Min]]+0.7,IF(tblAnforderungen[[#This Row],[Parameter]]="XP",tblAnforderungen[[#This Row],[Min]]*1.3,IF(tblAnforderungen[[#This Row],[Parameter]]="Lysin_gkg",tblAnforderungen[[#This Row],[Min]]*1.25,IF(tblAnforderungen[[#This Row],[Parameter]]="Methionin_gkg",tblAnforderungen[[#This Row],[Min]]*1.25,IF(tblAnforderungen[[#This Row],[Parameter]]="MetCys_gkg",tblAnforderungen[[#This Row],[Min]]*1.25,IF(tblAnforderungen[[#This Row],[Parameter]]="Rohfett_gkg",tblAnforderungen[[#This Row],[Min]]*2,IF(tblAnforderungen[[#This Row],[Parameter]]="Rohfaser_gkg",tblAnforderungen[[#This Row],[Min]]*2,IF(tblAnforderungen[[#This Row],[Parameter]]="Ca_gkg",tblAnforderungen[[#This Row],[Min]]*1.4,IF(tblAnforderungen[[#This Row],[Parameter]]="Pverd_gkg",tblAnforderungen[[#This Row],[Min]]*1.3,IF(tblAnforderungen[[#This Row],[Parameter]]="Na_gkg",tblAnforderungen[[#This Row],[Min]]*1.3,tblAnforderungen[[#This Row],[Min]]*1.3))))))))))) -> 15
A41: Pute | B41: Finisher 1 | C41: 9 | D41: 12 | E41: MetCys_gkg | F41: g/kg | G41: 9.5 | H41: =IF(tblAnforderungen[[#This Row],[Min]]="","",IF(tblAnforderungen[[#This Row],[Parameter]]="ME",tblAnforderungen[[#This Row],[Min]]+0.7,IF(tblAnforderungen[[#This Row],[Parameter]]="XP",tblAnforderungen[[#This Row],[Min]]*1.3,IF(tblAnforderungen[[#This Row],[Parameter]]="Lysin_gkg",tblAnforderungen[[#This Row],[Min]]*1.25,IF(tblAnforderungen[[#This Row],[Parameter]]="Methionin_gkg",tblAnforderungen[[#This Row],[Min]]*1.25,IF(tblAnforderungen[[#This Row],[Parameter]]="MetCys_gkg",tblAnforderungen[[#This Row],[Min]]*1.25,IF(tblAnforderungen[[#This Row],[Parameter]]="Rohfett_gkg",tblAnforderungen[[#This Row],[Min]]*2,IF(tblAnforderungen[[#This Row],[Parameter]]="Rohfaser_gkg",tblAnforderungen[[#This Row],[Min]]*2,IF(tblAnforderungen[[#This Row],[Parameter]]="Ca_gkg",tblAnforderungen[[#This Row],[Min]]*1.4,IF(tblAnforderungen[[#This Row],[Parameter]]="Pverd_gkg",tblAnforderungen[[#This Row],[Min]]*1.3,IF(tblAnforderungen[[#This Row],[Parameter]]="Na_gkg",tblAnforderungen[[#This Row],[Min]]*1.3,tblAnforderungen[[#This Row],[Min]]*1.3))))))))))) -> 11.875
A42: Pute | B42: Finisher 1 | C42: 9 | D42: 12 | E42: Ca_gkg | F42: g/kg | G42: 7 | H42: 8.5
A43: Pute | B43: Finisher 1 | C43: 9 | D43: 12 | E43: Pverd_gkg | F43: g/kg | G43: 4 | H43: =IF(tblAnforderungen[[#This Row],[Min]]="","",IF(tblAnforderungen[[#This Row],[Parameter]]="ME",tblAnforderungen[[#This Row],[Min]]+0.7,IF(tblAnforderungen[[#This Row],[Parameter]]="XP",tblAnforderungen[[#This Row],[Min]]*1.3,IF(tblAnforderungen[[#This Row],[Parameter]]="Lysin_gkg",tblAnforderungen[[#This Row],[Min]]*1.25,IF(tblAnforderungen[[#This Row],[Parameter]]="Methionin_gkg",tblAnforderungen[[#This Row],[Min]]*1.25,IF(tblAnforderungen[[#This Row],[Parameter]]="MetCys_gkg",tblAnforderungen[[#This Row],[Min]]*1.25,IF(tblAnforderungen[[#This Row],[Parameter]]="Rohfett_gkg",tblAnforderungen[[#This Row],[Min]]*2,IF(tblAnforderungen[[#This Row],[Parameter]]="Rohfaser_gkg",tblAnforderungen[[#This Row],[Min]]*2,IF(tblAnforderungen[[#This Row],[Parameter]]="Ca_gkg",tblAnforderungen[[#This Row],[Min]]*1.4,IF(tblAnforderungen[[#This Row],[Parameter]]="Pverd_gkg",tblAnforderungen[[#This Row],[Min]]*1.3,IF(tblAnforderungen[[#This Row],[Parameter]]="Na_gkg",tblAnforderungen[[#This Row],[Min]]*1.3,tblAnforderungen[[#This Row],[Min]]*1.3))))))))))) -> 5.2
A44: Pute | B44: Finisher 1 | C44: 9 | D44: 12 | E44: Na_gkg | F44: g/kg | G44: 1.5 | H44: 1.8
A45: Pute | B45: Finisher 1 | C45: 9 | D45: 12 | E45: Rohfett_gkg | F45: g/kg | H45: 80
A46: Pute | B46: Finisher 1 | C46: 9 | D46: 12 | E46: Rohfaser_gkg | F46: g/kg | H46: 60
A47: Pute | B47: Finisher 2 | C47: 12 | D47: 20 | E47: ME | F47: MJ/kg | G47: 11.8 | H47: =IF(tblAnforderungen[[#This Row],[Min]]="","",IF(tblAnforderungen[[#This Row],[Parameter]]="ME",tblAnforderungen[[#This Row],[Min]]+0.7,IF(tblAnforderungen[[#This Row],[Parameter]]="XP",tblAnforderungen[[#This Row],[Min]]*1.3,IF(tblAnforderungen[[#This Row],[Parameter]]="Lysin_gkg",tblAnforderungen[[#This Row],[Min]]*1.25,IF(tblAnforderungen[[#This Row],[Parameter]]="Methionin_gkg",tblAnforderungen[[#This Row],[Min]]*1.25,IF(tblAnforderungen[[#This Row],[Parameter]]="MetCys_gkg",tblAnforderungen[[#This Row],[Min]]*1.25,IF(tblAnforderungen[[#This Row],[Parameter]]="Rohfett_gkg",tblAnforderungen[[#This Row],[Min]]*2,IF(tblAnforderungen[[#This Row],[Parameter]]="Rohfaser_gkg",tblAnforderungen[[#This Row],[Min]]*2,IF(tblAnforderungen[[#This Row],[Parameter]]="Ca_gkg",tblAnforderungen[[#This Row],[Min]]*1.4,IF(tblAnforderungen[[#This Row],[Parameter]]="Pverd_gkg",tblAnforderungen[[#This Row],[Min]]*1.3,IF(tblAnforderungen[[#This Row],[Parameter]]="Na_gkg",tblAnforderungen[[#This Row],[Min]]*1.3,tblAnforderungen[[#This Row],[Min]]*1.3))))))))))) -> 12.5
A48: Pute | B48: Finisher 2 | C48: 12 | D48: 20 | E48: XP | F48: g/kg | G48: 175 | H48: =IF(tblAnforderungen[[#This Row],[Min]]="","",IF(tblAnforderungen[[#This Row],[Parameter]]="ME",tblAnforderungen[[#This Row],[Min]]+0.7,IF(tblAnforderungen[[#This Row],[Parameter]]="XP",tblAnforderungen[[#This Row],[Min]]*1.3,IF(tblAnforderungen[[#This Row],[Parameter]]="Lysin_gkg",tblAnforderungen[[#This Row],[Min]]*1.25,IF(tblAnforderungen[[#This Row],[Parameter]]="Methionin_gkg",tblAnforderungen[[#This Row],[Min]]*1.25,IF(tblAnforderungen[[#This Row],[Parameter]]="MetCys_gkg",tblAnforderungen[[#This Row],[Min]]*1.25,IF(tblAnforderungen[[#This Row],[Parameter]]="Rohfett_gkg",tblAnforderungen[[#This Row],[Min]]*2,IF(tblAnforderungen[[#This Row],[Parameter]]="Rohfaser_gkg",tblAnforderungen[[#This Row],[Min]]*2,IF(tblAnforderungen[[#This Row],[Parameter]]="Ca_gkg",tblAnforderungen[[#This Row],[Min]]*1.4,IF(tblAnforderungen[[#This Row],[Parameter]]="Pverd_gkg",tblAnforderungen[[#This Row],[Min]]*1.3,IF(tblAnforderungen[[#This Row],[Parameter]]="Na_gkg",tblAnforderungen[[#This Row],[Min]]*1.3,tblAnforderungen[[#This Row],[Min]]*1.3))))))))))) -> 227.5
A49: Pute | B49: Finisher 2 | C49: 12 | D49: 20 | E49: Lysin_gkg | F49: g/kg | G49: 11 | H49: =IF(tblAnforderungen[[#This Row],[Min]]="","",IF(tblAnforderungen[[#This Row],[Parameter]]="ME",tblAnforderungen[[#This Row],[Min]]+0.7,IF(tblAnforderungen[[#This Row],[Parameter]]="XP",tblAnforderungen[[#This Row],[Min]]*1.3,IF(tblAnforderungen[[#This Row],[Parameter]]="Lysin_gkg",tblAnforderungen[[#This Row],[Min]]*1.25,IF(tblAnforderungen[[#This Row],[Parameter]]="Methionin_gkg",tblAnforderungen[[#This Row],[Min]]*1.25,IF(tblAnforderungen[[#This Row],[Parameter]]="MetCys_gkg",tblAnforderungen[[#This Row],[Min]]*1.25,IF(tblAnforderungen[[#This Row],[Parameter]]="Rohfett_gkg",tblAnforderungen[[#This Row],[Min]]*2,IF(tblAnforderungen[[#This Row],[Parameter]]="Rohfaser_gkg",tblAnforderungen[[#This Row],[Min]]*2,IF(tblAnforderungen[[#This Row],[Parameter]]="Ca_gkg",tblAnforderungen[[#This Row],[Min]]*1.4,IF(tblAnforderungen[[#This Row],[Parameter]]="Pverd_gkg",tblAnforderungen[[#This Row],[Min]]*1.3,IF(tblAnforderungen[[#This Row],[Parameter]]="Na_gkg",tblAnforderungen[[#This Row],[Min]]*1.3,tblAnforderungen[[#This Row],[Min]]*1.3))))))))))) -> 13.75
A50: Pute | B50: Finisher 2 | C50: 12 | D50: 20 | E50: MetCys_gkg | F50: g/kg | G50: 9 | H50: =IF(tblAnforderungen[[#This Row],[Min]]="","",IF(tblAnforderungen[[#This Row],[Parameter]]="ME",tblAnforderungen[[#This Row],[Min]]+0.7,IF(tblAnforderungen[[#This Row],[Parameter]]="XP",tblAnforderungen[[#This Row],[Min]]*1.3,IF(tblAnforderungen[[#This Row],[Parameter]]="Lysin_gkg",tblAnforderungen[[#This Row],[Min]]*1.25,IF(tblAnforderungen[[#This Row],[Parameter]]="Methionin_gkg",tblAnforderungen[[#This Row],[Min]]*1.25,IF(tblAnforderungen[[#This Row],[Parameter]]="MetCys_gkg",tblAnforderungen[[#This Row],[Min]]*1.25,IF(tblAnforderungen[[#This Row],[Parameter]]="Rohfett_gkg",tblAnforderungen[[#This Row],[Min]]*2,IF(tblAnforderungen[[#This Row],[Parameter]]="Rohfaser_gkg",tblAnforderungen[[#This Row],[Min]]*2,IF(tblAnforderungen[[#This Row],[Parameter]]="Ca_gkg",tblAnforderungen[[#This Row],[Min]]*1.4,IF(tblAnforderungen[[#This Row],[Parameter]]="Pverd_gkg",tblAnforderungen[[#This Row],[Min]]*1.3,IF(tblAnforderungen[[#This Row],[Parameter]]="Na_gkg",tblAnforderungen[[#This Row],[Min]]*1.3,tblAnforderungen[[#This Row],[Min]]*1.3))))))))))) -> 11.25
A51: Pute | B51: Finisher 2 | C51: 12 | D51: 20 | E51: Ca_gkg | F51: g/kg | G51: 6.5 | H51: 8
A52: Pute | B52: Finisher 2 | C52: 12 | D52: 20 | E52: Pverd_gkg | F52: g/kg | G52: 3.8 | H52: =IF(tblAnforderungen[[#This Row],[Min]]="","",IF(tblAnforderungen[[#This Row],[Parameter]]="ME",tblAnforderungen[[#This Row],[Min]]+0.7,IF(tblAnforderungen[[#This Row],[Parameter]]="XP",tblAnforderungen[[#This Row],[Min]]*1.3,IF(tblAnforderungen[[#This Row],[Parameter]]="Lysin_gkg",tblAnforderungen[[#This Row],[Min]]*1.25,IF(tblAnforderungen[[#This Row],[Parameter]]="Methionin_gkg",tblAnforderungen[[#This Row],[Min]]*1.25,IF(tblAnforderungen[[#This Row],[Parameter]]="MetCys_gkg",tblAnforderungen[[#This Row],[Min]]*1.25,IF(tblAnforderungen[[#This Row],[Parameter]]="Rohfett_gkg",tblAnforderungen[[#This Row],[Min]]*2,IF(tblAnforderungen[[#This Row],[Parameter]]="Rohfaser_gkg",tblAnforderungen[[#This Row],[Min]]*2,IF(tblAnforderungen[[#This Row],[Parameter]]="Ca_gkg",tblAnforderungen[[#This Row],[Min]]*1.4,IF(tblAnforderungen[[#This Row],[Parameter]]="Pverd_gkg",tblAnforderungen[[#This Row],[Min]]*1.3,IF(tblAnforderungen[[#This Row],[Parameter]]="Na_gkg",tblAnforderungen[[#This Row],[Min]]*1.3,tblAnforderungen[[#This Row],[Min]]*1.3))))))))))) -> 4.94
A53: Pute | B53: Finisher 2 | C53: 12 | D53: 20 | E53: Na_gkg | F53: g/kg | G53: 1.4 | H53: 1.7
A54: Pute | B54: Finisher 2 | C54: 12 | D54: 20 | E54: Rohfett_gkg | F54: g/kg | H54: 80
A55: Pute | B55: Finisher 2 | C55: 12 | D55: 20 | E55: Rohfaser_gkg | F55: g/kg | H55: 65
A56: Broiler | B56: Vorstarter | C56: 0 | D56: 1 | E56: ME | F56: MJ/kg | G56: 12.6 | H56: =IF(tblAnforderungen[[#This Row],[Min]]="","",IF(tblAnforderungen[[#This Row],[Parameter]]="ME",tblAnforderungen[[#This Row],[Min]]+0.7,IF(tblAnforderungen[[#This Row],[Parameter]]="XP",tblAnforderungen[[#This Row],[Min]]*1.3,IF(tblAnforderungen[[#This Row],[Parameter]]="Lysin_gkg",tblAnforderungen[[#This Row],[Min]]*1.25,IF(tblAnforderungen[[#This Row],[Parameter]]="Methionin_gkg",tblAnforderungen[[#This Row],[Min]]*1.25,IF(tblAnforderungen[[#This Row],[Parameter]]="MetCys_gkg",tblAnforderungen[[#This Row],[Min]]*1.25,IF(tblAnforderungen[[#This Row],[Parameter]]="Rohfett_gkg",tblAnforderungen[[#This Row],[Min]]*2,IF(tblAnforderungen[[#This Row],[Parameter]]="Rohfaser_gkg",tblAnforderungen[[#This Row],[Min]]*2,IF(tblAnforderungen[[#This Row],[Parameter]]="Ca_gkg",tblAnforderungen[[#This Row],[Min]]*1.4,IF(tblAnforderungen[[#This Row],[Parameter]]="Pverd_gkg",tblAnforderungen[[#This Row],[Min]]*1.3,IF(tblAnforderungen[[#This Row],[Parameter]]="Na_gkg",tblAnforderungen[[#This Row],[Min]]*1.3,tblAnforderungen[[#This Row],[Min]]*1.3))))))))))) -> 13.3
A57: Broiler | B57: Vorstarter | C57: 0 | D57: 1 | E57: XP | F57: g/kg | G57: 220 | H57: =IF(tblAnforderungen[[#This Row],[Min]]="","",IF(tblAnforderungen[[#This Row],[Parameter]]="ME",tblAnforderungen[[#This Row],[Min]]+0.7,IF(tblAnforderungen[[#This Row],[Parameter]]="XP",tblAnforderungen[[#This Row],[Min]]*1.3,IF(tblAnforderungen[[#This Row],[Parameter]]="Lysin_gkg",tblAnforderungen[[#This Row],[Min]]*1.25,IF(tblAnforderungen[[#This Row],[Parameter]]="Methionin_gkg",tblAnforderungen[[#This Row],[Min]]*1.25,IF(tblAnforderungen[[#This Row],[Parameter]]="MetCys_gkg",tblAnforderungen[[#This Row],[Min]]*1.25,IF(tblAnforderungen[[#This Row],[Parameter]]="Rohfett_gkg",tblAnforderungen[[#This Row],[Min]]*2,IF(tblAnforderungen[[#This Row],[Parameter]]="Rohfaser_gkg",tblAnforderungen[[#This Row],[Min]]*2,IF(tblAnforderungen[[#This Row],[Parameter]]="Ca_gkg",tblAnforderungen[[#This Row],[Min]]*1.4,IF(tblAnforderungen[[#This Row],[Parameter]]="Pverd_gkg",tblAnforderungen[[#This Row],[Min]]*1.3,IF(tblAnforderungen[[#This Row],[Parameter]]="Na_gkg",tblAnforderungen[[#This Row],[Min]]*1.3,tblAnforderungen[[#This Row],[Min]]*1.3))))))))))) -> 286
A58: Broiler | B58: Vorstarter | C58: 0 | D58: 1 | E58: Lysin_gkg | F58: g/kg | G58: 13 | H58: =IF(tblAnforderungen[[#This Row],[Min]]="","",IF(tblAnforderungen[[#This Row],[Parameter]]="ME",tblAnforderungen[[#This Row],[Min]]+0.7,IF(tblAnforderungen[[#This Row],[Parameter]]="XP",tblAnforderungen[[#This Row],[Min]]*1.3,IF(tblAnforderungen[[#This Row],[Parameter]]="Lysin_gkg",tblAnforderungen[[#This Row],[Min]]*1.25,IF(tblAnforderungen[[#This Row],[Parameter]]="Methionin_gkg",tblAnforderungen[[#This Row],[Min]]*1.25,IF(tblAnforderungen[[#This Row],[Parameter]]="MetCys_gkg",tblAnforderungen[[#This Row],[Min]]*1.25,IF(tblAnforderungen[[#This Row],[Parameter]]="Rohfett_gkg",tblAnforderungen[[#This Row],[Min]]*2,IF(tblAnforderungen[[#This Row],[Parameter]]="Rohfaser_gkg",tblAnforderungen[[#This Row],[Min]]*2,IF(tblAnforderungen[[#This Row],[Parameter]]="Ca_gkg",tblAnforderungen[[#This Row],[Min]]*1.4,IF(tblAnforderungen[[#This Row],[Parameter]]="Pverd_gkg",tblAnforderungen[[#This Row],[Min]]*1.3,IF(tblAnforderungen[[#This Row],[Parameter]]="Na_gkg",tblAnforderungen[[#This Row],[Min]]*1.3,tblAnforderungen[[#This Row],[Min]]*1.3))))))))))) -> 16.25
A59: Broiler | B59: Vorstarter | C59: 0 | D59: 1 | E59: MetCys_gkg | F59: g/kg | G59: 10.5 | H59: =IF(tblAnforderungen[[#This Row],[Min]]="","",IF(tblAnforderungen[[#This Row],[Parameter]]="ME",tblAnforderungen[[#This Row],[Min]]+0.7,IF(tblAnforderungen[[#This Row],[Parameter]]="XP",tblAnforderungen[[#This Row],[Min]]*1.3,IF(tblAnforderungen[[#This Row],[Parameter]]="Lysin_gkg",tblAnforderungen[[#This Row],[Min]]*1.25,IF(tblAnforderungen[[#This Row],[Parameter]]="Methionin_gkg",tblAnforderungen[[#This Row],[Min]]*1.25,IF(tblAnforderungen[[#This Row],[Parameter]]="MetCys_gkg",tblAnforderungen[[#This Row],[Min]]*1.25,IF(tblAnforderungen[[#This Row],[Parameter]]="Rohfett_gkg",tblAnforderungen[[#This Row],[Min]]*2,IF(tblAnforderungen[[#This Row],[Parameter]]="Rohfaser_gkg",tblAnforderungen[[#This Row],[Min]]*2,IF(tblAnforderungen[[#This Row],[Parameter]]="Ca_gkg",tblAnforderungen[[#This Row],[Min]]*1.4,IF(tblAnforderungen[[#This Row],[Parameter]]="Pverd_gkg",tblAnforderungen[[#This Row],[Min]]*1.3,IF(tblAnforderungen[[#This Row],[Parameter]]="Na_gkg",tblAnforderungen[[#This Row],[Min]]*1.3,tblAnforderungen[[#This Row],[Min]]*1.3))))))))))) -> 13.125
A60: Broiler | B60: Vorstarter | C60: 0 | D60: 1 | E60: Ca_gkg | F60: g/kg | G60: 8 | H60: 10
A61: Broiler | B61: Vorstarter | C61: 0 | D61: 1 | E61: Pverd_gkg | F61: g/kg | G61: 4.2 | H61: =IF(tblAnforderungen[[#This Row],[Min]]="","",IF(tblAnforderungen[[#This Row],[Parameter]]="ME",tblAnforderungen[[#This Row],[Min]]+0.7,IF(tblAnforderungen[[#This Row],[Parameter]]="XP",tblAnforderungen[[#This Row],[Min]]*1.3,IF(tblAnforderungen[[#This Row],[Parameter]]="Lysin_gkg",tblAnforderungen[[#This Row],[Min]]*1.25,IF(tblAnforderungen[[#This Row],[Parameter]]="Methionin_gkg",tblAnforderungen[[#This Row],[Min]]*1.25,IF(tblAnforderungen[[#This Row],[Parameter]]="MetCys_gkg",tblAnforderungen[[#This Row],[Min]]*1.25,IF(tblAnforderungen[[#This Row],[Parameter]]="Rohfett_gkg",tblAnforderungen[[#This Row],[Min]]*2,IF(tblAnforderungen[[#This Row],[Parameter]]="Rohfaser_gkg",tblAnforderungen[[#This Row],[Min]]*2,IF(tblAnforderungen[[#This Row],[Parameter]]="Ca_gkg",tblAnforderungen[[#This Row],[Min]]*1.4,IF(tblAnforderungen[[#This Row],[Parameter]]="Pverd_gkg",tblAnforderungen[[#This Row],[Min]]*1.3,IF(tblAnforderungen[[#This Row],[Parameter]]="Na_gkg",tblAnforderungen[[#This Row],[Min]]*1.3,tblAnforderungen[[#This Row],[Min]]*1.3))))))))))) -> 5.46
A62: Broiler | B62: Vorstarter | C62: 0 | D62: 1 | E62: Na_gkg | F62: g/kg | G62: 1.6 | H62: 2
A63: Broiler | B63: Vorstarter | C63: 0 | D63: 1 | E63: Rohfett_gkg | F63: g/kg | H63: 80
A64: Broiler | B64: Vorstarter | C64: 0 | D64: 1 | E64: Rohfaser_gkg | F64: g/kg | H64: 40
A65: Broiler | B65: Starter | C65: 1 | D65: 3 | E65: ME | F65: MJ/kg | G65: 12.4 | H65: =IF(tblAnforderungen[[#This Row],[Min]]="","",IF(tblAnforderungen[[#This Row],[Parameter]]="ME",tblAnforderungen[[#This Row],[Min]]+0.7,IF(tblAnforderungen[[#This Row],[Parameter]]="XP",tblAnforderungen[[#This Row],[Min]]*1.3,IF(tblAnforderungen[[#This Row],[Parameter]]="Lysin_gkg",tblAnforderungen[[#This Row],[Min]]*1.25,IF(tblAnforderungen[[#This Row],[Parameter]]="Methionin_gkg",tblAnforderungen[[#This Row],[Min]]*1.25,IF(tblAnforderungen[[#This Row],[Parameter]]="MetCys_gkg",tblAnforderungen[[#This Row],[Min]]*1.25,IF(tblAnforderungen[[#This Row],[Parameter]]="Rohfett_gkg",tblAnforderungen[[#This Row],[Min]]*2,IF(tblAnforderungen[[#This Row],[Parameter]]="Rohfaser_gkg",tblAnforderungen[[#This Row],[Min]]*2,IF(tblAnforderungen[[#This Row],[Parameter]]="Ca_gkg",tblAnforderungen[[#This Row],[Min]]*1.4,IF(tblAnforderungen[[#This Row],[Parameter]]="Pverd_gkg",tblAnforderungen[[#This Row],[Min]]*1.3,IF(tblAnforderungen[[#This Row],[Parameter]]="Na_gkg",tblAnforderungen[[#This Row],[Min]]*1.3,tblAnforderungen[[#This Row],[Min]]*1.3))))))))))) -> 13.1
A66: Broiler | B66: Starter | C66: 1 | D66: 3 | E66: XP | F66: g/kg | G66: 210 | H66: =IF(tblAnforderungen[[#This Row],[Min]]="","",IF(tblAnforderungen[[#This Row],[Parameter]]="ME",tblAnforderungen[[#This Row],[Min]]+0.7,IF(tblAnforderungen[[#This Row],[Parameter]]="XP",tblAnforderungen[[#This Row],[Min]]*1.3,IF(tblAnforderungen[[#This Row],[Parameter]]="Lysin_gkg",tblAnforderungen[[#This Row],[Min]]*1.25,IF(tblAnforderungen[[#This Row],[Parameter]]="Methionin_gkg",tblAnforderungen[[#This Row],[Min]]*1.25,IF(tblAnforderungen[[#This Row],[Parameter]]="MetCys_gkg",tblAnforderungen[[#This Row],[Min]]*1.25,IF(tblAnforderungen[[#This Row],[Parameter]]="Rohfett_gkg",tblAnforderungen[[#This Row],[Min]]*2,IF(tblAnforderungen[[#This Row],[Parameter]]="Rohfaser_gkg",tblAnforderungen[[#This Row],[Min]]*2,IF(tblAnforderungen[[#This Row],[Parameter]]="Ca_gkg",tblAnforderungen[[#This Row],[Min]]*1.4,IF(tblAnforderungen[[#This Row],[Parameter]]="Pverd_gkg",tblAnforderungen[[#This Row],[Min]]*1.3,IF(tblAnforderungen[[#This Row],[Parameter]]="Na_gkg",tblAnforderungen[[#This Row],[Min]]*1.3,tblAnforderungen[[#This Row],[Min]]*1.3))))))))))) -> 273
A67: Broiler | B67: Starter | C67: 1 | D67: 3 | E67: Lysin_gkg | F67: g/kg | G67: 12 | H67: =IF(tblAnforderungen[[#This Row],[Min]]="","",IF(tblAnforderungen[[#This Row],[Parameter]]="ME",tblAnforderungen[[#This Row],[Min]]+0.7,IF(tblAnforderungen[[#This Row],[Parameter]]="XP",tblAnforderungen[[#This Row],[Min]]*1.3,IF(tblAnforderungen[[#This Row],[Parameter]]="Lysin_gkg",tblAnforderungen[[#This Row],[Min]]*1.25,IF(tblAnforderungen[[#This Row],[Parameter]]="Methionin_gkg",tblAnforderungen[[#This Row],[Min]]*1.25,IF(tblAnforderungen[[#This Row],[Parameter]]="MetCys_gkg",tblAnforderungen[[#This Row],[Min]]*1.25,IF(tblAnforderungen[[#This Row],[Parameter]]="Rohfett_gkg",tblAnforderungen[[#This Row],[Min]]*2,IF(tblAnforderungen[[#This Row],[Parameter]]="Rohfaser_gkg",tblAnforderungen[[#This Row],[Min]]*2,IF(tblAnforderungen[[#This Row],[Parameter]]="Ca_gkg",tblAnforderungen[[#This Row],[Min]]*1.4,IF(tblAnforderungen[[#This Row],[Parameter]]="Pverd_gkg",tblAnforderungen[[#This Row],[Min]]*1.3,IF(tblAnforderungen[[#This Row],[Parameter]]="Na_gkg",tblAnforderungen[[#This Row],[Min]]*1.3,tblAnforderungen[[#This Row],[Min]]*1.3))))))))))) -> 15
A68: Broiler | B68: Starter | C68: 1 | D68: 3 | E68: MetCys_gkg | F68: g/kg | G68: 10 | H68: =IF(tblAnforderungen[[#This Row],[Min]]="","",IF(tblAnforderungen[[#This Row],[Parameter]]="ME",tblAnforderungen[[#This Row],[Min]]+0.7,IF(tblAnforderungen[[#This Row],[Parameter]]="XP",tblAnforderungen[[#This Row],[Min]]*1.3,IF(tblAnforderungen[[#This Row],[Parameter]]="Lysin_gkg",tblAnforderungen[[#This Row],[Min]]*1.25,IF(tblAnforderungen[[#This Row],[Parameter]]="Methionin_gkg",tblAnforderungen[[#This Row],[Min]]*1.25,IF(tblAnforderungen[[#This Row],[Parameter]]="MetCys_gkg",tblAnforderungen[[#This Row],[Min]]*1.25,IF(tblAnforderungen[[#This Row],[Parameter]]="Rohfett_gkg",tblAnforderungen[[#This Row],[Min]]*2,IF(tblAnforderungen[[#This Row],[Parameter]]="Rohfaser_gkg",tblAnforderungen[[#This Row],[Min]]*2,IF(tblAnforderungen[[#This Row],[Parameter]]="Ca_gkg",tblAnforderungen[[#This Row],[Min]]*1.4,IF(tblAnforderungen[[#This Row],[Parameter]]="Pverd_gkg",tblAnforderungen[[#This Row],[Min]]*1.3,IF(tblAnforderungen[[#This Row],[Parameter]]="Na_gkg",tblAnforderungen[[#This Row],[Min]]*1.3,tblAnforderungen[[#This Row],[Min]]*1.3))))))))))) -> 12.5
A69: Broiler | B69: Starter | C69: 1 | D69: 3 | E69: Ca_gkg | F69: g/kg | G69: 7 | H69: 9
A70: Broiler | B70: Starter | C70: 1 | D70: 3 | E70: Pverd_gkg | F70: g/kg | G70: 4 | H70: =IF(tblAnforderungen[[#This Row],[Min]]="","",IF(tblAnforderungen[[#This Row],[Parameter]]="ME",tblAnforderungen[[#This Row],[Min]]+0.7,IF(tblAnforderungen[[#This Row],[Parameter]]="XP",tblAnforderungen[[#This Row],[Min]]*1.3,IF(tblAnforderungen[[#This Row],[Parameter]]="Lysin_gkg",tblAnforderungen[[#This Row],[Min]]*1.25,IF(tblAnforderungen[[#This Row],[Parameter]]="Methionin_gkg",tblAnforderungen[[#This Row],[Min]]*1.25,IF(tblAnforderungen[[#This Row],[Parameter]]="MetCys_gkg",tblAnforderungen[[#This Row],[Min]]*1.25,IF(tblAnforderungen[[#This Row],[Parameter]]="Rohfett_gkg",tblAnforderungen[[#This Row],[Min]]*2,IF(tblAnforderungen[[#This Row],[Parameter]]="Rohfaser_gkg",tblAnforderungen[[#This Row],[Min]]*2,IF(tblAnforderungen[[#This Row],[Parameter]]="Ca_gkg",tblAnforderungen[[#This Row],[Min]]*1.4,IF(tblAnforderungen[[#This Row],[Parameter]]="Pverd_gkg",tblAnforderungen[[#This Row],[Min]]*1.3,IF(tblAnforderungen[[#This Row],[Parameter]]="Na_gkg",tblAnforderungen[[#This Row],[Min]]*1.3,tblAnforderungen[[#This Row],[Min]]*1.3))))))))))) -> 5.2
A71: Broiler | B71: Starter | C71: 1 | D71: 3 | E71: Na_gkg | F71: g/kg | G71: 1.5 | H71: 1.8
A72: Broiler | B72: Starter | C72: 1 | D72: 3 | E72: Rohfett_gkg | F72: g/kg | H72: 80
A73: Broiler | B73: Starter | C73: 1 | D73: 3 | E73: Rohfaser_gkg | F73: g/kg | H73: 45
A74: Broiler | B74: Grower | C74: 3 | D74: 5 | E74: ME | F74: MJ/kg | G74: 12.3 | H74: =IF(tblAnforderungen[[#This Row],[Min]]="","",IF(tblAnforderungen[[#This Row],[Parameter]]="ME",tblAnforderungen[[#This Row],[Min]]+0.7,IF(tblAnforderungen[[#This Row],[Parameter]]="XP",tblAnforderungen[[#This Row],[Min]]*1.3,IF(tblAnforderungen[[#This Row],[Parameter]]="Lysin_gkg",tblAnforderungen[[#This Row],[Min]]*1.25,IF(tblAnforderungen[[#This Row],[Parameter]]="Methionin_gkg",tblAnforderungen[[#This Row],[Min]]*1.25,IF(tblAnforderungen[[#This Row],[Parameter]]="MetCys_gkg",tblAnforderungen[[#This Row],[Min]]*1.25,IF(tblAnforderungen[[#This Row],[Parameter]]="Rohfett_gkg",tblAnforderungen[[#This Row],[Min]]*2,IF(tblAnforderungen[[#This Row],[Parameter]]="Rohfaser_gkg",tblAnforderungen[[#This Row],[Min]]*2,IF(tblAnforderungen[[#This Row],[Parameter]]="Ca_gkg",tblAnforderungen[[#This Row],[Min]]*1.4,IF(tblAnforderungen[[#This Row],[Parameter]]="Pverd_gkg",tblAnforderungen[[#This Row],[Min]]*1.3,IF(tblAnforderungen[[#This Row],[Parameter]]="Na_gkg",tblAnforderungen[[#This Row],[Min]]*1.3,tblAnforderungen[[#This Row],[Min]]*1.3))))))))))) -> 13
A75: Broiler | B75: Grower | C75: 3 | D75: 5 | E75: XP | F75: g/kg | G75: 190 | H75: =IF(tblAnforderungen[[#This Row],[Min]]="","",IF(tblAnforderungen[[#This Row],[Parameter]]="ME",tblAnforderungen[[#This Row],[Min]]+0.7,IF(tblAnforderungen[[#This Row],[Parameter]]="XP",tblAnforderungen[[#This Row],[Min]]*1.3,IF(tblAnforderungen[[#This Row],[Parameter]]="Lysin_gkg",tblAnforderungen[[#This Row],[Min]]*1.25,IF(tblAnforderungen[[#This Row],[Parameter]]="Methionin_gkg",tblAnforderungen[[#This Row],[Min]]*1.25,IF(tblAnforderungen[[#This Row],[Parameter]]="MetCys_gkg",tblAnforderungen[[#This Row],[Min]]*1.25,IF(tblAnforderungen[[#This Row],[Parameter]]="Rohfett_gkg",tblAnforderungen[[#This Row],[Min]]*2,IF(tblAnforderungen[[#This Row],[Parameter]]="Rohfaser_gkg",tblAnforderungen[[#This Row],[Min]]*2,IF(tblAnforderungen[[#This Row],[Parameter]]="Ca_gkg",tblAnforderungen[[#This Row],[Min]]*1.4,IF(tblAnforderungen[[#This Row],[Parameter]]="Pverd_gkg",tblAnforderungen[[#This Row],[Min]]*1.3,IF(tblAnforderungen[[#This Row],[Parameter]]="Na_gkg",tblAnforderungen[[#This Row],[Min]]*1.3,tblAnforderungen[[#This Row],[Min]]*1.3))))))))))) -> 247
A76: Broiler | B76: Grower | C76: 3 | D76: 5 | E76: Lysin_gkg | F76: g/kg | G76: 11 | H76: =IF(tblAnforderungen[[#This Row],[Min]]="","",IF(tblAnforderungen[[#This Row],[Parameter]]="ME",tblAnforderungen[[#This Row],[Min]]+0.7,IF(tblAnforderungen[[#This Row],[Parameter]]="XP",tblAnforderungen[[#This Row],[Min]]*1.3,IF(tblAnforderungen[[#This Row],[Parameter]]="Lysin_gkg",tblAnforderungen[[#This Row],[Min]]*1.25,IF(tblAnforderungen[[#This Row],[Parameter]]="Methionin_gkg",tblAnforderungen[[#This Row],[Min]]*1.25,IF(tblAnforderungen[[#This Row],[Parameter]]="MetCys_gkg",tblAnforderungen[[#This Row],[Min]]*1.25,IF(tblAnforderungen[[#This Row],[Parameter]]="Rohfett_gkg",tblAnforderungen[[#This Row],[Min]]*2,IF(tblAnforderungen[[#This Row],[Parameter]]="Rohfaser_gkg",tblAnforderungen[[#This Row],[Min]]*2,IF(tblAnforderungen[[#This Row],[Parameter]]="Ca_gkg",tblAnforderungen[[#This Row],[Min]]*1.4,IF(tblAnforderungen[[#This Row],[Parameter]]="Pverd_gkg",tblAnforderungen[[#This Row],[Min]]*1.3,IF(tblAnforderungen[[#This Row],[Parameter]]="Na_gkg",tblAnforderungen[[#This Row],[Min]]*1.3,tblAnforderungen[[#This Row],[Min]]*1.3))))))))))) -> 13.75
A77: Broiler | B77: Grower | C77: 3 | D77: 5 | E77: MetCys_gkg | F77: g/kg | G77: 9 | H77: =IF(tblAnforderungen[[#This Row],[Min]]="","",IF(tblAnforderungen[[#This Row],[Parameter]]="ME",tblAnforderungen[[#This Row],[Min]]+0.7,IF(tblAnforderungen[[#This Row],[Parameter]]="XP",tblAnforderungen[[#This Row],[Min]]*1.3,IF(tblAnforderungen[[#This Row],[Parameter]]="Lysin_gkg",tblAnforderungen[[#This Row],[Min]]*1.25,IF(tblAnforderungen[[#This Row],[Parameter]]="Methionin_gkg",tblAnforderungen[[#This Row],[Min]]*1.25,IF(tblAnforderungen[[#This Row],[Parameter]]="MetCys_gkg",tblAnforderungen[[#This Row],[Min]]*1.25,IF(tblAnforderungen[[#This Row],[Parameter]]="Rohfett_gkg",tblAnforderungen[[#This Row],[Min]]*2,IF(tblAnforderungen[[#This Row],[Parameter]]="Rohfaser_gkg",tblAnforderungen[[#This Row],[Min]]*2,IF(tblAnforderungen[[#This Row],[Parameter]]="Ca_gkg",tblAnforderungen[[#This Row],[Min]]*1.4,IF(tblAnforderungen[[#This Row],[Parameter]]="Pverd_gkg",tblAnforderungen[[#This Row],[Min]]*1.3,IF(tblAnforderungen[[#This Row],[Parameter]]="Na_gkg",tblAnforderungen[[#This Row],[Min]]*1.3,tblAnforderungen[[#This Row],[Min]]*1.3))))))))))) -> 11.25
A78: Broiler | B78: Grower | C78: 3 | D78: 5 | E78: Ca_gkg | F78: g/kg | G78: 6.5 | H78: 8
A79: Broiler | B79: Grower | C79: 3 | D79: 5 | E79: Pverd_gkg | F79: g/kg | G79: 3.6 | H79: =IF(tblAnforderungen[[#This Row],[Min]]="","",IF(tblAnforderungen[[#This Row],[Parameter]]="ME",tblAnforderungen[[#This Row],[Min]]+0.7,IF(tblAnforderungen[[#This Row],[Parameter]]="XP",tblAnforderungen[[#This Row],[Min]]*1.3,IF(tblAnforderungen[[#This Row],[Parameter]]="Lysin_gkg",tblAnforderungen[[#This Row],[Min]]*1.25,IF(tblAnforderungen[[#This Row],[Parameter]]="Methionin_gkg",tblAnforderungen[[#This Row],[Min]]*1.25,IF(tblAnforderungen[[#This Row],[Parameter]]="MetCys_gkg",tblAnforderungen[[#This Row],[Min]]*1.25,IF(tblAnforderungen[[#This Row],[Parameter]]="Rohfett_gkg",tblAnforderungen[[#This Row],[Min]]*2,IF(tblAnforderungen[[#This Row],[Parameter]]="Rohfaser_gkg",tblAnforderungen[[#This Row],[Min]]*2,IF(tblAnforderungen[[#This Row],[Parameter]]="Ca_gkg",tblAnforderungen[[#This Row],[Min]]*1.4,IF(tblAnforderungen[[#This Row],[Parameter]]="Pverd_gkg",tblAnforderungen[[#This Row],[Min]]*1.3,IF(tblAnforderungen[[#This Row],[Parameter]]="Na_gkg",tblAnforderungen[[#This Row],[Min]]*1.3,tblAnforderungen[[#This Row],[Min]]*1.3))))))))))) -> 4.68
A80: Broiler | B80: Grower | C80: 3 | D80: 5 | E80: Na_gkg | F80: g/kg | G80: 1.4 | H80: 1.7
A81: Broiler | B81: Grower | C81: 3 | D81: 5 | E81: Rohfett_gkg | F81: g/kg | H81: 80
A82: Broiler | B82: Grower | C82: 3 | D82: 5 | E82: Rohfaser_gkg | F82: g/kg | H82: 50
A83: Broiler | B83: Finisher | C83: 5 | D83: 6 | E83: ME | F83: MJ/kg | G83: 12.1 | H83: =IF(tblAnforderungen[[#This Row],[Min]]="","",IF(tblAnforderungen[[#This Row],[Parameter]]="ME",tblAnforderungen[[#This Row],[Min]]+0.7,IF(tblAnforderungen[[#This Row],[Parameter]]="XP",tblAnforderungen[[#This Row],[Min]]*1.3,IF(tblAnforderungen[[#This Row],[Parameter]]="Lysin_gkg",tblAnforderungen[[#This Row],[Min]]*1.25,IF(tblAnforderungen[[#This Row],[Parameter]]="Methionin_gkg",tblAnforderungen[[#This Row],[Min]]*1.25,IF(tblAnforderungen[[#This Row],[Parameter]]="MetCys_gkg",tblAnforderungen[[#This Row],[Min]]*1.25,IF(tblAnforderungen[[#This Row],[Parameter]]="Rohfett_gkg",tblAnforderungen[[#This Row],[Min]]*2,IF(tblAnforderungen[[#This Row],[Parameter]]="Rohfaser_gkg",tblAnforderungen[[#This Row],[Min]]*2,IF(tblAnforderungen[[#This Row],[Parameter]]="Ca_gkg",tblAnforderungen[[#This Row],[Min]]*1.4,IF(tblAnforderungen[[#This Row],[Parameter]]="Pverd_gkg",tblAnforderungen[[#This Row],[Min]]*1.3,IF(tblAnforderungen[[#This Row],[Parameter]]="Na_gkg",tblAnforderungen[[#This Row],[Min]]*1.3,tblAnforderungen[[#This Row],[Min]]*1.3))))))))))) -> 12.8
A84: Broiler | B84: Finisher | C84: 5 | D84: 6 | E84: XP | F84: g/kg | G84: 180 | H84: =IF(tblAnforderungen[[#This Row],[Min]]="","",IF(tblAnforderungen[[#This Row],[Parameter]]="ME",tblAnforderungen[[#This Row],[Min]]+0.7,IF(tblAnforderungen[[#This Row],[Parameter]]="XP",tblAnforderungen[[#This Row],[Min]]*1.3,IF(tblAnforderungen[[#This Row],[Parameter]]="Lysin_gkg",tblAnforderungen[[#This Row],[Min]]*1.25,IF(tblAnforderungen[[#This Row],[Parameter]]="Methionin_gkg",tblAnforderungen[[#This Row],[Min]]*1.25,IF(tblAnforderungen[[#This Row],[Parameter]]="MetCys_gkg",tblAnforderungen[[#This Row],[Min]]*1.25,IF(tblAnforderungen[[#This Row],[Parameter]]="Rohfett_gkg",tblAnforderungen[[#This Row],[Min]]*2,IF(tblAnforderungen[[#This Row],[Parameter]]="Rohfaser_gkg",tblAnforderungen[[#This Row],[Min]]*2,IF(tblAnforderungen[[#This Row],[Parameter]]="Ca_gkg",tblAnforderungen[[#This Row],[Min]]*1.4,IF(tblAnforderungen[[#This Row],[Parameter]]="Pverd_gkg",tblAnforderungen[[#This Row],[Min]]*1.3,IF(tblAnforderungen[[#This Row],[Parameter]]="Na_gkg",tblAnforderungen[[#This Row],[Min]]*1.3,tblAnforderungen[[#This Row],[Min]]*1.3))))))))))) -> 234
A85: Broiler | B85: Finisher | C85: 5 | D85: 6 | E85: Lysin_gkg | F85: g/kg | G85: 10 | H85: =IF(tblAnforderungen[[#This Row],[Min]]="","",IF(tblAnforderungen[[#This Row],[Parameter]]="ME",tblAnforderungen[[#This Row],[Min]]+0.7,IF(tblAnforderungen[[#This Row],[Parameter]]="XP",tblAnforderungen[[#This Row],[Min]]*1.3,IF(tblAnforderungen[[#This Row],[Parameter]]="Lysin_gkg",tblAnforderungen[[#This Row],[Min]]*1.25,IF(tblAnforderungen[[#This Row],[Parameter]]="Methionin_gkg",tblAnforderungen[[#This Row],[Min]]*1.25,IF(tblAnforderungen[[#This Row],[Parameter]]="MetCys_gkg",tblAnforderungen[[#This Row],[Min]]*1.25,IF(tblAnforderungen[[#This Row],[Parameter]]="Rohfett_gkg",tblAnforderungen[[#This Row],[Min]]*2,IF(tblAnforderungen[[#This Row],[Parameter]]="Rohfaser_gkg",tblAnforderungen[[#This Row],[Min]]*2,IF(tblAnforderungen[[#This Row],[Parameter]]="Ca_gkg",tblAnforderungen[[#This Row],[Min]]*1.4,IF(tblAnforderungen[[#This Row],[Parameter]]="Pverd_gkg",tblAnforderungen[[#This Row],[Min]]*1.3,IF(tblAnforderungen[[#This Row],[Parameter]]="Na_gkg",tblAnforderungen[[#This Row],[Min]]*1.3,tblAnforderungen[[#This Row],[Min]]*1.3))))))))))) -> 12.5
A86: Broiler | B86: Finisher | C86: 5 | D86: 6 | E86: MetCys_gkg | F86: g/kg | G86: 8 | H86: =IF(tblAnforderungen[[#This Row],[Min]]="","",IF(tblAnforderungen[[#This Row],[Parameter]]="ME",tblAnforderungen[[#This Row],[Min]]+0.7,IF(tblAnforderungen[[#This Row],[Parameter]]="XP",tblAnforderungen[[#This Row],[Min]]*1.3,IF(tblAnforderungen[[#This Row],[Parameter]]="Lysin_gkg",tblAnforderungen[[#This Row],[Min]]*1.25,IF(tblAnforderungen[[#This Row],[Parameter]]="Methionin_gkg",tblAnforderungen[[#This Row],[Min]]*1.25,IF(tblAnforderungen[[#This Row],[Parameter]]="MetCys_gkg",tblAnforderungen[[#This Row],[Min]]*1.25,IF(tblAnforderungen[[#This Row],[Parameter]]="Rohfett_gkg",tblAnforderungen[[#This Row],[Min]]*2,IF(tblAnforderungen[[#This Row],[Parameter]]="Rohfaser_gkg",tblAnforderungen[[#This Row],[Min]]*2,IF(tblAnforderungen[[#This Row],[Parameter]]="Ca_gkg",tblAnforderungen[[#This Row],[Min]]*1.4,IF(tblAnforderungen[[#This Row],[Parameter]]="Pverd_gkg",tblAnforderungen[[#This Row],[Min]]*1.3,IF(tblAnforderungen[[#This Row],[Parameter]]="Na_gkg",tblAnforderungen[[#This Row],[Min]]*1.3,tblAnforderungen[[#This Row],[Min]]*1.3))))))))))) -> 10
A87: Broiler | B87: Finisher | C87: 5 | D87: 6 | E87: Ca_gkg | F87: g/kg | G87: 6 | H87: 7.5
A88: Broiler | B88: Finisher | C88: 5 | D88: 6 | E88: Pverd_gkg | F88: g/kg | G88: 3.4 | H88: =IF(tblAnforderungen[[#This Row],[Min]]="","",IF(tblAnforderungen[[#This Row],[Parameter]]="ME",tblAnforderungen[[#This Row],[Min]]+0.7,IF(tblAnforderungen[[#This Row],[Parameter]]="XP",tblAnforderungen[[#This Row],[Min]]*1.3,IF(tblAnforderungen[[#This Row],[Parameter]]="Lysin_gkg",tblAnforderungen[[#This Row],[Min]]*1.25,IF(tblAnforderungen[[#This Row],[Parameter]]="Methionin_gkg",tblAnforderungen[[#This Row],[Min]]*1.25,IF(tblAnforderungen[[#This Row],[Parameter]]="MetCys_gkg",tblAnforderungen[[#This Row],[Min]]*1.25,IF(tblAnforderungen[[#This Row],[Parameter]]="Rohfett_gkg",tblAnforderungen[[#This Row],[Min]]*2,IF(tblAnforderungen[[#This Row],[Parameter]]="Rohfaser_gkg",tblAnforderungen[[#This Row],[Min]]*2,IF(tblAnforderungen[[#This Row],[Parameter]]="Ca_gkg",tblAnforderungen[[#This Row],[Min]]*1.4,IF(tblAnforderungen[[#This Row],[Parameter]]="Pverd_gkg",tblAnforderungen[[#This Row],[Min]]*1.3,IF(tblAnforderungen[[#This Row],[Parameter]]="Na_gkg",tblAnforderungen[[#This Row],[Min]]*1.3,tblAnforderungen[[#This Row],[Min]]*1.3))))))))))) -> 4.42
A89: Broiler | B89: Finisher | C89: 5 | D89: 6 | E89: Na_gkg | F89: g/kg | G89: 1.3 | H89: 1.5
A90: Broiler | B90: Finisher | C90: 5 | D90: 6 | E90: Rohfett_gkg | F90: g/kg | H90: 80
A91: Broiler | B91: Finisher | C91: 5 | D91: 6 | E91: Rohfaser_gkg | F91: g/kg | H91: 55
A92: Legehenne | B92: Aufzucht 1 | C92: 0 | D92: 6 | E92: ME | F92: MJ/kg | G92: 11.5 | H92: =IF(tblAnforderungen[[#This Row],[Min]]="","",IF(tblAnforderungen[[#This Row],[Parameter]]="ME",tblAnforderungen[[#This Row],[Min]]+0.7,IF(tblAnforderungen[[#This Row],[Parameter]]="XP",tblAnforderungen[[#This Row],[Min]]*1.3,IF(tblAnforderungen[[#This Row],[Parameter]]="Lysin_gkg",tblAnforderungen[[#This Row],[Min]]*1.25,IF(tblAnforderungen[[#This Row],[Parameter]]="Methionin_gkg",tblAnforderungen[[#This Row],[Min]]*1.25,IF(tblAnforderungen[[#This Row],[Parameter]]="MetCys_gkg",tblAnforderungen[[#This Row],[Min]]*1.25,IF(tblAnforderungen[[#This Row],[Parameter]]="Rohfett_gkg",tblAnforderungen[[#This Row],[Min]]*2,IF(tblAnforderungen[[#This Row],[Parameter]]="Rohfaser_gkg",tblAnforderungen[[#This Row],[Min]]*2,IF(tblAnforderungen[[#This Row],[Parameter]]="Ca_gkg",tblAnforderungen[[#This Row],[Min]]*1.4,IF(tblAnforderungen[[#This Row],[Parameter]]="Pverd_gkg",tblAnforderungen[[#This Row],[Min]]*1.3,IF(tblAnforderungen[[#This Row],[Parameter]]="Na_gkg",tblAnforderungen[[#This Row],[Min]]*1.3,tblAnforderungen[[#This Row],[Min]]*1.3))))))))))) -> 12.2
A93: Legehenne | B93: Aufzucht 1 | C93: 0 | D93: 6 | E93: XP | F93: g/kg | G93: 180 | H93: =IF(tblAnforderungen[[#This Row],[Min]]="","",IF(tblAnforderungen[[#This Row],[Parameter]]="ME",tblAnforderungen[[#This Row],[Min]]+0.7,IF(tblAnforderungen[[#This Row],[Parameter]]="XP",tblAnforderungen[[#This Row],[Min]]*1.3,IF(tblAnforderungen[[#This Row],[Parameter]]="Lysin_gkg",tblAnforderungen[[#This Row],[Min]]*1.25,IF(tblAnforderungen[[#This Row],[Parameter]]="Methionin_gkg",tblAnforderungen[[#This Row],[Min]]*1.25,IF(tblAnforderungen[[#This Row],[Parameter]]="MetCys_gkg",tblAnforderungen[[#This Row],[Min]]*1.25,IF(tblAnforderungen[[#This Row],[Parameter]]="Rohfett_gkg",tblAnforderungen[[#This Row],[Min]]*2,IF(tblAnforderungen[[#This Row],[Parameter]]="Rohfaser_gkg",tblAnforderungen[[#This Row],[Min]]*2,IF(tblAnforderungen[[#This Row],[Parameter]]="Ca_gkg",tblAnforderungen[[#This Row],[Min]]*1.4,IF(tblAnforderungen[[#This Row],[Parameter]]="Pverd_gkg",tblAnforderungen[[#This Row],[Min]]*1.3,IF(tblAnforderungen[[#This Row],[Parameter]]="Na_gkg",tblAnforderungen[[#This Row],[Min]]*1.3,tblAnforderungen[[#This Row],[Min]]*1.3))))))))))) -> 234
A94: Legehenne | B94: Aufzucht 1 | C94: 0 | D94: 6 | E94: Lysin_gkg | F94: g/kg | G94: 8 | H94: =IF(tblAnforderungen[[#This Row],[Min]]="","",IF(tblAnforderungen[[#This Row],[Parameter]]="ME",tblAnforderungen[[#This Row],[Min]]+0.7,IF(tblAnforderungen[[#This Row],[Parameter]]="XP",tblAnforderungen[[#This Row],[Min]]*1.3,IF(tblAnforderungen[[#This Row],[Parameter]]="Lysin_gkg",tblAnforderungen[[#This Row],[Min]]*1.25,IF(tblAnforderungen[[#This Row],[Parameter]]="Methionin_gkg",tblAnforderungen[[#This Row],[Min]]*1.25,IF(tblAnforderungen[[#This Row],[Parameter]]="MetCys_gkg",tblAnforderungen[[#This Row],[Min]]*1.25,IF(tblAnforderungen[[#This Row],[Parameter]]="Rohfett_gkg",tblAnforderungen[[#This Row],[Min]]*2,IF(tblAnforderungen[[#This Row],[Parameter]]="Rohfaser_gkg",tblAnforderungen[[#This Row],[Min]]*2,IF(tblAnforderungen[[#This Row],[Parameter]]="Ca_gkg",tblAnforderungen[[#This Row],[Min]]*1.4,IF(tblAnforderungen[[#This Row],[Parameter]]="Pverd_gkg",tblAnforderungen[[#This Row],[Min]]*1.3,IF(tblAnforderungen[[#This Row],[Parameter]]="Na_gkg",tblAnforderungen[[#This Row],[Min]]*1.3,tblAnforderungen[[#This Row],[Min]]*1.3))))))))))) -> 10
A95: Legehenne | B95: Aufzucht 1 | C95: 0 | D95: 6 | E95: MetCys_gkg | F95: g/kg | G95: 6 | H95: =IF(tblAnforderungen[[#This Row],[Min]]="","",IF(tblAnforderungen[[#This Row],[Parameter]]="ME",tblAnforderungen[[#This Row],[Min]]+0.7,IF(tblAnforderungen[[#This Row],[Parameter]]="XP",tblAnforderungen[[#This Row],[Min]]*1.3,IF(tblAnforderungen[[#This Row],[Parameter]]="Lysin_gkg",tblAnforderungen[[#This Row],[Min]]*1.25,IF(tblAnforderungen[[#This Row],[Parameter]]="Methionin_gkg",tblAnforderungen[[#This Row],[Min]]*1.25,IF(tblAnforderungen[[#This Row],[Parameter]]="MetCys_gkg",tblAnforderungen[[#This Row],[Min]]*1.25,IF(tblAnforderungen[[#This Row],[Parameter]]="Rohfett_gkg",tblAnforderungen[[#This Row],[Min]]*2,IF(tblAnforderungen[[#This Row],[Parameter]]="Rohfaser_gkg",tblAnforderungen[[#This Row],[Min]]*2,IF(tblAnforderungen[[#This Row],[Parameter]]="Ca_gkg",tblAnforderungen[[#This Row],[Min]]*1.4,IF(tblAnforderungen[[#This Row],[Parameter]]="Pverd_gkg",tblAnforderungen[[#This Row],[Min]]*1.3,IF(tblAnforderungen[[#This Row],[Parameter]]="Na_gkg",tblAnforderungen[[#This Row],[Min]]*1.3,tblAnforderungen[[#This Row],[Min]]*1.3))))))))))) -> 7.5
A96: Legehenne | B96: Aufzucht 1 | C96: 0 | D96: 6 | E96: Ca_gkg | F96: g/kg | G96: 9 | H96: 12
A97: Legehenne | B97: Aufzucht 1 | C97: 0 | D97: 6 | E97: Pverd_gkg | F97: g/kg | G97: 4 | H97: =IF(tblAnforderungen[[#This Row],[Min]]="","",IF(tblAnforderungen[[#This Row],[Parameter]]="ME",tblAnforderungen[[#This Row],[Min]]+0.7,IF(tblAnforderungen[[#This Row],[Parameter]]="XP",tblAnforderungen[[#This Row],[Min]]*1.3,IF(tblAnforderungen[[#This Row],[Parameter]]="Lysin_gkg",tblAnforderungen[[#This Row],[Min]]*1.25,IF(tblAnforderungen[[#This Row],[Parameter]]="Methionin_gkg",tblAnforderungen[[#This Row],[Min]]*1.25,IF(tblAnforderungen[[#This Row],[Parameter]]="MetCys_gkg",tblAnforderungen[[#This Row],[Min]]*1.25,IF(tblAnforderungen[[#This Row],[Parameter]]="Rohfett_gkg",tblAnforderungen[[#This Row],[Min]]*2,IF(tblAnforderungen[[#This Row],[Parameter]]="Rohfaser_gkg",tblAnforderungen[[#This Row],[Min]]*2,IF(tblAnforderungen[[#This Row],[Parameter]]="Ca_gkg",tblAnforderungen[[#This Row],[Min]]*1.4,IF(tblAnforderungen[[#This Row],[Parameter]]="Pverd_gkg",tblAnforderungen[[#This Row],[Min]]*1.3,IF(tblAnforderungen[[#This Row],[Parameter]]="Na_gkg",tblAnforderungen[[#This Row],[Min]]*1.3,tblAnforderungen[[#This Row],[Min]]*1.3))))))))))) -> 5.2
A98: Legehenne | B98: Aufzucht 1 | C98: 0 | D98: 6 | E98: Na_gkg | F98: g/kg | G98: 1.4 | H98: 1.8
A99: Legehenne | B99: Aufzucht 1 | C99: 0 | D99: 6 | E99: Rohfett_gkg | F99: g/kg | H99: 80
A100: Legehenne | B100: Aufzucht 1 | C100: 0 | D100: 6 | E100: Rohfaser_gkg | F100: g/kg | H100: 55
A101: Legehenne | B101: Aufzucht 2 | C101: 6 | D101: 16 | E101: ME | F101: MJ/kg | G101: 11.3 | H101: =IF(tblAnforderungen[[#This Row],[Min]]="","",IF(tblAnforderungen[[#This Row],[Parameter]]="ME",tblAnforderungen[[#This Row],[Min]]+0.7,IF(tblAnforderungen[[#This Row],[Parameter]]="XP",tblAnforderungen[[#This Row],[Min]]*1.3,IF(tblAnforderungen[[#This Row],[Parameter]]="Lysin_gkg",tblAnforderungen[[#This Row],[Min]]*1.25,IF(tblAnforderungen[[#This Row],[Parameter]]="Methionin_gkg",tblAnforderungen[[#This Row],[Min]]*1.25,IF(tblAnforderungen[[#This Row],[Parameter]]="MetCys_gkg",tblAnforderungen[[#This Row],[Min]]*1.25,IF(tblAnforderungen[[#This Row],[Parameter]]="Rohfett_gkg",tblAnforderungen[[#This Row],[Min]]*2,IF(tblAnforderungen[[#This Row],[Parameter]]="Rohfaser_gkg",tblAnforderungen[[#This Row],[Min]]*2,IF(tblAnforderungen[[#This Row],[Parameter]]="Ca_gkg",tblAnforderungen[[#This Row],[Min]]*1.4,IF(tblAnforderungen[[#This Row],[Parameter]]="Pverd_gkg",tblAnforderungen[[#This Row],[Min]]*1.3,IF(tblAnforderungen[[#This Row],[Parameter]]="Na_gkg",tblAnforderungen[[#This Row],[Min]]*1.3,tblAnforderungen[[#This Row],[Min]]*1.3))))))))))) -> 12
A102: Legehenne | B102: Aufzucht 2 | C102: 6 | D102: 16 | E102: XP | F102: g/kg | G102: 160 | H102: =IF(tblAnforderungen[[#This Row],[Min]]="","",IF(tblAnforderungen[[#This Row],[Parameter]]="ME",tblAnforderungen[[#This Row],[Min]]+0.7,IF(tblAnforderungen[[#This Row],[Parameter]]="XP",tblAnforderungen[[#This Row],[Min]]*1.3,IF(tblAnforderungen[[#This Row],[Parameter]]="Lysin_gkg",tblAnforderungen[[#This Row],[Min]]*1.25,IF(tblAnforderungen[[#This Row],[Parameter]]="Methionin_gkg",tblAnforderungen[[#This Row],[Min]]*1.25,IF(tblAnforderungen[[#This Row],[Parameter]]="MetCys_gkg",tblAnforderungen[[#This Row],[Min]]*1.25,IF(tblAnforderungen[[#This Row],[Parameter]]="Rohfett_gkg",tblAnforderungen[[#This Row],[Min]]*2,IF(tblAnforderungen[[#This Row],[Parameter]]="Rohfaser_gkg",tblAnforderungen[[#This Row],[Min]]*2,IF(tblAnforderungen[[#This Row],[Parameter]]="Ca_gkg",tblAnforderungen[[#This Row],[Min]]*1.4,IF(tblAnforderungen[[#This Row],[Parameter]]="Pverd_gkg",tblAnforderungen[[#This Row],[Min]]*1.3,IF(tblAnforderungen[[#This Row],[Parameter]]="Na_gkg",tblAnforderungen[[#This Row],[Min]]*1.3,tblAnforderungen[[#This Row],[Min]]*1.3))))))))))) -> 208
A103: Legehenne | B103: Aufzucht 2 | C103: 6 | D103: 16 | E103: Lysin_gkg | F103: g/kg | G103: 7 | H103: =IF(tblAnforderungen[[#This Row],[Min]]="","",IF(tblAnforderungen[[#This Row],[Parameter]]="ME",tblAnforderungen[[#This Row],[Min]]+0.7,IF(tblAnforderungen[[#This Row],[Parameter]]="XP",tblAnforderungen[[#This Row],[Min]]*1.3,IF(tblAnforderungen[[#This Row],[Parameter]]="Lysin_gkg",tblAnforderungen[[#This Row],[Min]]*1.25,IF(tblAnforderungen[[#This Row],[Parameter]]="Methionin_gkg",tblAnforderungen[[#This Row],[Min]]*1.25,IF(tblAnforderungen[[#This Row],[Parameter]]="MetCys_gkg",tblAnforderungen[[#This Row],[Min]]*1.25,IF(tblAnforderungen[[#This Row],[Parameter]]="Rohfett_gkg",tblAnforderungen[[#This Row],[Min]]*2,IF(tblAnforderungen[[#This Row],[Parameter]]="Rohfaser_gkg",tblAnforderungen[[#This Row],[Min]]*2,IF(tblAnforderungen[[#This Row],[Parameter]]="Ca_gkg",tblAnforderungen[[#This Row],[Min]]*1.4,IF(tblAnforderungen[[#This Row],[Parameter]]="Pverd_gkg",tblAnforderungen[[#This Row],[Min]]*1.3,IF(tblAnforderungen[[#This Row],[Parameter]]="Na_gkg",tblAnforderungen[[#This Row],[Min]]*1.3,tblAnforderungen[[#This Row],[Min]]*1.3))))))))))) -> 8.75
A104: Legehenne | B104: Aufzucht 2 | C104: 6 | D104: 16 | E104: MetCys_gkg | F104: g/kg | G104: 5.5 | H104: =IF(tblAnforderungen[[#This Row],[Min]]="","",IF(tblAnforderungen[[#This Row],[Parameter]]="ME",tblAnforderungen[[#This Row],[Min]]+0.7,IF(tblAnforderungen[[#This Row],[Parameter]]="XP",tblAnforderungen[[#This Row],[Min]]*1.3,IF(tblAnforderungen[[#This Row],[Parameter]]="Lysin_gkg",tblAnforderungen[[#This Row],[Min]]*1.25,IF(tblAnforderungen[[#This Row],[Parameter]]="Methionin_gkg",tblAnforderungen[[#This Row],[Min]]*1.25,IF(tblAnforderungen[[#This Row],[Parameter]]="MetCys_gkg",tblAnforderungen[[#This Row],[Min]]*1.25,IF(tblAnforderungen[[#This Row],[Parameter]]="Rohfett_gkg",tblAnforderungen[[#This Row],[Min]]*2,IF(tblAnforderungen[[#This Row],[Parameter]]="Rohfaser_gkg",tblAnforderungen[[#This Row],[Min]]*2,IF(tblAnforderungen[[#This Row],[Parameter]]="Ca_gkg",tblAnforderungen[[#This Row],[Min]]*1.4,IF(tblAnforderungen[[#This Row],[Parameter]]="Pverd_gkg",tblAnforderungen[[#This Row],[Min]]*1.3,IF(tblAnforderungen[[#This Row],[Parameter]]="Na_gkg",tblAnforderungen[[#This Row],[Min]]*1.3,tblAnforderungen[[#This Row],[Min]]*1.3))))))))))) -> 6.875
A105: Legehenne | B105: Aufzucht 2 | C105: 6 | D105: 16 | E105: Ca_gkg | F105: g/kg | G105: 9 | H105: 12
A106: Legehenne | B106: Aufzucht 2 | C106: 6 | D106: 16 | E106: Pverd_gkg | F106: g/kg | G106: 3.5 | H106: =IF(tblAnforderungen[[#This Row],[Min]]="","",IF(tblAnforderungen[[#This Row],[Parameter]]="ME",tblAnforderungen[[#This Row],[Min]]+0.7,IF(tblAnforderungen[[#This Row],[Parameter]]="XP",tblAnforderungen[[#This Row],[Min]]*1.3,IF(tblAnforderungen[[#This Row],[Parameter]]="Lysin_gkg",tblAnforderungen[[#This Row],[Min]]*1.25,IF(tblAnforderungen[[#This Row],[Parameter]]="Methionin_gkg",tblAnforderungen[[#This Row],[Min]]*1.25,IF(tblAnforderungen[[#This Row],[Parameter]]="MetCys_gkg",tblAnforderungen[[#This Row],[Min]]*1.25,IF(tblAnforderungen[[#This Row],[Parameter]]="Rohfett_gkg",tblAnforderungen[[#This Row],[Min]]*2,IF(tblAnforderungen[[#This Row],[Parameter]]="Rohfaser_gkg",tblAnforderungen[[#This Row],[Min]]*2,IF(tblAnforderungen[[#This Row],[Parameter]]="Ca_gkg",tblAnforderungen[[#This Row],[Min]]*1.4,IF(tblAnforderungen[[#This Row],[Parameter]]="Pverd_gkg",tblAnforderungen[[#This Row],[Min]]*1.3,IF(tblAnforderungen[[#This Row],[Parameter]]="Na_gkg",tblAnforderungen[[#This Row],[Min]]*1.3,tblAnforderungen[[#This Row],[Min]]*1.3))))))))))) -> 4.55
A107: Legehenne | B107: Aufzucht 2 | C107: 6 | D107: 16 | E107: Na_gkg | F107: g/kg | G107: 1.3 | H107: 1.7
A108: Legehenne | B108: Aufzucht 2 | C108: 6 | D108: 16 | E108: Rohfett_gkg | F108: g/kg | H108: 90
A109: Legehenne | B109: Aufzucht 2 | C109: 6 | D109: 16 | E109: Rohfaser_gkg | F109: g/kg | H109: 60
A110: Legehenne | B110: Legephase | C110: 16 | D110: 80 | E110: ME | F110: MJ/kg | G110: 11.5 | H110: =IF(tblAnforderungen[[#This Row],[Min]]="","",IF(tblAnforderungen[[#This Row],[Parameter]]="ME",tblAnforderungen[[#This Row],[Min]]+0.7,IF(tblAnforderungen[[#This Row],[Parameter]]="XP",tblAnforderungen[[#This Row],[Min]]*1.3,IF(tblAnforderungen[[#This Row],[Parameter]]="Lysin_gkg",tblAnforderungen[[#This Row],[Min]]*1.25,IF(tblAnforderungen[[#This Row],[Parameter]]="Methionin_gkg",tblAnforderungen[[#This Row],[Min]]*1.25,IF(tblAnforderungen[[#This Row],[Parameter]]="MetCys_gkg",tblAnforderungen[[#This Row],[Min]]*1.25,IF(tblAnforderungen[[#This Row],[Parameter]]="Rohfett_gkg",tblAnforderungen[[#This Row],[Min]]*2,IF(tblAnforderungen[[#This Row],[Parameter]]="Rohfaser_gkg",tblAnforderungen[[#This Row],[Min]]*2,IF(tblAnforderungen[[#This Row],[Parameter]]="Ca_gkg",tblAnforderungen[[#This Row],[Min]]*1.4,IF(tblAnforderungen[[#This Row],[Parameter]]="Pverd_gkg",tblAnforderungen[[#This Row],[Min]]*1.3,IF(tblAnforderungen[[#This Row],[Parameter]]="Na_gkg",tblAnforderungen[[#This Row],[Min]]*1.3,tblAnforderungen[[#This Row],[Min]]*1.3))))))))))) -> 12.2
A111: Legehenne | B111: Legephase | C111: 16 | D111: 80 | E111: XP | F111: g/kg | G111: 170 | H111: =IF(tblAnforderungen[[#This Row],[Min]]="","",IF(tblAnforderungen[[#This Row],[Parameter]]="ME",tblAnforderungen[[#This Row],[Min]]+0.7,IF(tblAnforderungen[[#This Row],[Parameter]]="XP",tblAnforderungen[[#This Row],[Min]]*1.3,IF(tblAnforderungen[[#This Row],[Parameter]]="Lysin_gkg",tblAnforderungen[[#This Row],[Min]]*1.25,IF(tblAnforderungen[[#This Row],[Parameter]]="Methionin_gkg",tblAnforderungen[[#This Row],[Min]]*1.25,IF(tblAnforderungen[[#This Row],[Parameter]]="MetCys_gkg",tblAnforderungen[[#This Row],[Min]]*1.25,IF(tblAnforderungen[[#This Row],[Parameter]]="Rohfett_gkg",tblAnforderungen[[#This Row],[Min]]*2,IF(tblAnforderungen[[#This Row],[Parameter]]="Rohfaser_gkg",tblAnforderungen[[#This Row],[Min]]*2,IF(tblAnforderungen[[#This Row],[Parameter]]="Ca_gkg",tblAnforderungen[[#This Row],[Min]]*1.4,IF(tblAnforderungen[[#This Row],[Parameter]]="Pverd_gkg",tblAnforderungen[[#This Row],[Min]]*1.3,IF(tblAnforderungen[[#This Row],[Parameter]]="Na_gkg",tblAnforderungen[[#This Row],[Min]]*1.3,tblAnforderungen[[#This Row],[Min]]*1.3))))))))))) -> 221
A112: Legehenne | B112: Legephase | C112: 16 | D112: 80 | E112: Lysin_gkg | F112: g/kg | G112: 8 | H112: =IF(tblAnforderungen[[#This Row],[Min]]="","",IF(tblAnforderungen[[#This Row],[Parameter]]="ME",tblAnforderungen[[#This Row],[Min]]+0.7,IF(tblAnforderungen[[#This Row],[Parameter]]="XP",tblAnforderungen[[#This Row],[Min]]*1.3,IF(tblAnforderungen[[#This Row],[Parameter]]="Lysin_gkg",tblAnforderungen[[#This Row],[Min]]*1.25,IF(tblAnforderungen[[#This Row],[Parameter]]="Methionin_gkg",tblAnforderungen[[#This Row],[Min]]*1.25,IF(tblAnforderungen[[#This Row],[Parameter]]="MetCys_gkg",tblAnforderungen[[#This Row],[Min]]*1.25,IF(tblAnforderungen[[#This Row],[Parameter]]="Rohfett_gkg",tblAnforderungen[[#This Row],[Min]]*2,IF(tblAnforderungen[[#This Row],[Parameter]]="Rohfaser_gkg",tblAnforderungen[[#This Row],[Min]]*2,IF(tblAnforderungen[[#This Row],[Parameter]]="Ca_gkg",tblAnforderungen[[#This Row],[Min]]*1.4,IF(tblAnforderungen[[#This Row],[Parameter]]="Pverd_gkg",tblAnforderungen[[#This Row],[Min]]*1.3,IF(tblAnforderungen[[#This Row],[Parameter]]="Na_gkg",tblAnforderungen[[#This Row],[Min]]*1.3,tblAnforderungen[[#This Row],[Min]]*1.3))))))))))) -> 10
A113: Legehenne | B113: Legephase | C113: 16 | D113: 80 | E113: MetCys_gkg | F113: g/kg | G113: 6.5 | H113: =IF(tblAnforderungen[[#This Row],[Min]]="","",IF(tblAnforderungen[[#This Row],[Parameter]]="ME",tblAnforderungen[[#This Row],[Min]]+0.7,IF(tblAnforderungen[[#This Row],[Parameter]]="XP",tblAnforderungen[[#This Row],[Min]]*1.3,IF(tblAnforderungen[[#This Row],[Parameter]]="Lysin_gkg",tblAnforderungen[[#This Row],[Min]]*1.25,IF(tblAnforderungen[[#This Row],[Parameter]]="Methionin_gkg",tblAnforderungen[[#This Row],[Min]]*1.25,IF(tblAnforderungen[[#This Row],[Parameter]]="MetCys_gkg",tblAnforderungen[[#This Row],[Min]]*1.25,IF(tblAnforderungen[[#This Row],[Parameter]]="Rohfett_gkg",tblAnforderungen[[#This Row],[Min]]*2,IF(tblAnforderungen[[#This Row],[Parameter]]="Rohfaser_gkg",tblAnforderungen[[#This Row],[Min]]*2,IF(tblAnforderungen[[#This Row],[Parameter]]="Ca_gkg",tblAnforderungen[[#This Row],[Min]]*1.4,IF(tblAnforderungen[[#This Row],[Parameter]]="Pverd_gkg",tblAnforderungen[[#This Row],[Min]]*1.3,IF(tblAnforderungen[[#This Row],[Parameter]]="Na_gkg",tblAnforderungen[[#This Row],[Min]]*1.3,tblAnforderungen[[#This Row],[Min]]*1.3))))))))))) -> 8.125
A114: Legehenne | B114: Legephase | C114: 16 | D114: 80 | E114: Ca_gkg | F114: g/kg | G114: 33 | H114: 42
A115: Legehenne | B115: Legephase | C115: 16 | D115: 80 | E115: Pverd_gkg | F115: g/kg | G115: 3.8 | H115: =IF(tblAnforderungen[[#This Row],[Min]]="","",IF(tblAnforderungen[[#This Row],[Parameter]]="ME",tblAnforderungen[[#This Row],[Min]]+0.7,IF(tblAnforderungen[[#This Row],[Parameter]]="XP",tblAnforderungen[[#This Row],[Min]]*1.3,IF(tblAnforderungen[[#This Row],[Parameter]]="Lysin_gkg",tblAnforderungen[[#This Row],[Min]]*1.25,IF(tblAnforderungen[[#This Row],[Parameter]]="Methionin_gkg",tblAnforderungen[[#This Row],[Min]]*1.25,IF(tblAnforderungen[[#This Row],[Parameter]]="MetCys_gkg",tblAnforderungen[[#This Row],[Min]]*1.25,IF(tblAnforderungen[[#This Row],[Parameter]]="Rohfett_gkg",tblAnforderungen[[#This Row],[Min]]*2,IF(tblAnforderungen[[#This Row],[Parameter]]="Rohfaser_gkg",tblAnforderungen[[#This Row],[Min]]*2,IF(tblAnforderungen[[#This Row],[Parameter]]="Ca_gkg",tblAnforderungen[[#This Row],[Min]]*1.4,IF(tblAnforderungen[[#This Row],[Parameter]]="Pverd_gkg",tblAnforderungen[[#This Row],[Min]]*1.3,IF(tblAnforderungen[[#This Row],[Parameter]]="Na_gkg",tblAnforderungen[[#This Row],[Min]]*1.3,tblAnforderungen[[#This Row],[Min]]*1.3))))))))))) -> 4.94
A116: Legehenne | B116: Legephase | C116: 16 | D116: 80 | E116: Na_gkg | F116: g/kg | G116: 1.5 | H116: 2
A117: Legehenne | B117: Legephase | C117: 16 | D117: 80 | E117: Rohfett_gkg | F117: g/kg | H117: 90
A118: Legehenne | B118: Legephase | C118: 16 | D118: 80 | E118: Rohfaser_gkg | F118: g/kg | H118: 65
A119: Schwein | B119: Vorstarter | C119: 0 | D119: 4 | E119: ME | F119: MJ/kg | G119: 14.2 | H119: =IF(tblAnforderungen[[#This Row],[Min]]="","",IF(tblAnforderungen[[#This Row],[Parameter]]="ME",tblAnforderungen[[#This Row],[Min]]+0.7,IF(tblAnforderungen[[#This Row],[Parameter]]="XP",tblAnforderungen[[#This Row],[Min]]*1.3,IF(tblAnforderungen[[#This Row],[Parameter]]="Lysin_gkg",tblAnforderungen[[#This Row],[Min]]*1.25,IF(tblAnforderungen[[#This Row],[Parameter]]="Methionin_gkg",tblAnforderungen[[#This Row],[Min]]*1.25,IF(tblAnforderungen[[#This Row],[Parameter]]="MetCys_gkg",tblAnforderungen[[#This Row],[Min]]*1.25,IF(tblAnforderungen[[#This Row],[Parameter]]="Rohfett_gkg",tblAnforderungen[[#This Row],[Min]]*2,IF(tblAnforderungen[[#This Row],[Parameter]]="Rohfaser_gkg",tblAnforderungen[[#This Row],[Min]]*2,IF(tblAnforderungen[[#This Row],[Parameter]]="Ca_gkg",tblAnforderungen[[#This Row],[Min]]*1.4,IF(tblAnforderungen[[#This Row],[Parameter]]="Pverd_gkg",tblAnforderungen[[#This Row],[Min]]*1.3,IF(tblAnforderungen[[#This Row],[Parameter]]="Na_gkg",tblAnforderungen[[#This Row],[Min]]*1.3,tblAnforderungen[[#This Row],[Min]]*1.3))))))))))) -> 14.9
A120: Schwein | B120: Vorstarter | C120: 0 | D120: 4 | E120: XP | F120: g/kg | G120: 190 | H120: =IF(tblAnforderungen[[#This Row],[Min]]="","",IF(tblAnforderungen[[#This Row],[Parameter]]="ME",tblAnforderungen[[#This Row],[Min]]+0.7,IF(tblAnforderungen[[#This Row],[Parameter]]="XP",tblAnforderungen[[#This Row],[Min]]*1.3,IF(tblAnforderungen[[#This Row],[Parameter]]="Lysin_gkg",tblAnforderungen[[#This Row],[Min]]*1.25,IF(tblAnforderungen[[#This Row],[Parameter]]="Methionin_gkg",tblAnforderungen[[#This Row],[Min]]*1.25,IF(tblAnforderungen[[#This Row],[Parameter]]="MetCys_gkg",tblAnforderungen[[#This Row],[Min]]*1.25,IF(tblAnforderungen[[#This Row],[Parameter]]="Rohfett_gkg",tblAnforderungen[[#This Row],[Min]]*2,IF(tblAnforderungen[[#This Row],[Parameter]]="Rohfaser_gkg",tblAnforderungen[[#This Row],[Min]]*2,IF(tblAnforderungen[[#This Row],[Parameter]]="Ca_gkg",tblAnforderungen[[#This Row],[Min]]*1.4,IF(tblAnforderungen[[#This Row],[Parameter]]="Pverd_gkg",tblAnforderungen[[#This Row],[Min]]*1.3,IF(tblAnforderungen[[#This Row],[Parameter]]="Na_gkg",tblAnforderungen[[#This Row],[Min]]*1.3,tblAnforderungen[[#This Row],[Min]]*1.3))))))))))) -> 247
A121: Schwein | B121: Vorstarter | C121: 0 | D121: 4 | E121: Lysin_gkg | F121: g/kg | G121: 13 | H121: =IF(tblAnforderungen[[#This Row],[Min]]="","",IF(tblAnforderungen[[#This Row],[Parameter]]="ME",tblAnforderungen[[#This Row],[Min]]+0.7,IF(tblAnforderungen[[#This Row],[Parameter]]="XP",tblAnforderungen[[#This Row],[Min]]*1.3,IF(tblAnforderungen[[#This Row],[Parameter]]="Lysin_gkg",tblAnforderungen[[#This Row],[Min]]*1.25,IF(tblAnforderungen[[#This Row],[Parameter]]="Methionin_gkg",tblAnforderungen[[#This Row],[Min]]*1.25,IF(tblAnforderungen[[#This Row],[Parameter]]="MetCys_gkg",tblAnforderungen[[#This Row],[Min]]*1.25,IF(tblAnforderungen[[#This Row],[Parameter]]="Rohfett_gkg",tblAnforderungen[[#This Row],[Min]]*2,IF(tblAnforderungen[[#This Row],[Parameter]]="Rohfaser_gkg",tblAnforderungen[[#This Row],[Min]]*2,IF(tblAnforderungen[[#This Row],[Parameter]]="Ca_gkg",tblAnforderungen[[#This Row],[Min]]*1.4,IF(tblAnforderungen[[#This Row],[Parameter]]="Pverd_gkg",tblAnforderungen[[#This Row],[Min]]*1.3,IF(tblAnforderungen[[#This Row],[Parameter]]="Na_gkg",tblAnforderungen[[#This Row],[Min]]*1.3,tblAnforderungen[[#This Row],[Min]]*1.3))))))))))) -> 16.25
A122: Schwein | B122: Vorstarter | C122: 0 | D122: 4 | E122: MetCys_gkg | F122: g/kg | G122: 7.5 | H122: =IF(tblAnforderungen[[#This Row],[Min]]="","",IF(tblAnforderungen[[#This Row],[Parameter]]="ME",tblAnforderungen[[#This Row],[Min]]+0.7,IF(tblAnforderungen[[#This Row],[Parameter]]="XP",tblAnforderungen[[#This Row],[Min]]*1.3,IF(tblAnforderungen[[#This Row],[Parameter]]="Lysin_gkg",tblAnforderungen[[#This Row],[Min]]*1.25,IF(tblAnforderungen[[#This Row],[Parameter]]="Methionin_gkg",tblAnforderungen[[#This Row],[Min]]*1.25,IF(tblAnforderungen[[#This Row],[Parameter]]="MetCys_gkg",tblAnforderungen[[#This Row],[Min]]*1.25,IF(tblAnforderungen[[#This Row],[Parameter]]="Rohfett_gkg",tblAnforderungen[[#This Row],[Min]]*2,IF(tblAnforderungen[[#This Row],[Parameter]]="Rohfaser_gkg",tblAnforderungen[[#This Row],[Min]]*2,IF(tblAnforderungen[[#This Row],[Parameter]]="Ca_gkg",tblAnforderungen[[#This Row],[Min]]*1.4,IF(tblAnforderungen[[#This Row],[Parameter]]="Pverd_gkg",tblAnforderungen[[#This Row],[Min]]*1.3,IF(tblAnforderungen[[#This Row],[Parameter]]="Na_gkg",tblAnforderungen[[#This Row],[Min]]*1.3,tblAnforderungen[[#This Row],[Min]]*1.3))))))))))) -> 9.375
A123: Schwein | B123: Vorstarter | C123: 0 | D123: 4 | E123: Ca_gkg | F123: g/kg | G123: 7 | H123: 9
A124: Schwein | B124: Vorstarter | C124: 0 | D124: 4 | E124: Pverd_gkg | F124: g/kg | G124: 3.8 | H124: =IF(tblAnforderungen[[#This Row],[Min]]="","",IF(tblAnforderungen[[#This Row],[Parameter]]="ME",tblAnforderungen[[#This Row],[Min]]+0.7,IF(tblAnforderungen[[#This Row],[Parameter]]="XP",tblAnforderungen[[#This Row],[Min]]*1.3,IF(tblAnforderungen[[#This Row],[Parameter]]="Lysin_gkg",tblAnforderungen[[#This Row],[Min]]*1.25,IF(tblAnforderungen[[#This Row],[Parameter]]="Methionin_gkg",tblAnforderungen[[#This Row],[Min]]*1.25,IF(tblAnforderungen[[#This Row],[Parameter]]="MetCys_gkg",tblAnforderungen[[#This Row],[Min]]*1.25,IF(tblAnforderungen[[#This Row],[Parameter]]="Rohfett_gkg",tblAnforderungen[[#This Row],[Min]]*2,IF(tblAnforderungen[[#This Row],[Parameter]]="Rohfaser_gkg",tblAnforderungen[[#This Row],[Min]]*2,IF(tblAnforderungen[[#This Row],[Parameter]]="Ca_gkg",tblAnforderungen[[#This Row],[Min]]*1.4,IF(tblAnforderungen[[#This Row],[Parameter]]="Pverd_gkg",tblAnforderungen[[#This Row],[Min]]*1.3,IF(tblAnforderungen[[#This Row],[Parameter]]="Na_gkg",tblAnforderungen[[#This Row],[Min]]*1.3,tblAnforderungen[[#This Row],[Min]]*1.3))))))))))) -> 4.94
A125: Schwein | B125: Vorstarter | C125: 0 | D125: 4 | E125: Na_gkg | F125: g/kg | G125: 1.7 | H125: 2
A126: Schwein | B126: Vorstarter | C126: 0 | D126: 4 | E126: Rohfett_gkg | F126: g/kg | H126: 80
A127: Schwein | B127: Vorstarter | C127: 0 | D127: 4 | E127: Rohfaser_gkg | F127: g/kg | H127: 45
A128: Schwein | B128: Ferkel | C128: 4 | D128: 8 | E128: ME | F128: MJ/kg | G128: 13.8 | H128: =IF(tblAnforderungen[[#This Row],[Min]]="","",IF(tblAnforderungen[[#This Row],[Parameter]]="ME",tblAnforderungen[[#This Row],[Min]]+0.7,IF(tblAnforderungen[[#This Row],[Parameter]]="XP",tblAnforderungen[[#This Row],[Min]]*1.3,IF(tblAnforderungen[[#This Row],[Parameter]]="Lysin_gkg",tblAnforderungen[[#This Row],[Min]]*1.25,IF(tblAnforderungen[[#This Row],[Parameter]]="Methionin_gkg",tblAnforderungen[[#This Row],[Min]]*1.25,IF(tblAnforderungen[[#This Row],[Parameter]]="MetCys_gkg",tblAnforderungen[[#This Row],[Min]]*1.25,IF(tblAnforderungen[[#This Row],[Parameter]]="Rohfett_gkg",tblAnforderungen[[#This Row],[Min]]*2,IF(tblAnforderungen[[#This Row],[Parameter]]="Rohfaser_gkg",tblAnforderungen[[#This Row],[Min]]*2,IF(tblAnforderungen[[#This Row],[Parameter]]="Ca_gkg",tblAnforderungen[[#This Row],[Min]]*1.4,IF(tblAnforderungen[[#This Row],[Parameter]]="Pverd_gkg",tblAnforderungen[[#This Row],[Min]]*1.3,IF(tblAnforderungen[[#This Row],[Parameter]]="Na_gkg",tblAnforderungen[[#This Row],[Min]]*1.3,tblAnforderungen[[#This Row],[Min]]*1.3))))))))))) -> 14.5
A129: Schwein | B129: Ferkel | C129: 4 | D129: 8 | E129: XP | F129: g/kg | G129: 180 | H129: =IF(tblAnforderungen[[#This Row],[Min]]="","",IF(tblAnforderungen[[#This Row],[Parameter]]="ME",tblAnforderungen[[#This Row],[Min]]+0.7,IF(tblAnforderungen[[#This Row],[Parameter]]="XP",tblAnforderungen[[#This Row],[Min]]*1.3,IF(tblAnforderungen[[#This Row],[Parameter]]="Lysin_gkg",tblAnforderungen[[#This Row],[Min]]*1.25,IF(tblAnforderungen[[#This Row],[Parameter]]="Methionin_gkg",tblAnforderungen[[#This Row],[Min]]*1.25,IF(tblAnforderungen[[#This Row],[Parameter]]="MetCys_gkg",tblAnforderungen[[#This Row],[Min]]*1.25,IF(tblAnforderungen[[#This Row],[Parameter]]="Rohfett_gkg",tblAnforderungen[[#This Row],[Min]]*2,IF(tblAnforderungen[[#This Row],[Parameter]]="Rohfaser_gkg",tblAnforderungen[[#This Row],[Min]]*2,IF(tblAnforderungen[[#This Row],[Parameter]]="Ca_gkg",tblAnforderungen[[#This Row],[Min]]*1.4,IF(tblAnforderungen[[#This Row],[Parameter]]="Pverd_gkg",tblAnforderungen[[#This Row],[Min]]*1.3,IF(tblAnforderungen[[#This Row],[Parameter]]="Na_gkg",tblAnforderungen[[#This Row],[Min]]*1.3,tblAnforderungen[[#This Row],[Min]]*1.3))))))))))) -> 234
A130: Schwein | B130: Ferkel | C130: 4 | D130: 8 | E130: Lysin_gkg | F130: g/kg | G130: 12 | H130: =IF(tblAnforderungen[[#This Row],[Min]]="","",IF(tblAnforderungen[[#This Row],[Parameter]]="ME",tblAnforderungen[[#This Row],[Min]]+0.7,IF(tblAnforderungen[[#This Row],[Parameter]]="XP",tblAnforderungen[[#This Row],[Min]]*1.3,IF(tblAnforderungen[[#This Row],[Parameter]]="Lysin_gkg",tblAnforderungen[[#This Row],[Min]]*1.25,IF(tblAnforderungen[[#This Row],[Parameter]]="Methionin_gkg",tblAnforderungen[[#This Row],[Min]]*1.25,IF(tblAnforderungen[[#This Row],[Parameter]]="MetCys_gkg",tblAnforderungen[[#This Row],[Min]]*1.25,IF(tblAnforderungen[[#This Row],[Parameter]]="Rohfett_gkg",tblAnforderungen[[#This Row],[Min]]*2,IF(tblAnforderungen[[#This Row],[Parameter]]="Rohfaser_gkg",tblAnforderungen[[#This Row],[Min]]*2,IF(tblAnforderungen[[#This Row],[Parameter]]="Ca_gkg",tblAnforderungen[[#This Row],[Min]]*1.4,IF(tblAnforderungen[[#This Row],[Parameter]]="Pverd_gkg",tblAnforderungen[[#This Row],[Min]]*1.3,IF(tblAnforderungen[[#This Row],[Parameter]]="Na_gkg",tblAnforderungen[[#This Row],[Min]]*1.3,tblAnforderungen[[#This Row],[Min]]*1.3))))))))))) -> 15
A131: Schwein | B131: Ferkel | C131: 4 | D131: 8 | E131: MetCys_gkg | F131: g/kg | G131: 7 | H131: =IF(tblAnforderungen[[#This Row],[Min]]="","",IF(tblAnforderungen[[#This Row],[Parameter]]="ME",tblAnforderungen[[#This Row],[Min]]+0.7,IF(tblAnforderungen[[#This Row],[Parameter]]="XP",tblAnforderungen[[#This Row],[Min]]*1.3,IF(tblAnforderungen[[#This Row],[Parameter]]="Lysin_gkg",tblAnforderungen[[#This Row],[Min]]*1.25,IF(tblAnforderungen[[#This Row],[Parameter]]="Methionin_gkg",tblAnforderungen[[#This Row],[Min]]*1.25,IF(tblAnforderungen[[#This Row],[Parameter]]="MetCys_gkg",tblAnforderungen[[#This Row],[Min]]*1.25,IF(tblAnforderungen[[#This Row],[Parameter]]="Rohfett_gkg",tblAnforderungen[[#This Row],[Min]]*2,IF(tblAnforderungen[[#This Row],[Parameter]]="Rohfaser_gkg",tblAnforderungen[[#This Row],[Min]]*2,IF(tblAnforderungen[[#This Row],[Parameter]]="Ca_gkg",tblAnforderungen[[#This Row],[Min]]*1.4,IF(tblAnforderungen[[#This Row],[Parameter]]="Pverd_gkg",tblAnforderungen[[#This Row],[Min]]*1.3,IF(tblAnforderungen[[#This Row],[Parameter]]="Na_gkg",tblAnforderungen[[#This Row],[Min]]*1.3,tblAnforderungen[[#This Row],[Min]]*1.3))))))))))) -> 8.75
A132: Schwein | B132: Ferkel | C132: 4 | D132: 8 | E132: Ca_gkg | F132: g/kg | G132: 6.5 | H132: 8.5
A133: Schwein | B133: Ferkel | C133: 4 | D133: 8 | E133: Pverd_gkg | F133: g/kg | G133: 3.5 | H133: =IF(tblAnforderungen[[#This Row],[Min]]="","",IF(tblAnforderungen[[#This Row],[Parameter]]="ME",tblAnforderungen[[#This Row],[Min]]+0.7,IF(tblAnforderungen[[#This Row],[Parameter]]="XP",tblAnforderungen[[#This Row],[Min]]*1.3,IF(tblAnforderungen[[#This Row],[Parameter]]="Lysin_gkg",tblAnforderungen[[#This Row],[Min]]*1.25,IF(tblAnforderungen[[#This Row],[Parameter]]="Methionin_gkg",tblAnforderungen[[#This Row],[Min]]*1.25,IF(tblAnforderungen[[#This Row],[Parameter]]="MetCys_gkg",tblAnforderungen[[#This Row],[Min]]*1.25,IF(tblAnforderungen[[#This Row],[Parameter]]="Rohfett_gkg",tblAnforderungen[[#This Row],[Min]]*2,IF(tblAnforderungen[[#This Row],[Parameter]]="Rohfaser_gkg",tblAnforderungen[[#This Row],[Min]]*2,IF(tblAnforderungen[[#This Row],[Parameter]]="Ca_gkg",tblAnforderungen[[#This Row],[Min]]*1.4,IF(tblAnforderungen[[#This Row],[Parameter]]="Pverd_gkg",tblAnforderungen[[#This Row],[Min]]*1.3,IF(tblAnforderungen[[#This Row],[Parameter]]="Na_gkg",tblAnforderungen[[#This Row],[Min]]*1.3,tblAnforderungen[[#This Row],[Min]]*1.3))))))))))) -> 4.55
A134: Schwein | B134: Ferkel | C134: 4 | D134: 8 | E134: Na_gkg | F134: g/kg | G134: 1.6 | H134: 1.9
A135: Schwein | B135: Ferkel | C135: 4 | D135: 8 | E135: Rohfett_gkg | F135: g/kg | H135: 80
A136: Schwein | B136: Ferkel | C136: 4 | D136: 8 | E136: Rohfaser_gkg | F136: g/kg | H136: 50
A137: Schwein | B137: Aufzucht | C137: 8 | D137: 30 | E137: ME | F137: MJ/kg | G137: 13.4 | H137: =IF(tblAnforderungen[[#This Row],[Min]]="","",IF(tblAnforderungen[[#This Row],[Parameter]]="ME",tblAnforderungen[[#This Row],[Min]]+0.7,IF(tblAnforderungen[[#This Row],[Parameter]]="XP",tblAnforderungen[[#This Row],[Min]]*1.3,IF(tblAnforderungen[[#This Row],[Parameter]]="Lysin_gkg",tblAnforderungen[[#This Row],[Min]]*1.25,IF(tblAnforderungen[[#This Row],[Parameter]]="Methionin_gkg",tblAnforderungen[[#This Row],[Min]]*1.25,IF(tblAnforderungen[[#This Row],[Parameter]]="MetCys_gkg",tblAnforderungen[[#This Row],[Min]]*1.25,IF(tblAnforderungen[[#This Row],[Parameter]]="Rohfett_gkg",tblAnforderungen[[#This Row],[Min]]*2,IF(tblAnforderungen[[#This Row],[Parameter]]="Rohfaser_gkg",tblAnforderungen[[#This Row],[Min]]*2,IF(tblAnforderungen[[#This Row],[Parameter]]="Ca_gkg",tblAnforderungen[[#This Row],[Min]]*1.4,IF(tblAnforderungen[[#This Row],[Parameter]]="Pverd_gkg",tblAnforderungen[[#This Row],[Min]]*1.3,IF(tblAnforderungen[[#This Row],[Parameter]]="Na_gkg",tblAnforderungen[[#This Row],[Min]]*1.3,tblAnforderungen[[#This Row],[Min]]*1.3))))))))))) -> 14.1
A138: Schwein | B138: Aufzucht | C138: 8 | D138: 30 | E138: XP | F138: g/kg | G138: 165 | H138: =IF(tblAnforderungen[[#This Row],[Min]]="","",IF(tblAnforderungen[[#This Row],[Parameter]]="ME",tblAnforderungen[[#This Row],[Min]]+0.7,IF(tblAnforderungen[[#This Row],[Parameter]]="XP",tblAnforderungen[[#This Row],[Min]]*1.3,IF(tblAnforderungen[[#This Row],[Parameter]]="Lysin_gkg",tblAnforderungen[[#This Row],[Min]]*1.25,IF(tblAnforderungen[[#This Row],[Parameter]]="Methionin_gkg",tblAnforderungen[[#This Row],[Min]]*1.25,IF(tblAnforderungen[[#This Row],[Parameter]]="MetCys_gkg",tblAnforderungen[[#This Row],[Min]]*1.25,IF(tblAnforderungen[[#This Row],[Parameter]]="Rohfett_gkg",tblAnforderungen[[#This Row],[Min]]*2,IF(tblAnforderungen[[#This Row],[Parameter]]="Rohfaser_gkg",tblAnforderungen[[#This Row],[Min]]*2,IF(tblAnforderungen[[#This Row],[Parameter]]="Ca_gkg",tblAnforderungen[[#This Row],[Min]]*1.4,IF(tblAnforderungen[[#This Row],[Parameter]]="Pverd_gkg",tblAnforderungen[[#This Row],[Min]]*1.3,IF(tblAnforderungen[[#This Row],[Parameter]]="Na_gkg",tblAnforderungen[[#This Row],[Min]]*1.3,tblAnforderungen[[#This Row],[Min]]*1.3))))))))))) -> 214.5
A139: Schwein | B139: Aufzucht | C139: 8 | D139: 30 | E139: Lysin_gkg | F139: g/kg | G139: 10.5 | H139: =IF(tblAnforderungen[[#This Row],[Min]]="","",IF(tblAnforderungen[[#This Row],[Parameter]]="ME",tblAnforderungen[[#This Row],[Min]]+0.7,IF(tblAnforderungen[[#This Row],[Parameter]]="XP",tblAnforderungen[[#This Row],[Min]]*1.3,IF(tblAnforderungen[[#This Row],[Parameter]]="Lysin_gkg",tblAnforderungen[[#This Row],[Min]]*1.25,IF(tblAnforderungen[[#This Row],[Parameter]]="Methionin_gkg",tblAnforderungen[[#This Row],[Min]]*1.25,IF(tblAnforderungen[[#This Row],[Parameter]]="MetCys_gkg",tblAnforderungen[[#This Row],[Min]]*1.25,IF(tblAnforderungen[[#This Row],[Parameter]]="Rohfett_gkg",tblAnforderungen[[#This Row],[Min]]*2,IF(tblAnforderungen[[#This Row],[Parameter]]="Rohfaser_gkg",tblAnforderungen[[#This Row],[Min]]*2,IF(tblAnforderungen[[#This Row],[Parameter]]="Ca_gkg",tblAnforderungen[[#This Row],[Min]]*1.4,IF(tblAnforderungen[[#This Row],[Parameter]]="Pverd_gkg",tblAnforderungen[[#This Row],[Min]]*1.3,IF(tblAnforderungen[[#This Row],[Parameter]]="Na_gkg",tblAnforderungen[[#This Row],[Min]]*1.3,tblAnforderungen[[#This Row],[Min]]*1.3))))))))))) -> 13.125
A140: Schwein | B140: Aufzucht | C140: 8 | D140: 30 | E140: MetCys_gkg | F140: g/kg | G140: 6.5 | H140: =IF(tblAnforderungen[[#This Row],[Min]]="","",IF(tblAnforderungen[[#This Row],[Parameter]]="ME",tblAnforderungen[[#This Row],[Min]]+0.7,IF(tblAnforderungen[[#This Row],[Parameter]]="XP",tblAnforderungen[[#This Row],[Min]]*1.3,IF(tblAnforderungen[[#This Row],[Parameter]]="Lysin_gkg",tblAnforderungen[[#This Row],[Min]]*1.25,IF(tblAnforderungen[[#This Row],[Parameter]]="Methionin_gkg",tblAnforderungen[[#This Row],[Min]]*1.25,IF(tblAnforderungen[[#This Row],[Parameter]]="MetCys_gkg",tblAnforderungen[[#This Row],[Min]]*1.25,IF(tblAnforderungen[[#This Row],[Parameter]]="Rohfett_gkg",tblAnforderungen[[#This Row],[Min]]*2,IF(tblAnforderungen[[#This Row],[Parameter]]="Rohfaser_gkg",tblAnforderungen[[#This Row],[Min]]*2,IF(tblAnforderungen[[#This Row],[Parameter]]="Ca_gkg",tblAnforderungen[[#This Row],[Min]]*1.4,IF(tblAnforderungen[[#This Row],[Parameter]]="Pverd_gkg",tblAnforderungen[[#This Row],[Min]]*1.3,IF(tblAnforderungen[[#This Row],[Parameter]]="Na_gkg",tblAnforderungen[[#This Row],[Min]]*1.3,tblAnforderungen[[#This Row],[Min]]*1.3))))))))))) -> 8.125
A141: Schwein | B141: Aufzucht | C141: 8 | D141: 30 | E141: Ca_gkg | F141: g/kg | G141: 6 | H141: 8
A142: Schwein | B142: Aufzucht | C142: 8 | D142: 30 | E142: Pverd_gkg | F142: g/kg | G142: 3.2 | H142: =IF(tblAnforderungen[[#This Row],[Min]]="","",IF(tblAnforderungen[[#This Row],[Parameter]]="ME",tblAnforderungen[[#This Row],[Min]]+0.7,IF(tblAnforderungen[[#This Row],[Parameter]]="XP",tblAnforderungen[[#This Row],[Min]]*1.3,IF(tblAnforderungen[[#This Row],[Parameter]]="Lysin_gkg",tblAnforderungen[[#This Row],[Min]]*1.25,IF(tblAnforderungen[[#This Row],[Parameter]]="Methionin_gkg",tblAnforderungen[[#This Row],[Min]]*1.25,IF(tblAnforderungen[[#This Row],[Parameter]]="MetCys_gkg",tblAnforderungen[[#This Row],[Min]]*1.25,IF(tblAnforderungen[[#This Row],[Parameter]]="Rohfett_gkg",tblAnforderungen[[#This Row],[Min]]*2,IF(tblAnforderungen[[#This Row],[Parameter]]="Rohfaser_gkg",tblAnforderungen[[#This Row],[Min]]*2,IF(tblAnforderungen[[#This Row],[Parameter]]="Ca_gkg",tblAnforderungen[[#This Row],[Min]]*1.4,IF(tblAnforderungen[[#This Row],[Parameter]]="Pverd_gkg",tblAnforderungen[[#This Row],[Min]]*1.3,IF(tblAnforderungen[[#This Row],[Parameter]]="Na_gkg",tblAnforderungen[[#This Row],[Min]]*1.3,tblAnforderungen[[#This Row],[Min]]*1.3))))))))))) -> 4.16
A143: Schwein | B143: Aufzucht | C143: 8 | D143: 30 | E143: Na_gkg | F143: g/kg | G143: 1.5 | H143: 1.8
A144: Schwein | B144: Aufzucht | C144: 8 | D144: 30 | E144: Rohfett_gkg | F144: g/kg | H144: 80
A145: Schwein | B145: Aufzucht | C145: 8 | D145: 30 | E145: Rohfaser_gkg | F145: g/kg | H145: 55
A146: Schwein | B146: Mast | C146: 30 | D146: 120 | E146: ME | F146: MJ/kg | G146: 13 | H146: =IF(tblAnforderungen[[#This Row],[Min]]="","",IF(tblAnforderungen[[#This Row],[Parameter]]="ME",tblAnforderungen[[#This Row],[Min]]+0.7,IF(tblAnforderungen[[#This Row],[Parameter]]="XP",tblAnforderungen[[#This Row],[Min]]*1.3,IF(tblAnforderungen[[#This Row],[Parameter]]="Lysin_gkg",tblAnforderungen[[#This Row],[Min]]*1.25,IF(tblAnforderungen[[#This Row],[Parameter]]="Methionin_gkg",tblAnforderungen[[#This Row],[Min]]*1.25,IF(tblAnforderungen[[#This Row],[Parameter]]="MetCys_gkg",tblAnforderungen[[#This Row],[Min]]*1.25,IF(tblAnforderungen[[#This Row],[Parameter]]="Rohfett_gkg",tblAnforderungen[[#This Row],[Min]]*2,IF(tblAnforderungen[[#This Row],[Parameter]]="Rohfaser_gkg",tblAnforderungen[[#This Row],[Min]]*2,IF(tblAnforderungen[[#This Row],[Parameter]]="Ca_gkg",tblAnforderungen[[#This Row],[Min]]*1.4,IF(tblAnforderungen[[#This Row],[Parameter]]="Pverd_gkg",tblAnforderungen[[#This Row],[Min]]*1.3,IF(tblAnforderungen[[#This Row],[Parameter]]="Na_gkg",tblAnforderungen[[#This Row],[Min]]*1.3,tblAnforderungen[[#This Row],[Min]]*1.3))))))))))) -> 13.7
A147: Schwein | B147: Mast | C147: 30 | D147: 120 | E147: XP | F147: g/kg | G147: 155 | H147: =IF(tblAnforderungen[[#This Row],[Min]]="","",IF(tblAnforderungen[[#This Row],[Parameter]]="ME",tblAnforderungen[[#This Row],[Min]]+0.7,IF(tblAnforderungen[[#This Row],[Parameter]]="XP",tblAnforderungen[[#This Row],[Min]]*1.3,IF(tblAnforderungen[[#This Row],[Parameter]]="Lysin_gkg",tblAnforderungen[[#This Row],[Min]]*1.25,IF(tblAnforderungen[[#This Row],[Parameter]]="Methionin_gkg",tblAnforderungen[[#This Row],[Min]]*1.25,IF(tblAnforderungen[[#This Row],[Parameter]]="MetCys_gkg",tblAnforderungen[[#This Row],[Min]]*1.25,IF(tblAnforderungen[[#This Row],[Parameter]]="Rohfett_gkg",tblAnforderungen[[#This Row],[Min]]*2,IF(tblAnforderungen[[#This Row],[Parameter]]="Rohfaser_gkg",tblAnforderungen[[#This Row],[Min]]*2,IF(tblAnforderungen[[#This Row],[Parameter]]="Ca_gkg",tblAnforderungen[[#This Row],[Min]]*1.4,IF(tblAnforderungen[[#This Row],[Parameter]]="Pverd_gkg",tblAnforderungen[[#This Row],[Min]]*1.3,IF(tblAnforderungen[[#This Row],[Parameter]]="Na_gkg",tblAnforderungen[[#This Row],[Min]]*1.3,tblAnforderungen[[#This Row],[Min]]*1.3))))))))))) -> 201.5
A148: Schwein | B148: Mast | C148: 30 | D148: 120 | E148: Lysin_gkg | F148: g/kg | G148: 9 | H148: =IF(tblAnforderungen[[#This Row],[Min]]="","",IF(tblAnforderungen[[#This Row],[Parameter]]="ME",tblAnforderungen[[#This Row],[Min]]+0.7,IF(tblAnforderungen[[#This Row],[Parameter]]="XP",tblAnforderungen[[#This Row],[Min]]*1.3,IF(tblAnforderungen[[#This Row],[Parameter]]="Lysin_gkg",tblAnforderungen[[#This Row],[Min]]*1.25,IF(tblAnforderungen[[#This Row],[Parameter]]="Methionin_gkg",tblAnforderungen[[#This Row],[Min]]*1.25,IF(tblAnforderungen[[#This Row],[Parameter]]="MetCys_gkg",tblAnforderungen[[#This Row],[Min]]*1.25,IF(tblAnforderungen[[#This Row],[Parameter]]="Rohfett_gkg",tblAnforderungen[[#This Row],[Min]]*2,IF(tblAnforderungen[[#This Row],[Parameter]]="Rohfaser_gkg",tblAnforderungen[[#This Row],[Min]]*2,IF(tblAnforderungen[[#This Row],[Parameter]]="Ca_gkg",tblAnforderungen[[#This Row],[Min]]*1.4,IF(tblAnforderungen[[#This Row],[Parameter]]="Pverd_gkg",tblAnforderungen[[#This Row],[Min]]*1.3,IF(tblAnforderungen[[#This Row],[Parameter]]="Na_gkg",tblAnforderungen[[#This Row],[Min]]*1.3,tblAnforderungen[[#This Row],[Min]]*1.3))))))))))) -> 11.25
A149: Schwein | B149: Mast | C149: 30 | D149: 120 | E149: MetCys_gkg | F149: g/kg | G149: 6 | H149: =IF(tblAnforderungen[[#This Row],[Min]]="","",IF(tblAnforderungen[[#This Row],[Parameter]]="ME",tblAnforderungen[[#This Row],[Min]]+0.7,IF(tblAnforderungen[[#This Row],[Parameter]]="XP",tblAnforderungen[[#This Row],[Min]]*1.3,IF(tblAnforderungen[[#This Row],[Parameter]]="Lysin_gkg",tblAnforderungen[[#This Row],[Min]]*1.25,IF(tblAnforderungen[[#This Row],[Parameter]]="Methionin_gkg",tblAnforderungen[[#This Row],[Min]]*1.25,IF(tblAnforderungen[[#This Row],[Parameter]]="MetCys_gkg",tblAnforderungen[[#This Row],[Min]]*1.25,IF(tblAnforderungen[[#This Row],[Parameter]]="Rohfett_gkg",tblAnforderungen[[#This Row],[Min]]*2,IF(tblAnforderungen[[#This Row],[Parameter]]="Rohfaser_gkg",tblAnforderungen[[#This Row],[Min]]*2,IF(tblAnforderungen[[#This Row],[Parameter]]="Ca_gkg",tblAnforderungen[[#This Row],[Min]]*1.4,IF(tblAnforderungen[[#This Row],[Parameter]]="Pverd_gkg",tblAnforderungen[[#This Row],[Min]]*1.3,IF(tblAnforderungen[[#This Row],[Parameter]]="Na_gkg",tblAnforderungen[[#This Row],[Min]]*1.3,tblAnforderungen[[#This Row],[Min]]*1.3))))))))))) -> 7.5
A150: Schwein | B150: Mast | C150: 30 | D150: 120 | E150: Ca_gkg | F150: g/kg | G150: 5.5 | H150: 7
A151: Schwein | B151: Mast | C151: 30 | D151: 120 | E151: Pverd_gkg | F151: g/kg | G151: 3 | H151: =IF(tblAnforderungen[[#This Row],[Min]]="","",IF(tblAnforderungen[[#This Row],[Parameter]]="ME",tblAnforderungen[[#This Row],[Min]]+0.7,IF(tblAnforderungen[[#This Row],[Parameter]]="XP",tblAnforderungen[[#This Row],[Min]]*1.3,IF(tblAnforderungen[[#This Row],[Parameter]]="Lysin_gkg",tblAnforderungen[[#This Row],[Min]]*1.25,IF(tblAnforderungen[[#This Row],[Parameter]]="Methionin_gkg",tblAnforderungen[[#This Row],[Min]]*1.25,IF(tblAnforderungen[[#This Row],[Parameter]]="MetCys_gkg",tblAnforderungen[[#This Row],[Min]]*1.25,IF(tblAnforderungen[[#This Row],[Parameter]]="Rohfett_gkg",tblAnforderungen[[#This Row],[Min]]*2,IF(tblAnforderungen[[#This Row],[Parameter]]="Rohfaser_gkg",tblAnforderungen[[#This Row],[Min]]*2,IF(tblAnforderungen[[#This Row],[Parameter]]="Ca_gkg",tblAnforderungen[[#This Row],[Min]]*1.4,IF(tblAnforderungen[[#This Row],[Parameter]]="Pverd_gkg",tblAnforderungen[[#This Row],[Min]]*1.3,IF(tblAnforderungen[[#This Row],[Parameter]]="Na_gkg",tblAnforderungen[[#This Row],[Min]]*1.3,tblAnforderungen[[#This Row],[Min]]*1.3))))))))))) -> 3.9
A152: Schwein | B152: Mast | C152: 30 | D152: 120 | E152: Na_gkg | F152: g/kg | G152: 1.4 | H152: 1.7
A153: Schwein | B153: Mast | C153: 30 | D153: 120 | E153: Rohfett_gkg | F153: g/kg | H153: 80
A154: Schwein | B154: Mast | C154: 30 | D154: 120 | E154: Rohfaser_gkg | F154: g/kg | H154: 60
A155: Sau | B155: Tragend | C155: 0 | D155: 16 | E155: ME | F155: MJ/kg | G155: 12.5 | H155: =IF(tblAnforderungen[[#This Row],[Min]]="","",IF(tblAnforderungen[[#This Row],[Parameter]]="ME",tblAnforderungen[[#This Row],[Min]]+0.7,IF(tblAnforderungen[[#This Row],[Parameter]]="XP",tblAnforderungen[[#This Row],[Min]]*1.3,IF(tblAnforderungen[[#This Row],[Parameter]]="Lysin_gkg",tblAnforderungen[[#This Row],[Min]]*1.25,IF(tblAnforderungen[[#This Row],[Parameter]]="Methionin_gkg",tblAnforderungen[[#This Row],[Min]]*1.25,IF(tblAnforderungen[[#This Row],[Parameter]]="MetCys_gkg",tblAnforderungen[[#This Row],[Min]]*1.25,IF(tblAnforderungen[[#This Row],[Parameter]]="Rohfett_gkg",tblAnforderungen[[#This Row],[Min]]*2,IF(tblAnforderungen[[#This Row],[Parameter]]="Rohfaser_gkg",tblAnforderungen[[#This Row],[Min]]*2,IF(tblAnforderungen[[#This Row],[Parameter]]="Ca_gkg",tblAnforderungen[[#This Row],[Min]]*1.4,IF(tblAnforderungen[[#This Row],[Parameter]]="Pverd_gkg",tblAnforderungen[[#This Row],[Min]]*1.3,IF(tblAnforderungen[[#This Row],[Parameter]]="Na_gkg",tblAnforderungen[[#This Row],[Min]]*1.3,tblAnforderungen[[#This Row],[Min]]*1.3))))))))))) -> 13.2
A156: Sau | B156: Tragend | C156: 0 | D156: 16 | E156: XP | F156: g/kg | G156: 140 | H156: =IF(tblAnforderungen[[#This Row],[Min]]="","",IF(tblAnforderungen[[#This Row],[Parameter]]="ME",tblAnforderungen[[#This Row],[Min]]+0.7,IF(tblAnforderungen[[#This Row],[Parameter]]="XP",tblAnforderungen[[#This Row],[Min]]*1.3,IF(tblAnforderungen[[#This Row],[Parameter]]="Lysin_gkg",tblAnforderungen[[#This Row],[Min]]*1.25,IF(tblAnforderungen[[#This Row],[Parameter]]="Methionin_gkg",tblAnforderungen[[#This Row],[Min]]*1.25,IF(tblAnforderungen[[#This Row],[Parameter]]="MetCys_gkg",tblAnforderungen[[#This Row],[Min]]*1.25,IF(tblAnforderungen[[#This Row],[Parameter]]="Rohfett_gkg",tblAnforderungen[[#This Row],[Min]]*2,IF(tblAnforderungen[[#This Row],[Parameter]]="Rohfaser_gkg",tblAnforderungen[[#This Row],[Min]]*2,IF(tblAnforderungen[[#This Row],[Parameter]]="Ca_gkg",tblAnforderungen[[#This Row],[Min]]*1.4,IF(tblAnforderungen[[#This Row],[Parameter]]="Pverd_gkg",tblAnforderungen[[#This Row],[Min]]*1.3,IF(tblAnforderungen[[#This Row],[Parameter]]="Na_gkg",tblAnforderungen[[#This Row],[Min]]*1.3,tblAnforderungen[[#This Row],[Min]]*1.3))))))))))) -> 182
A157: Sau | B157: Tragend | C157: 0 | D157: 16 | E157: Lysin_gkg | F157: g/kg | G157: 6 | H157: =IF(tblAnforderungen[[#This Row],[Min]]="","",IF(tblAnforderungen[[#This Row],[Parameter]]="ME",tblAnforderungen[[#This Row],[Min]]+0.7,IF(tblAnforderungen[[#This Row],[Parameter]]="XP",tblAnforderungen[[#This Row],[Min]]*1.3,IF(tblAnforderungen[[#This Row],[Parameter]]="Lysin_gkg",tblAnforderungen[[#This Row],[Min]]*1.25,IF(tblAnforderungen[[#This Row],[Parameter]]="Methionin_gkg",tblAnforderungen[[#This Row],[Min]]*1.25,IF(tblAnforderungen[[#This Row],[Parameter]]="MetCys_gkg",tblAnforderungen[[#This Row],[Min]]*1.25,IF(tblAnforderungen[[#This Row],[Parameter]]="Rohfett_gkg",tblAnforderungen[[#This Row],[Min]]*2,IF(tblAnforderungen[[#This Row],[Parameter]]="Rohfaser_gkg",tblAnforderungen[[#This Row],[Min]]*2,IF(tblAnforderungen[[#This Row],[Parameter]]="Ca_gkg",tblAnforderungen[[#This Row],[Min]]*1.4,IF(tblAnforderungen[[#This Row],[Parameter]]="Pverd_gkg",tblAnforderungen[[#This Row],[Min]]*1.3,IF(tblAnforderungen[[#This Row],[Parameter]]="Na_gkg",tblAnforderungen[[#This Row],[Min]]*1.3,tblAnforderungen[[#This Row],[Min]]*1.3))))))))))) -> 7.5
A158: Sau | B158: Tragend | C158: 0 | D158: 16 | E158: MetCys_gkg | F158: g/kg | G158: 4.5 | H158: =IF(tblAnforderungen[[#This Row],[Min]]="","",IF(tblAnforderungen[[#This Row],[Parameter]]="ME",tblAnforderungen[[#This Row],[Min]]+0.7,IF(tblAnforderungen[[#This Row],[Parameter]]="XP",tblAnforderungen[[#This Row],[Min]]*1.3,IF(tblAnforderungen[[#This Row],[Parameter]]="Lysin_gkg",tblAnforderungen[[#This Row],[Min]]*1.25,IF(tblAnforderungen[[#This Row],[Parameter]]="Methionin_gkg",tblAnforderungen[[#This Row],[Min]]*1.25,IF(tblAnforderungen[[#This Row],[Parameter]]="MetCys_gkg",tblAnforderungen[[#This Row],[Min]]*1.25,IF(tblAnforderungen[[#This Row],[Parameter]]="Rohfett_gkg",tblAnforderungen[[#This Row],[Min]]*2,IF(tblAnforderungen[[#This Row],[Parameter]]="Rohfaser_gkg",tblAnforderungen[[#This Row],[Min]]*2,IF(tblAnforderungen[[#This Row],[Parameter]]="Ca_gkg",tblAnforderungen[[#This Row],[Min]]*1.4,IF(tblAnforderungen[[#This Row],[Parameter]]="Pverd_gkg",tblAnforderungen[[#This Row],[Min]]*1.3,IF(tblAnforderungen[[#This Row],[Parameter]]="Na_gkg",tblAnforderungen[[#This Row],[Min]]*1.3,tblAnforderungen[[#This Row],[Min]]*1.3))))))))))) -> 5.625
A159: Sau | B159: Tragend | C159: 0 | D159: 16 | E159: Ca_gkg | F159: g/kg | G159: 6 | H159: 8
A160: Sau | B160: Tragend | C160: 0 | D160: 16 | E160: Pverd_gkg | F160: g/kg | G160: 2.8 | H160: =IF(tblAnforderungen[[#This Row],[Min]]="","",IF(tblAnforderungen[[#This Row],[Parameter]]="ME",tblAnforderungen[[#This Row],[Min]]+0.7,IF(tblAnforderungen[[#This Row],[Parameter]]="XP",tblAnforderungen[[#This Row],[Min]]*1.3,IF(tblAnforderungen[[#This Row],[Parameter]]="Lysin_gkg",tblAnforderungen[[#This Row],[Min]]*1.25,IF(tblAnforderungen[[#This Row],[Parameter]]="Methionin_gkg",tblAnforderungen[[#This Row],[Min]]*1.25,IF(tblAnforderungen[[#This Row],[Parameter]]="MetCys_gkg",tblAnforderungen[[#This Row],[Min]]*1.25,IF(tblAnforderungen[[#This Row],[Parameter]]="Rohfett_gkg",tblAnforderungen[[#This Row],[Min]]*2,IF(tblAnforderungen[[#This Row],[Parameter]]="Rohfaser_gkg",tblAnforderungen[[#This Row],[Min]]*2,IF(tblAnforderungen[[#This Row],[Parameter]]="Ca_gkg",tblAnforderungen[[#This Row],[Min]]*1.4,IF(tblAnforderungen[[#This Row],[Parameter]]="Pverd_gkg",tblAnforderungen[[#This Row],[Min]]*1.3,IF(tblAnforderungen[[#This Row],[Parameter]]="Na_gkg",tblAnforderungen[[#This Row],[Min]]*1.3,tblAnforderungen[[#This Row],[Min]]*1.3))))))))))) -> 3.64
A161: Sau | B161: Tragend | C161: 0 | D161: 16 | E161: Na_gkg | F161: g/kg | G161: 1.5 | H161: 1.8
A162: Sau | B162: Tragend | C162: 0 | D162: 16 | E162: Rohfett_gkg | F162: g/kg | H162: 80
A163: Sau | B163: Tragend | C163: 0 | D163: 16 | E163: Rohfaser_gkg | F163: g/kg | H163: 80
A164: Sau | B164: Laktierend | C164: 0 | D164: 5 | E164: ME | F164: MJ/kg | G164: 13.4 | H164: =IF(tblAnforderungen[[#This Row],[Min]]="","",IF(tblAnforderungen[[#This Row],[Parameter]]="ME",tblAnforderungen[[#This Row],[Min]]+0.7,IF(tblAnforderungen[[#This Row],[Parameter]]="XP",tblAnforderungen[[#This Row],[Min]]*1.3,IF(tblAnforderungen[[#This Row],[Parameter]]="Lysin_gkg",tblAnforderungen[[#This Row],[Min]]*1.25,IF(tblAnforderungen[[#This Row],[Parameter]]="Methionin_gkg",tblAnforderungen[[#This Row],[Min]]*1.25,IF(tblAnforderungen[[#This Row],[Parameter]]="MetCys_gkg",tblAnforderungen[[#This Row],[Min]]*1.25,IF(tblAnforderungen[[#This Row],[Parameter]]="Rohfett_gkg",tblAnforderungen[[#This Row],[Min]]*2,IF(tblAnforderungen[[#This Row],[Parameter]]="Rohfaser_gkg",tblAnforderungen[[#This Row],[Min]]*2,IF(tblAnforderungen[[#This Row],[Parameter]]="Ca_gkg",tblAnforderungen[[#This Row],[Min]]*1.4,IF(tblAnforderungen[[#This Row],[Parameter]]="Pverd_gkg",tblAnforderungen[[#This Row],[Min]]*1.3,IF(tblAnforderungen[[#This Row],[Parameter]]="Na_gkg",tblAnforderungen[[#This Row],[Min]]*1.3,tblAnforderungen[[#This Row],[Min]]*1.3))))))))))) -> 14.1
A165: Sau | B165: Laktierend | C165: 0 | D165: 5 | E165: XP | F165: g/kg | G165: 170 | H165: =IF(tblAnforderungen[[#This Row],[Min]]="","",IF(tblAnforderungen[[#This Row],[Parameter]]="ME",tblAnforderungen[[#This Row],[Min]]+0.7,IF(tblAnforderungen[[#This Row],[Parameter]]="XP",tblAnforderungen[[#This Row],[Min]]*1.3,IF(tblAnforderungen[[#This Row],[Parameter]]="Lysin_gkg",tblAnforderungen[[#This Row],[Min]]*1.25,IF(tblAnforderungen[[#This Row],[Parameter]]="Methionin_gkg",tblAnforderungen[[#This Row],[Min]]*1.25,IF(tblAnforderungen[[#This Row],[Parameter]]="MetCys_gkg",tblAnforderungen[[#This Row],[Min]]*1.25,IF(tblAnforderungen[[#This Row],[Parameter]]="Rohfett_gkg",tblAnforderungen[[#This Row],[Min]]*2,IF(tblAnforderungen[[#This Row],[Parameter]]="Rohfaser_gkg",tblAnforderungen[[#This Row],[Min]]*2,IF(tblAnforderungen[[#This Row],[Parameter]]="Ca_gkg",tblAnforderungen[[#This Row],[Min]]*1.4,IF(tblAnforderungen[[#This Row],[Parameter]]="Pverd_gkg",tblAnforderungen[[#This Row],[Min]]*1.3,IF(tblAnforderungen[[#This Row],[Parameter]]="Na_gkg",tblAnforderungen[[#This Row],[Min]]*1.3,tblAnforderungen[[#This Row],[Min]]*1.3))))))))))) -> 221
A166: Sau | B166: Laktierend | C166: 0 | D166: 5 | E166: Lysin_gkg | F166: g/kg | G166: 9.5 | H166: =IF(tblAnforderungen[[#This Row],[Min]]="","",IF(tblAnforderungen[[#This Row],[Parameter]]="ME",tblAnforderungen[[#This Row],[Min]]+0.7,IF(tblAnforderungen[[#This Row],[Parameter]]="XP",tblAnforderungen[[#This Row],[Min]]*1.3,IF(tblAnforderungen[[#This Row],[Parameter]]="Lysin_gkg",tblAnforderungen[[#This Row],[Min]]*1.25,IF(tblAnforderungen[[#This Row],[Parameter]]="Methionin_gkg",tblAnforderungen[[#This Row],[Min]]*1.25,IF(tblAnforderungen[[#This Row],[Parameter]]="MetCys_gkg",tblAnforderungen[[#This Row],[Min]]*1.25,IF(tblAnforderungen[[#This Row],[Parameter]]="Rohfett_gkg",tblAnforderungen[[#This Row],[Min]]*2,IF(tblAnforderungen[[#This Row],[Parameter]]="Rohfaser_gkg",tblAnforderungen[[#This Row],[Min]]*2,IF(tblAnforderungen[[#This Row],[Parameter]]="Ca_gkg",tblAnforderungen[[#This Row],[Min]]*1.4,IF(tblAnforderungen[[#This Row],[Parameter]]="Pverd_gkg",tblAnforderungen[[#This Row],[Min]]*1.3,IF(tblAnforderungen[[#This Row],[Parameter]]="Na_gkg",tblAnforderungen[[#This Row],[Min]]*1.3,tblAnforderungen[[#This Row],[Min]]*1.3))))))))))) -> 11.875
A167: Sau | B167: Laktierend | C167: 0 | D167: 5 | E167: MetCys_gkg | F167: g/kg | G167: 6 | H167: =IF(tblAnforderungen[[#This Row],[Min]]="","",IF(tblAnforderungen[[#This Row],[Parameter]]="ME",tblAnforderungen[[#This Row],[Min]]+0.7,IF(tblAnforderungen[[#This Row],[Parameter]]="XP",tblAnforderungen[[#This Row],[Min]]*1.3,IF(tblAnforderungen[[#This Row],[Parameter]]="Lysin_gkg",tblAnforderungen[[#This Row],[Min]]*1.25,IF(tblAnforderungen[[#This Row],[Parameter]]="Methionin_gkg",tblAnforderungen[[#This Row],[Min]]*1.25,IF(tblAnforderungen[[#This Row],[Parameter]]="MetCys_gkg",tblAnforderungen[[#This Row],[Min]]*1.25,IF(tblAnforderungen[[#This Row],[Parameter]]="Rohfett_gkg",tblAnforderungen[[#This Row],[Min]]*2,IF(tblAnforderungen[[#This Row],[Parameter]]="Rohfaser_gkg",tblAnforderungen[[#This Row],[Min]]*2,IF(tblAnforderungen[[#This Row],[Parameter]]="Ca_gkg",tblAnforderungen[[#This Row],[Min]]*1.4,IF(tblAnforderungen[[#This Row],[Parameter]]="Pverd_gkg",tblAnforderungen[[#This Row],[Min]]*1.3,IF(tblAnforderungen[[#This Row],[Parameter]]="Na_gkg",tblAnforderungen[[#This Row],[Min]]*1.3,tblAnforderungen[[#This Row],[Min]]*1.3))))))))))) -> 7.5
A168: Sau | B168: Laktierend | C168: 0 | D168: 5 | E168: Ca_gkg | F168: g/kg | G168: 8 | H168: 10
A169: Sau | B169: Laktierend | C169: 0 | D169: 5 | E169: Pverd_gkg | F169: g/kg | G169: 4 | H169: =IF(tblAnforderungen[[#This Row],[Min]]="","",IF(tblAnforderungen[[#This Row],[Parameter]]="ME",tblAnforderungen[[#This Row],[Min]]+0.7,IF(tblAnforderungen[[#This Row],[Parameter]]="XP",tblAnforderungen[[#This Row],[Min]]*1.3,IF(tblAnforderungen[[#This Row],[Parameter]]="Lysin_gkg",tblAnforderungen[[#This Row],[Min]]*1.25,IF(tblAnforderungen[[#This Row],[Parameter]]="Methionin_gkg",tblAnforderungen[[#This Row],[Min]]*1.25,IF(tblAnforderungen[[#This Row],[Parameter]]="MetCys_gkg",tblAnforderungen[[#This Row],[Min]]*1.25,IF(tblAnforderungen[[#This Row],[Parameter]]="Rohfett_gkg",tblAnforderungen[[#This Row],[Min]]*2,IF(tblAnforderungen[[#This Row],[Parameter]]="Rohfaser_gkg",tblAnforderungen[[#This Row],[Min]]*2,IF(tblAnforderungen[[#This Row],[Parameter]]="Ca_gkg",tblAnforderungen[[#This Row],[Min]]*1.4,IF(tblAnforderungen[[#This Row],[Parameter]]="Pverd_gkg",tblAnforderungen[[#This Row],[Min]]*1.3,IF(tblAnforderungen[[#This Row],[Parameter]]="Na_gkg",tblAnforderungen[[#This Row],[Min]]*1.3,tblAnforderungen[[#This Row],[Min]]*1.3))))))))))) -> 5.2
A170: Sau | B170: Laktierend | C170: 0 | D170: 5 | E170: Na_gkg | F170: g/kg | G170: 1.6 | H170: 2
A171: Sau | B171: Laktierend | C171: 0 | D171: 5 | E171: Rohfett_gkg | F171: g/kg | H171: 80
A172: Sau | B172: Laktierend | C172: 0 | D172: 5 | E172: Rohfaser_gkg | F172: g/kg | H172: 70
A173: Rind | B173: Bullenstarter | C173: 0 | D173: 3 | E173: ME | F173: MJ/kg | G173: 10.8 | H173: =IF(tblAnforderungen[[#This Row],[Min]]="","",IF(tblAnforderungen[[#This Row],[Parameter]]="ME",tblAnforderungen[[#This Row],[Min]]+0.7,IF(tblAnforderungen[[#This Row],[Parameter]]="XP",tblAnforderungen[[#This Row],[Min]]*1.3,IF(tblAnforderungen[[#This Row],[Parameter]]="Lysin_gkg",tblAnforderungen[[#This Row],[Min]]*1.25,IF(tblAnforderungen[[#This Row],[Parameter]]="Methionin_gkg",tblAnforderungen[[#This Row],[Min]]*1.25,IF(tblAnforderungen[[#This Row],[Parameter]]="MetCys_gkg",tblAnforderungen[[#This Row],[Min]]*1.25,IF(tblAnforderungen[[#This Row],[Parameter]]="Rohfett_gkg",tblAnforderungen[[#This Row],[Min]]*2,IF(tblAnforderungen[[#This Row],[Parameter]]="Rohfaser_gkg",tblAnforderungen[[#This Row],[Min]]*2,IF(tblAnforderungen[[#This Row],[Parameter]]="Ca_gkg",tblAnforderungen[[#This Row],[Min]]*1.4,IF(tblAnforderungen[[#This Row],[Parameter]]="Pverd_gkg",tblAnforderungen[[#This Row],[Min]]*1.3,IF(tblAnforderungen[[#This Row],[Parameter]]="Na_gkg",tblAnforderungen[[#This Row],[Min]]*1.3,tblAnforderungen[[#This Row],[Min]]*1.3))))))))))) -> 11.5
A174: Rind | B174: Bullenstarter | C174: 0 | D174: 3 | E174: XP | F174: g/kg | G174: 150 | H174: =IF(tblAnforderungen[[#This Row],[Min]]="","",IF(tblAnforderungen[[#This Row],[Parameter]]="ME",tblAnforderungen[[#This Row],[Min]]+0.7,IF(tblAnforderungen[[#This Row],[Parameter]]="XP",tblAnforderungen[[#This Row],[Min]]*1.3,IF(tblAnforderungen[[#This Row],[Parameter]]="Lysin_gkg",tblAnforderungen[[#This Row],[Min]]*1.25,IF(tblAnforderungen[[#This Row],[Parameter]]="Methionin_gkg",tblAnforderungen[[#This Row],[Min]]*1.25,IF(tblAnforderungen[[#This Row],[Parameter]]="MetCys_gkg",tblAnforderungen[[#This Row],[Min]]*1.25,IF(tblAnforderungen[[#This Row],[Parameter]]="Rohfett_gkg",tblAnforderungen[[#This Row],[Min]]*2,IF(tblAnforderungen[[#This Row],[Parameter]]="Rohfaser_gkg",tblAnforderungen[[#This Row],[Min]]*2,IF(tblAnforderungen[[#This Row],[Parameter]]="Ca_gkg",tblAnforderungen[[#This Row],[Min]]*1.4,IF(tblAnforderungen[[#This Row],[Parameter]]="Pverd_gkg",tblAnforderungen[[#This Row],[Min]]*1.3,IF(tblAnforderungen[[#This Row],[Parameter]]="Na_gkg",tblAnforderungen[[#This Row],[Min]]*1.3,tblAnforderungen[[#This Row],[Min]]*1.3))))))))))) -> 195
A175: Rind | B175: Bullenstarter | C175: 0 | D175: 3 | E175: Lysin_gkg | F175: g/kg | G175: 6 | H175: =IF(tblAnforderungen[[#This Row],[Min]]="","",IF(tblAnforderungen[[#This Row],[Parameter]]="ME",tblAnforderungen[[#This Row],[Min]]+0.7,IF(tblAnforderungen[[#This Row],[Parameter]]="XP",tblAnforderungen[[#This Row],[Min]]*1.3,IF(tblAnforderungen[[#This Row],[Parameter]]="Lysin_gkg",tblAnforderungen[[#This Row],[Min]]*1.25,IF(tblAnforderungen[[#This Row],[Parameter]]="Methionin_gkg",tblAnforderungen[[#This Row],[Min]]*1.25,IF(tblAnforderungen[[#This Row],[Parameter]]="MetCys_gkg",tblAnforderungen[[#This Row],[Min]]*1.25,IF(tblAnforderungen[[#This Row],[Parameter]]="Rohfett_gkg",tblAnforderungen[[#This Row],[Min]]*2,IF(tblAnforderungen[[#This Row],[Parameter]]="Rohfaser_gkg",tblAnforderungen[[#This Row],[Min]]*2,IF(tblAnforderungen[[#This Row],[Parameter]]="Ca_gkg",tblAnforderungen[[#This Row],[Min]]*1.4,IF(tblAnforderungen[[#This Row],[Parameter]]="Pverd_gkg",tblAnforderungen[[#This Row],[Min]]*1.3,IF(tblAnforderungen[[#This Row],[Parameter]]="Na_gkg",tblAnforderungen[[#This Row],[Min]]*1.3,tblAnforderungen[[#This Row],[Min]]*1.3))))))))))) -> 7.5
A176: Rind | B176: Bullenstarter | C176: 0 | D176: 3 | E176: MetCys_gkg | F176: g/kg | G176: 4 | H176: =IF(tblAnforderungen[[#This Row],[Min]]="","",IF(tblAnforderungen[[#This Row],[Parameter]]="ME",tblAnforderungen[[#This Row],[Min]]+0.7,IF(tblAnforderungen[[#This Row],[Parameter]]="XP",tblAnforderungen[[#This Row],[Min]]*1.3,IF(tblAnforderungen[[#This Row],[Parameter]]="Lysin_gkg",tblAnforderungen[[#This Row],[Min]]*1.25,IF(tblAnforderungen[[#This Row],[Parameter]]="Methionin_gkg",tblAnforderungen[[#This Row],[Min]]*1.25,IF(tblAnforderungen[[#This Row],[Parameter]]="MetCys_gkg",tblAnforderungen[[#This Row],[Min]]*1.25,IF(tblAnforderungen[[#This Row],[Parameter]]="Rohfett_gkg",tblAnforderungen[[#This Row],[Min]]*2,IF(tblAnforderungen[[#This Row],[Parameter]]="Rohfaser_gkg",tblAnforderungen[[#This Row],[Min]]*2,IF(tblAnforderungen[[#This Row],[Parameter]]="Ca_gkg",tblAnforderungen[[#This Row],[Min]]*1.4,IF(tblAnforderungen[[#This Row],[Parameter]]="Pverd_gkg",tblAnforderungen[[#This Row],[Min]]*1.3,IF(tblAnforderungen[[#This Row],[Parameter]]="Na_gkg",tblAnforderungen[[#This Row],[Min]]*1.3,tblAnforderungen[[#This Row],[Min]]*1.3))))))))))) -> 5
A177: Rind | B177: Bullenstarter | C177: 0 | D177: 3 | E177: Ca_gkg | F177: g/kg | G177: 7 | H177: 9
A178: Rind | B178: Bullenstarter | C178: 0 | D178: 3 | E178: Pverd_gkg | F178: g/kg | G178: 3 | H178: =IF(tblAnforderungen[[#This Row],[Min]]="","",IF(tblAnforderungen[[#This Row],[Parameter]]="ME",tblAnforderungen[[#This Row],[Min]]+0.7,IF(tblAnforderungen[[#This Row],[Parameter]]="XP",tblAnforderungen[[#This Row],[Min]]*1.3,IF(tblAnforderungen[[#This Row],[Parameter]]="Lysin_gkg",tblAnforderungen[[#This Row],[Min]]*1.25,IF(tblAnforderungen[[#This Row],[Parameter]]="Methionin_gkg",tblAnforderungen[[#This Row],[Min]]*1.25,IF(tblAnforderungen[[#This Row],[Parameter]]="MetCys_gkg",tblAnforderungen[[#This Row],[Min]]*1.25,IF(tblAnforderungen[[#This Row],[Parameter]]="Rohfett_gkg",tblAnforderungen[[#This Row],[Min]]*2,IF(tblAnforderungen[[#This Row],[Parameter]]="Rohfaser_gkg",tblAnforderungen[[#This Row],[Min]]*2,IF(tblAnforderungen[[#This Row],[Parameter]]="Ca_gkg",tblAnforderungen[[#This Row],[Min]]*1.4,IF(tblAnforderungen[[#This Row],[Parameter]]="Pverd_gkg",tblAnforderungen[[#This Row],[Min]]*1.3,IF(tblAnforderungen[[#This Row],[Parameter]]="Na_gkg",tblAnforderungen[[#This Row],[Min]]*1.3,tblAnforderungen[[#This Row],[Min]]*1.3))))))))))) -> 3.9
A179: Rind | B179: Bullenstarter | C179: 0 | D179: 3 | E179: Na_gkg | F179: g/kg | G179: 1.2 | H179: 1.6
A180: Rind | B180: Bullenstarter | C180: 0 | D180: 3 | E180: Rohfett_gkg | F180: g/kg | H180: 80
A181: Rind | B181: Bullenstarter | C181: 0 | D181: 3 | E181: Rohfaser_gkg | F181: g/kg | H181: 180
A182: Rind | B182: Bullenmast | C182: 3 | D182: 12 | E182: ME | F182: MJ/kg | G182: 10.2 | H182: =IF(tblAnforderungen[[#This Row],[Min]]="","",IF(tblAnforderungen[[#This Row],[Parameter]]="ME",tblAnforderungen[[#This Row],[Min]]+0.7,IF(tblAnforderungen[[#This Row],[Parameter]]="XP",tblAnforderungen[[#This Row],[Min]]*1.3,IF(tblAnforderungen[[#This Row],[Parameter]]="Lysin_gkg",tblAnforderungen[[#This Row],[Min]]*1.25,IF(tblAnforderungen[[#This Row],[Parameter]]="Methionin_gkg",tblAnforderungen[[#This Row],[Min]]*1.25,IF(tblAnforderungen[[#This Row],[Parameter]]="MetCys_gkg",tblAnforderungen[[#This Row],[Min]]*1.25,IF(tblAnforderungen[[#This Row],[Parameter]]="Rohfett_gkg",tblAnforderungen[[#This Row],[Min]]*2,IF(tblAnforderungen[[#This Row],[Parameter]]="Rohfaser_gkg",tblAnforderungen[[#This Row],[Min]]*2,IF(tblAnforderungen[[#This Row],[Parameter]]="Ca_gkg",tblAnforderungen[[#This Row],[Min]]*1.4,IF(tblAnforderungen[[#This Row],[Parameter]]="Pverd_gkg",tblAnforderungen[[#This Row],[Min]]*1.3,IF(tblAnforderungen[[#This Row],[Parameter]]="Na_gkg",tblAnforderungen[[#This Row],[Min]]*1.3,tblAnforderungen[[#This Row],[Min]]*1.3))))))))))) -> 10.9
A183: Rind | B183: Bullenmast | C183: 3 | D183: 12 | E183: XP | F183: g/kg | G183: 140 | H183: =IF(tblAnforderungen[[#This Row],[Min]]="","",IF(tblAnforderungen[[#This Row],[Parameter]]="ME",tblAnforderungen[[#This Row],[Min]]+0.7,IF(tblAnforderungen[[#This Row],[Parameter]]="XP",tblAnforderungen[[#This Row],[Min]]*1.3,IF(tblAnforderungen[[#This Row],[Parameter]]="Lysin_gkg",tblAnforderungen[[#This Row],[Min]]*1.25,IF(tblAnforderungen[[#This Row],[Parameter]]="Methionin_gkg",tblAnforderungen[[#This Row],[Min]]*1.25,IF(tblAnforderungen[[#This Row],[Parameter]]="MetCys_gkg",tblAnforderungen[[#This Row],[Min]]*1.25,IF(tblAnforderungen[[#This Row],[Parameter]]="Rohfett_gkg",tblAnforderungen[[#This Row],[Min]]*2,IF(tblAnforderungen[[#This Row],[Parameter]]="Rohfaser_gkg",tblAnforderungen[[#This Row],[Min]]*2,IF(tblAnforderungen[[#This Row],[Parameter]]="Ca_gkg",tblAnforderungen[[#This Row],[Min]]*1.4,IF(tblAnforderungen[[#This Row],[Parameter]]="Pverd_gkg",tblAnforderungen[[#This Row],[Min]]*1.3,IF(tblAnforderungen[[#This Row],[Parameter]]="Na_gkg",tblAnforderungen[[#This Row],[Min]]*1.3,tblAnforderungen[[#This Row],[Min]]*1.3))))))))))) -> 182
A184: Rind | B184: Bullenmast | C184: 3 | D184: 12 | E184: Lysin_gkg | F184: g/kg | G184: 5.5 | H184: =IF(tblAnforderungen[[#This Row],[Min]]="","",IF(tblAnforderungen[[#This Row],[Parameter]]="ME",tblAnforderungen[[#This Row],[Min]]+0.7,IF(tblAnforderungen[[#This Row],[Parameter]]="XP",tblAnforderungen[[#This Row],[Min]]*1.3,IF(tblAnforderungen[[#This Row],[Parameter]]="Lysin_gkg",tblAnforderungen[[#This Row],[Min]]*1.25,IF(tblAnforderungen[[#This Row],[Parameter]]="Methionin_gkg",tblAnforderungen[[#This Row],[Min]]*1.25,IF(tblAnforderungen[[#This Row],[Parameter]]="MetCys_gkg",tblAnforderungen[[#This Row],[Min]]*1.25,IF(tblAnforderungen[[#This Row],[Parameter]]="Rohfett_gkg",tblAnforderungen[[#This Row],[Min]]*2,IF(tblAnforderungen[[#This Row],[Parameter]]="Rohfaser_gkg",tblAnforderungen[[#This Row],[Min]]*2,IF(tblAnforderungen[[#This Row],[Parameter]]="Ca_gkg",tblAnforderungen[[#This Row],[Min]]*1.4,IF(tblAnforderungen[[#This Row],[Parameter]]="Pverd_gkg",tblAnforderungen[[#This Row],[Min]]*1.3,IF(tblAnforderungen[[#This Row],[Parameter]]="Na_gkg",tblAnforderungen[[#This Row],[Min]]*1.3,tblAnforderungen[[#This Row],[Min]]*1.3))))))))))) -> 6.875
A185: Rind | B185: Bullenmast | C185: 3 | D185: 12 | E185: MetCys_gkg | F185: g/kg | G185: 3.8 | H185: =IF(tblAnforderungen[[#This Row],[Min]]="","",IF(tblAnforderungen[[#This Row],[Parameter]]="ME",tblAnforderungen[[#This Row],[Min]]+0.7,IF(tblAnforderungen[[#This Row],[Parameter]]="XP",tblAnforderungen[[#This Row],[Min]]*1.3,IF(tblAnforderungen[[#This Row],[Parameter]]="Lysin_gkg",tblAnforderungen[[#This Row],[Min]]*1.25,IF(tblAnforderungen[[#This Row],[Parameter]]="Methionin_gkg",tblAnforderungen[[#This Row],[Min]]*1.25,IF(tblAnforderungen[[#This Row],[Parameter]]="MetCys_gkg",tblAnforderungen[[#This Row],[Min]]*1.25,IF(tblAnforderungen[[#This Row],[Parameter]]="Rohfett_gkg",tblAnforderungen[[#This Row],[Min]]*2,IF(tblAnforderungen[[#This Row],[Parameter]]="Rohfaser_gkg",tblAnforderungen[[#This Row],[Min]]*2,IF(tblAnforderungen[[#This Row],[Parameter]]="Ca_gkg",tblAnforderungen[[#This Row],[Min]]*1.4,IF(tblAnforderungen[[#This Row],[Parameter]]="Pverd_gkg",tblAnforderungen[[#This Row],[Min]]*1.3,IF(tblAnforderungen[[#This Row],[Parameter]]="Na_gkg",tblAnforderungen[[#This Row],[Min]]*1.3,tblAnforderungen[[#This Row],[Min]]*1.3))))))))))) -> 4.75
A186: Rind | B186: Bullenmast | C186: 3 | D186: 12 | E186: Ca_gkg | F186: g/kg | G186: 6 | H186: 8
A187: Rind | B187: Bullenmast | C187: 3 | D187: 12 | E187: Pverd_gkg | F187: g/kg | G187: 2.7 | H187: =IF(tblAnforderungen[[#This Row],[Min]]="","",IF(tblAnforderungen[[#This Row],[Parameter]]="ME",tblAnforderungen[[#This Row],[Min]]+0.7,IF(tblAnforderungen[[#This Row],[Parameter]]="XP",tblAnforderungen[[#This Row],[Min]]*1.3,IF(tblAnforderungen[[#This Row],[Parameter]]="Lysin_gkg",tblAnforderungen[[#This Row],[Min]]*1.25,IF(tblAnforderungen[[#This Row],[Parameter]]="Methionin_gkg",tblAnforderungen[[#This Row],[Min]]*1.25,IF(tblAnforderungen[[#This Row],[Parameter]]="MetCys_gkg",tblAnforderungen[[#This Row],[Min]]*1.25,IF(tblAnforderungen[[#This Row],[Parameter]]="Rohfett_gkg",tblAnforderungen[[#This Row],[Min]]*2,IF(tblAnforderungen[[#This Row],[Parameter]]="Rohfaser_gkg",tblAnforderungen[[#This Row],[Min]]*2,IF(tblAnforderungen[[#This Row],[Parameter]]="Ca_gkg",tblAnforderungen[[#This Row],[Min]]*1.4,IF(tblAnforderungen[[#This Row],[Parameter]]="Pverd_gkg",tblAnforderungen[[#This Row],[Min]]*1.3,IF(tblAnforderungen[[#This Row],[Parameter]]="Na_gkg",tblAnforderungen[[#This Row],[Min]]*1.3,tblAnforderungen[[#This Row],[Min]]*1.3))))))))))) -> 3.51
A188: Rind | B188: Bullenmast | C188: 3 | D188: 12 | E188: Na_gkg | F188: g/kg | G188: 1.1 | H188: 1.5
A189: Rind | B189: Bullenmast | C189: 3 | D189: 12 | E189: Rohfett_gkg | F189: g/kg | H189: 80
A190: Rind | B190: Bullenmast | C190: 3 | D190: 12 | E190: Rohfaser_gkg | F190: g/kg | H190: 200
A191: Milchkuh | B191: Laktation | C191: 0 | D191: 40 | E191: ME | F191: MJ/kg | G191: 10.5 | H191: =IF(tblAnforderungen[[#This Row],[Min]]="","",IF(tblAnforderungen[[#This Row],[Parameter]]="ME",tblAnforderungen[[#This Row],[Min]]+0.7,IF(tblAnforderungen[[#This Row],[Parameter]]="XP",tblAnforderungen[[#This Row],[Min]]*1.3,IF(tblAnforderungen[[#This Row],[Parameter]]="Lysin_gkg",tblAnforderungen[[#This Row],[Min]]*1.25,IF(tblAnforderungen[[#This Row],[Parameter]]="Methionin_gkg",tblAnforderungen[[#This Row],[Min]]*1.25,IF(tblAnforderungen[[#This Row],[Parameter]]="MetCys_gkg",tblAnforderungen[[#This Row],[Min]]*1.25,IF(tblAnforderungen[[#This Row],[Parameter]]="Rohfett_gkg",tblAnforderungen[[#This Row],[Min]]*2,IF(tblAnforderungen[[#This Row],[Parameter]]="Rohfaser_gkg",tblAnforderungen[[#This Row],[Min]]*2,IF(tblAnforderungen[[#This Row],[Parameter]]="Ca_gkg",tblAnforderungen[[#This Row],[Min]]*1.4,IF(tblAnforderungen[[#This Row],[Parameter]]="Pverd_gkg",tblAnforderungen[[#This Row],[Min]]*1.3,IF(tblAnforderungen[[#This Row],[Parameter]]="Na_gkg",tblAnforderungen[[#This Row],[Min]]*1.3,tblAnforderungen[[#This Row],[Min]]*1.3))))))))))) -> 11.2
A192: Milchkuh | B192: Laktation | C192: 0 | D192: 40 | E192: XP | F192: g/kg | G192: 170 | H192: =IF(tblAnforderungen[[#This Row],[Min]]="","",IF(tblAnforderungen[[#This Row],[Parameter]]="ME",tblAnforderungen[[#This Row],[Min]]+0.7,IF(tblAnforderungen[[#This Row],[Parameter]]="XP",tblAnforderungen[[#This Row],[Min]]*1.3,IF(tblAnforderungen[[#This Row],[Parameter]]="Lysin_gkg",tblAnforderungen[[#This Row],[Min]]*1.25,IF(tblAnforderungen[[#This Row],[Parameter]]="Methionin_gkg",tblAnforderungen[[#This Row],[Min]]*1.25,IF(tblAnforderungen[[#This Row],[Parameter]]="MetCys_gkg",tblAnforderungen[[#This Row],[Min]]*1.25,IF(tblAnforderungen[[#This Row],[Parameter]]="Rohfett_gkg",tblAnforderungen[[#This Row],[Min]]*2,IF(tblAnforderungen[[#This Row],[Parameter]]="Rohfaser_gkg",tblAnforderungen[[#This Row],[Min]]*2,IF(tblAnforderungen[[#This Row],[Parameter]]="Ca_gkg",tblAnforderungen[[#This Row],[Min]]*1.4,IF(tblAnforderungen[[#This Row],[Parameter]]="Pverd_gkg",tblAnforderungen[[#This Row],[Min]]*1.3,IF(tblAnforderungen[[#This Row],[Parameter]]="Na_gkg",tblAnforderungen[[#This Row],[Min]]*1.3,tblAnforderungen[[#This Row],[Min]]*1.3))))))))))) -> 221
A193: Milchkuh | B193: Laktation | C193: 0 | D193: 40 | E193: Lysin_gkg | F193: g/kg | G193: 7 | H193: =IF(tblAnforderungen[[#This Row],[Min]]="","",IF(tblAnforderungen[[#This Row],[Parameter]]="ME",tblAnforderungen[[#This Row],[Min]]+0.7,IF(tblAnforderungen[[#This Row],[Parameter]]="XP",tblAnforderungen[[#This Row],[Min]]*1.3,IF(tblAnforderungen[[#This Row],[Parameter]]="Lysin_gkg",tblAnforderungen[[#This Row],[Min]]*1.25,IF(tblAnforderungen[[#This Row],[Parameter]]="Methionin_gkg",tblAnforderungen[[#This Row],[Min]]*1.25,IF(tblAnforderungen[[#This Row],[Parameter]]="MetCys_gkg",tblAnforderungen[[#This Row],[Min]]*1.25,IF(tblAnforderungen[[#This Row],[Parameter]]="Rohfett_gkg",tblAnforderungen[[#This Row],[Min]]*2,IF(tblAnforderungen[[#This Row],[Parameter]]="Rohfaser_gkg",tblAnforderungen[[#This Row],[Min]]*2,IF(tblAnforderungen[[#This Row],[Parameter]]="Ca_gkg",tblAnforderungen[[#This Row],[Min]]*1.4,IF(tblAnforderungen[[#This Row],[Parameter]]="Pverd_gkg",tblAnforderungen[[#This Row],[Min]]*1.3,IF(tblAnforderungen[[#This Row],[Parameter]]="Na_gkg",tblAnforderungen[[#This Row],[Min]]*1.3,tblAnforderungen[[#This Row],[Min]]*1.3))))))))))) -> 8.75
A194: Milchkuh | B194: Laktation | C194: 0 | D194: 40 | E194: MetCys_gkg | F194: g/kg | G194: 5 | H194: =IF(tblAnforderungen[[#This Row],[Min]]="","",IF(tblAnforderungen[[#This Row],[Parameter]]="ME",tblAnforderungen[[#This Row],[Min]]+0.7,IF(tblAnforderungen[[#This Row],[Parameter]]="XP",tblAnforderungen[[#This Row],[Min]]*1.3,IF(tblAnforderungen[[#This Row],[Parameter]]="Lysin_gkg",tblAnforderungen[[#This Row],[Min]]*1.25,IF(tblAnforderungen[[#This Row],[Parameter]]="Methionin_gkg",tblAnforderungen[[#This Row],[Min]]*1.25,IF(tblAnforderungen[[#This Row],[Parameter]]="MetCys_gkg",tblAnforderungen[[#This Row],[Min]]*1.25,IF(tblAnforderungen[[#This Row],[Parameter]]="Rohfett_gkg",tblAnforderungen[[#This Row],[Min]]*2,IF(tblAnforderungen[[#This Row],[Parameter]]="Rohfaser_gkg",tblAnforderungen[[#This Row],[Min]]*2,IF(tblAnforderungen[[#This Row],[Parameter]]="Ca_gkg",tblAnforderungen[[#This Row],[Min]]*1.4,IF(tblAnforderungen[[#This Row],[Parameter]]="Pverd_gkg",tblAnforderungen[[#This Row],[Min]]*1.3,IF(tblAnforderungen[[#This Row],[Parameter]]="Na_gkg",tblAnforderungen[[#This Row],[Min]]*1.3,tblAnforderungen[[#This Row],[Min]]*1.3))))))))))) -> 6.25
A195: Milchkuh | B195: Laktation | C195: 0 | D195: 40 | E195: Ca_gkg | F195: g/kg | G195: 8 | H195: 11
A196: Milchkuh | B196: Laktation | C196: 0 | D196: 40 | E196: Pverd_gkg | F196: g/kg | G196: 3.5 | H196: =IF(tblAnforderungen[[#This Row],[Min]]="","",IF(tblAnforderungen[[#This Row],[Parameter]]="ME",tblAnforderungen[[#This Row],[Min]]+0.7,IF(tblAnforderungen[[#This Row],[Parameter]]="XP",tblAnforderungen[[#This Row],[Min]]*1.3,IF(tblAnforderungen[[#This Row],[Parameter]]="Lysin_gkg",tblAnforderungen[[#This Row],[Min]]*1.25,IF(tblAnforderungen[[#This Row],[Parameter]]="Methionin_gkg",tblAnforderungen[[#This Row],[Min]]*1.25,IF(tblAnforderungen[[#This Row],[Parameter]]="MetCys_gkg",tblAnforderungen[[#This Row],[Min]]*1.25,IF(tblAnforderungen[[#This Row],[Parameter]]="Rohfett_gkg",tblAnforderungen[[#This Row],[Min]]*2,IF(tblAnforderungen[[#This Row],[Parameter]]="Rohfaser_gkg",tblAnforderungen[[#This Row],[Min]]*2,IF(tblAnforderungen[[#This Row],[Parameter]]="Ca_gkg",tblAnforderungen[[#This Row],[Min]]*1.4,IF(tblAnforderungen[[#This Row],[Parameter]]="Pverd_gkg",tblAnforderungen[[#This Row],[Min]]*1.3,IF(tblAnforderungen[[#This Row],[Parameter]]="Na_gkg",tblAnforderungen[[#This Row],[Min]]*1.3,tblAnforderungen[[#This Row],[Min]]*1.3))))))))))) -> 4.55
A197: Milchkuh | B197: Laktation | C197: 0 | D197: 40 | E197: Na_gkg | F197: g/kg | G197: 1.7 | H197: 2.3
A198: Milchkuh | B198: Laktation | C198: 0 | D198: 40 | E198: Rohfett_gkg | F198: g/kg | H198: 80
A199: Milchkuh | B199: Laktation | C199: 0 | D199: 40 | E199: Rohfaser_gkg | F199: g/kg | H199: 220

Sheet Phasenplan (hidden)
A1: Tierart | B1: Phase | C1: Anteil
A2: Pute | B2: Starter 1 | C2: 12
A3: Pute | B3: Starter 2 | C3: 12
A4: Pute | B4: Grower 1 | C4: 20
A5: Pute | B5: Grower 2 | C5: 20
A6: Pute | B6: Finisher 1 | C6: 18
A7: Pute | B7: Finisher 2 | C7: 18

Sheet Optimierung (hidden)
B1: Pute
B2: Finisher 2 | W2: Alle_OK | X2: =AND(W4:W13) -> FALSE
A4: Gesamt_kg_pro_t | B4: =SUM(B6:B100) -> 1000 | P4: Gesamtkosten_€/t | Q4: =SUMPRODUCT(B6:INDEX(B:B,ROW(C6)+ROWS(_xlfn.ANCHORARRAY(C6))-1),INDEX(_xlfn.ANCHORARRAY(C6),,3)) -> 222.2063736 | S4: Ist_ME_MJkg | T4: =SUMPRODUCT(B6:INDEX(B:B,ROW(C6)+ROWS(_xlfn.ANCHORARRAY(C6))-1),INDEX(_xlfn.ANCHORARRAY(C6),,5))/1000 -> 9.101694087 | U4: =INDEX(_xlfn._xlws.FILTER(tblAnforderungen[Min],(tblAnforderungen[Tierart]=$B$1)*(tblAnforderungen[Phase]=$B$2)*(tblAnforderungen[Parameter]="ME")),1) -> 11.8 | V4: =INDEX(_xlfn._xlws.FILTER(tblAnforderungen[Max],(tblAnforderungen[Tierart]=$B$1)*(tblAnforderungen[Phase]=$B$2)*(tblAnforderungen[Parameter]="ME")),1) -> 12.5 | W4: =AND(T4>=U4,T4<=V4) -> FALSE
B5: Menge_kg_1000 | C5: Komponente | E5: Menge_kg_1000 | S5: Ist_XP_gkg | T5: =SUMPRODUCT(B6:INDEX(B:B,ROW(C6)+ROWS(_xlfn.ANCHORARRAY(C6))-1),INDEX(_xlfn.ANCHORARRAY(C6),,6))/1000 -> 98.87198971 | U5: =INDEX(_xlfn._xlws.FILTER(tblAnforderungen[Min],(tblAnforderungen[Tierart]=$B$1)*(tblAnforderungen[Phase]=$B$2)*(tblAnforderungen[Parameter]="XP")),1) -> 175 | V5: =INDEX(_xlfn._xlws.FILTER(tblAnforderungen[Max],(tblAnforderungen[Tierart]=$B$1)*(tblAnforderungen[Phase]=$B$2)*(tblAnforderungen[Parameter]="XP")),1) -> 227.5 | W5: FALSE
B6: 0 | C6: =_xlfn._xlws.FILTER(tblKomponenten[[Komponente]:[Na_gkg]],tblKomponenten[Verfügbar]=TRUE) -> Mais | D6: Getreide | E6: 0.27 | F6: TRUE | G6: 13.5 | H6: 80 | I6: 2.7 | J6: 1.8 | K6: 3.6 | L6: 40 | M6: 20 | N6: 0.3 | O6: 2.2 | P6: 0.1 | S6: Ist_Lysin_gkg | T6: =SUMPRODUCT(B6:INDEX(B:B,ROW(C6)+ROWS(_xlfn.ANCHORARRAY(C6))-1),INDEX(_xlfn.ANCHORARRAY(C6),,7))/1000 -> 3.340082393 | U6: =INDEX(_xlfn._xlws.FILTER(tblAnforderungen[Min],(tblAnforderungen[Tierart]=$B$1)*(tblAnforderungen[Phase]=$B$2)*(tblAnforderungen[Parameter]="Lysin_gkg")),1) -> 11 | V6: =INDEX(_xlfn._xlws.FILTER(tblAnforderungen[Max],(tblAnforderungen[Tierart]=$B$1)*(tblAnforderungen[Phase]=$B$2)*(tblAnforderungen[Parameter]="Lysin_gkg")),1) -> 13.75 | W6: FALSE
B7: 0 | C7: Weizen | D7: Getreide | E7: 0.22 | F7: TRUE | G7: 13.2 | H7: 115 | I7: 3.4 | J7: 1.9 | K7: 3.5 | L7: 18 | M7: 25 | N7: 0.5 | O7: 2.5 | P7: 0.1 | S7: Ist_Methionin_gkg | T7: =SUMPRODUCT(B6:INDEX(B:B,ROW(C6)+ROWS(_xlfn.ANCHORARRAY(C6))-1),INDEX(_xlfn.ANCHORARRAY(C6),,8))/1000 -> 5.378218004 | U7: =INDEX(_xlfn._xlws.FILTER(tblAnforderungen[Min],(tblAnforderungen[Tierart]=$B$1)*(tblAnforderungen[Phase]=$B$2)*(tblAnforderungen[Parameter]="MetCys_gkg")),1) -> 9 | V7: =INDEX(_xlfn._xlws.FILTER(tblAnforderungen[Max],(tblAnforderungen[Tierart]=$B$1)*(tblAnforderungen[Phase]=$B$2)*(tblAnforderungen[Parameter]="MetCys_gkg")),1) -> 11.25 | W7: FALSE
B8: 0 | C8: Gerste | D8: Getreide | E8: 0.2 | F8: TRUE | G8: 12.8 | H8: 110 | I8: 4 | J8: 1.9 | K8: 3.6 | L8: 25 | M8: 50 | N8: 0.6 | O8: 2.3 | P8: 0.1 | S8: Ist_MetCys_gkg | T8: =SUMPRODUCT(B6:INDEX(B:B,ROW(C6)+ROWS(_xlfn.ANCHORARRAY(C6))-1),INDEX(_xlfn.ANCHORARRAY(C6),,9))/1000 -> 6.655944822 | U8: =INDEX(_xlfn._xlws.FILTER(tblAnforderungen[Min],(tblAnforderungen[Tierart]=$B$1)*(tblAnforderungen[Phase]=$B$2)*(tblAnforderungen[Parameter]="MetCys_gkg")),1) -> 9 | V8: =INDEX(_xlfn._xlws.FILTER(tblAnforderungen[Max],(tblAnforderungen[Tierart]=$B$1)*(tblAnforderungen[Phase]=$B$2)*(tblAnforderungen[Parameter]="MetCys_gkg")),1) -> 11.25 | W8: FALSE
B9: 0 | C9: Triticale | D9: Getreide | E9: 0.2 | F9: TRUE | G9: 13 | H9: 120 | I9: 4.2 | J9: 1.9 | K9: 3.7 | L9: 20 | M9: 25 | N9: 0.6 | O9: 2.4 | P9: 0.1 | S9: Ist_Rohfett_gkg | T9: =SUMPRODUCT(B6:INDEX(B:B,ROW(C6)+ROWS(_xlfn.ANCHORARRAY(C6))-1),INDEX(_xlfn.ANCHORARRAY(C6),,10))/1000 -> 17.37005043 | U9: =INDEX(_xlfn._xlws.FILTER(tblAnforderungen[Min],(tblAnforderungen[Tierart]=$B$1)*(tblAnforderungen[Phase]=$B$2)*(tblAnforderungen[Parameter]="Rohfett_gkg")),1) -> 0 | V9: =INDEX(_xlfn._xlws.FILTER(tblAnforderungen[Max],(tblAnforderungen[Tierart]=$B$1)*(tblAnforderungen[Phase]=$B$2)*(tblAnforderungen[Parameter]="Rohfett_gkg")),1) -> 80 | W9: TRUE
B10: 668.2868093 | C10: Roggen | D10: Getreide | E10: 0.19 | F10: TRUE | G10: 12.5 | H10: 105 | I10: 3.5 | J10: 1.8 | K10: 3.3 | L10: 20 | M10: 35 | N10: 0.5 | O10: 2.3 | P10: 0.1 | S10: Ist_Rohfaser_gkg | T10: =SUMPRODUCT(B6:INDEX(B:B,ROW(C6)+ROWS(_xlfn.ANCHORARRAY(C6))-1),INDEX(_xlfn.ANCHORARRAY(C6),,11))/1000 -> 29.39650969 | U10: =INDEX(_xlfn._xlws.FILTER(tblAnforderungen[Min],(tblAnforderungen[Tierart]=$B$1)*(tblAnforderungen[Phase]=$B$2)*(tblAnforderungen[Parameter]="Rohfaser_gkg")),1) -> 0 | V10: =INDEX(_xlfn._xlws.FILTER(tblAnforderungen[Max],(tblAnforderungen[Tierart]=$B$1)*(tblAnforderungen[Phase]=$B$2)*(tblAnforderungen[Parameter]="Rohfaser_gkg")),1) -> 65 | W10: TRUE
B11: 0 | C11: Hafer | D11: Getreide | E11: 0.21 | F11: TRUE | G11: 11.5 | H11: 110 | I11: 4.5 | J11: 2 | K11: 3.9 | L11: 55 | M11: 100 | N11: 0.8 | O11: 2 | P11: 0.1 | S11: Ist_Ca_gkg | T11: =SUMPRODUCT(B6:INDEX(B:B,ROW(C6)+ROWS(_xlfn.ANCHORARRAY(C6))-1),INDEX(_xlfn.ANCHORARRAY(C6),,12))/1000 -> 93.73958275 | U11: =INDEX(_xlfn._xlws.FILTER(tblAnforderungen[Min],(tblAnforderungen[Tierart]=$B$1)*(tblAnforderungen[Phase]=$B$2)*(tblAnforderungen[Parameter]="Ca_gkg")),1) -> 6.5 | V11: =INDEX(_xlfn._xlws.FILTER(tblAnforderungen[Max],(tblAnforderungen[Tierart]=$B$1)*(tblAnforderungen[Phase]=$B$2)*(tblAnforderungen[Parameter]="Ca_gkg")),1) -> 8 | W11: FALSE
B12: 0 | C12: Maiskleberfutter | D12: Getreidenebenprodukt | E12: 0.23 | F12: TRUE | G12: 11.5 | H12: 210 | I12: 5 | J12: 3 | K12: 5.5 | L12: 40 | M12: 120 | N12: 0.5 | O12: 3 | P12: 0.3 | S12: Ist_Pverd_gkg | T12: =SUMPRODUCT(B6:INDEX(B:B,ROW(C6)+ROWS(_xlfn.ANCHORARRAY(C6))-1),INDEX(_xlfn.ANCHORARRAY(C6),,13))/1000 -> 5.175012466 | U12: =INDEX(_xlfn._xlws.FILTER(tblAnforderungen[Min],(tblAnforderungen[Tierart]=$B$1)*(tblAnforderungen[Phase]=$B$2)*(tblAnforderungen[Parameter]="Pverd_gkg")),1) -> 3.8 | V12: =INDEX(_xlfn._xlws.FILTER(tblAnforderungen[Max],(tblAnforderungen[Tierart]=$B$1)*(tblAnforderungen[Phase]=$B$2)*(tblAnforderungen[Parameter]="Pverd_gkg")),1) -> 4.94 | W12: FALSE
B13: 0 | C13: Maisklebermehl | D13: Getreidenebenprodukt | E13: 0.65 | F13: TRUE | G13: 12 | H13: 600 | I13: 12 | J13: 18 | K13: 22 | L13: 60 | M13: 20 | N13: 0.3 | O13: 4 | P13: 0.3 | S13: Ist_Na_gkg | T13: =SUMPRODUCT(B6:INDEX(B:B,ROW(C6)+ROWS(_xlfn.ANCHORARRAY(C6))-1),INDEX(_xlfn.ANCHORARRAY(C6),,14))/1000 -> 0.09185564493 | U13: =INDEX(_xlfn._xlws.FILTER(tblAnforderungen[Min],(tblAnforderungen[Tierart]=$B$1)*(tblAnforderungen[Phase]=$B$2)*(tblAnforderungen[Parameter]="Na_gkg")),1) -> 1.4 | V13: =INDEX(_xlfn._xlws.FILTER(tblAnforderungen[Max],(tblAnforderungen[Tierart]=$B$1)*(tblAnforderungen[Phase]=$B$2)*(tblAnforderungen[Parameter]="Na_gkg")),1) -> 1.7 | W13: FALSE
B14: 0 | C14: Weizenkleie | D14: Getreidenebenprodukt | E14: 0.21 | F14: TRUE | G14: 9 | H14: 160 | I14: 5 | J14: 2.2 | K14: 4.5 | L14: 45 | M14: 110 | N14: 1.3 | O14: 3 | P14: 0.3
B15: 0 | C15: Weizenschrot | D15: Getreide | E15: 0.22 | F15: TRUE | G15: 13 | H15: 120 | I15: 3.5 | J15: 2 | K15: 3.7 | L15: 20 | M15: 30 | N15: 0.6 | O15: 2.5 | P15: 0.1
B16: 0 | C16: Gerstenschrot | D16: Getreide | E16: 0.21 | F16: TRUE | G16: 12.8 | H16: 110 | I16: 4 | J16: 1.9 | K16: 3.6 | L16: 25 | M16: 50 | N16: 0.6 | O16: 2.3 | P16: 0.1
B17: 0 | C17: Sojaschrot 48 | D17: Eiweißträger | E17: 0.4 | F17: TRUE | G17: 12 | H17: 480 | I17: 28 | J17: 6 | K17: 11 | L17: 10 | M17: 35 | N17: 3 | O17: 2.5 | P17: 0.1
B18: 0 | C18: Sojaschrot 44 | D18: Eiweißträger | E18: 0.37 | F18: TRUE | G18: 11.5 | H18: 440 | I18: 25 | J18: 5.5 | K18: 10 | L18: 15 | M18: 55 | N18: 3 | O18: 2.3 | P18: 0.1
B19: 50.053928 | C19: Rapskuchen | D19: Eiweißträger | E19: 0.29 | F19: TRUE | G19: 11 | H19: 340 | I19: 20 | J19: 6.5 | K19: 12 | L19: 80 | M19: 120 | N19: 7 | O19: 4 | P19: 0.5
B20: 0 | C20: Rapsschrot | D20: Eiweißträger | E20: 0.26 | F20: TRUE | G20: 10.5 | H20: 360 | I20: 21 | J20: 7 | K20: 13 | L20: 35 | M20: 120 | N20: 7 | O20: 4 | P20: 0.5
B21: 0 | C21: Ackerbohnen | D21: Eiweißträger | E21: 0.32 | F21: TRUE | G21: 12 | H21: 260 | I21: 18 | J21: 2.3 | K21: 4.8 | L21: 15 | M21: 70 | N21: 2 | O21: 2.3 | P21: 0.1
B22: 0 | C22: Erbsen | D22: Eiweißträger | E22: 0.3 | F22: TRUE | G22: 12.5 | H22: 230 | I22: 17 | J22: 2 | K22: 4.3 | L22: 15 | M22: 60 | N22: 1.5 | O22: 2.1 | P22: 0.1
B23: 0 | C23: Lupinen weiß | D23: Eiweißträger | E23: 0.38 | F23: TRUE | G23: 11 | H23: 360 | I23: 21 | J23: 3.5 | K23: 6.5 | L23: 60 | M23: 150 | N23: 2.5 | O23: 2.5 | P23: 0.1
B24: 0 | C24: Lupinen blau | D24: Eiweißträger | E24: 0.36 | F24: TRUE | G24: 10.5 | H24: 340 | I24: 20 | J24: 3.5 | K24: 6.5 | L24: 55 | M24: 160 | N24: 2.5 | O24: 2.5 | P24: 0.1
B25: 0 | C25: Geflügelproteinmehl | D25: Tierisches Protein | E25: 1.2 | F25: TRUE | G25: 12 | H25: 600 | I25: 40 | J25: 12 | K25: 22 | L25: 120 | M25: 0 | N25: 50 | O25: 30 | P25: 30
B26: 0 | C26: Pflanzenöl | D26: Öl/Fett | E26: 1.2 | F26: TRUE | G26: 35 | H26: 0 | I26: 0 | J26: 0 | K26: 0 | L26: 1000 | M26: 0 | N26: 0 | O26: 0 | P26: 0
B27: 0 | C27: Rapsöl | D27: Öl/Fett | E27: 1.1 | F27: TRUE | G27: 35 | H27: 0 | I27: 0 | J27: 0 | K27: 0 | L27: 1000 | M27: 0 | N27: 0 | O27: 0 | P27: 0
B28: 0 | C28: Sojaöl | D28: Öl/Fett | E28: 1.15 | F28: TRUE | G28: 35 | H28: 0 | I28: 0 | J28: 0 | K28: 0 | L28: 1000 | M28: 0 | N28: 0 | O28: 0 | P28: 0
B29: 0 | C29: Melasse | D29: Nebenprodukt Energie | E29: 0.22 | F29: TRUE | G29: 11.5 | H29: 60 | I29: 2 | J29: 1 | K29: 2 | L29: 5 | M29: 0 | N29: 7 | O29: 0.5 | P29: 5
B30: 0 | C30: Bierhefe | D30: Nebenprodukt Eiweiß | E30: 0.65 | F30: TRUE | G30: 11.5 | H30: 450 | I30: 28 | J30: 6 | K30: 11 | L30: 15 | M30: 50 | N30: 3 | O30: 3 | P30: 3
B31: 0 | C31: Kartoffelprotein | D31: Nebenprodukt Eiweiß | E31: 0.75 | F31: TRUE | G31: 10.5 | H31: 780 | I31: 60 | J31: 18 | K31: 30 | L31: 5 | M31: 20 | N31: 2 | O31: 3 | P31: 5
B32: 0 | C32: Weizen-DDGS | D32: DDGS | E32: 0.27 | F32: TRUE | G32: 11.5 | H32: 320 | I32: 11 | J32: 6 | K32: 10 | L32: 60 | M32: 120 | N32: 2.5 | O32: 4 | P32: 3
B33: 236.8115545 | C33: Kalkstein | D33: Mineral | E33: 0.09 | F33: TRUE | G33: 0 | H33: 0 | I33: 0 | J33: 0 | K33: 0 | L33: 0 | M33: 0 | N33: 380 | O33: 0 | P33: 0
B34: 11.47760428 | C34: Monocalciumphosphat (MCP) | D34: Mineral | E34: 0.58 | F34: TRUE | G34: 0 | H34: 0 | I34: 0 | J34: 0 | K34: 0 | L34: 0 | M34: 0 | N34: 170 | O34: 220 | P34: 0
B35: 5.070356402 | C35: Dicalciumphosphat (DCP) | D35: Mineral | E35: 0.52 | F35: TRUE | G35: 0 | H35: 0 | I35: 0 | J35: 0 | K35: 0 | L35: 0 | M35: 0 | N35: 220 | O35: 180 | P35: 0
B36: 0 | C36: Dinatriumphosphat | D36: Mineral | E36: 1.6 | F36: TRUE | G36: 0 | H36: 0 | I36: 0 | J36: 0 | K36: 0 | L36: 0 | M36: 0 | N36: 0 | O36: 190 | P36: 190
B37: 0 | C37: Natriumchlorid (Salz) | D37: Mineral | E37: 0.12 | F37: TRUE | G37: 0 | H37: 0 | I37: 0 | J37: 0 | K37: 0 | L37: 0 | M37: 0 | N37: 0 | O37: 0 | P37: 390
B38: 1.532588953 | C38: Magnesiumoxid | D38: Mineral | E38: 0.95 | F38: TRUE | G38: 0 | H38: 0 | I38: 0 | J38: 0 | K38: 0 | L38: 0 | M38: 0 | N38: 0 | O38: 0 | P38: 0
B39: 0 | C39: L-Lysin | D39: Aminosäure | E39: 2.1 | F39: TRUE | G39: 12 | H39: 780 | I39: 780 | J39: 0 | K39: 0 | L39: 0 | M39: 0 | N39: 0 | O39: 0 | P39: 0
B40: 6.416585359 | C40: DL-Methionin | D40: Aminosäure | E40: 3.2 | F40: TRUE | G40: 12 | H40: 600 | I40: 0 | J40: 600 | K40: 600 | L40: 0 | M40: 0 | N40: 0 | O40: 0 | P40: 0
B41: 10.04306153 | C41: L-Threonin | D41: Aminosäure | E41: 2.8 | F41: TRUE | G41: 12 | H41: 780 | I41: 0 | J41: 0 | K41: 0 | L41: 0 | M41: 0 | N41: 0 | O41: 0 | P41: 0
B42: 0 | C42: L-Tryptophan | D42: Aminosäure | E42: 9 | F42: TRUE | G42: 12 | H42: 780 | I42: 0 | J42: 0 | K42: 0 | L42: 0 | M42: 0 | N42: 0 | O42: 0 | P42: 0
B43: 0 | C43: Arginin | D43: Aminosäure | E43: 6 | F43: TRUE | G43: 12 | H43: 780 | I43: 0 | J43: 0 | K43: 0 | L43: 0 | M43: 0 | N43: 0 | O43: 0 | P43: 0
B44: 0 | C44: Geflügel-Premix | D44: Premix | E44: 1.6 | F44: TRUE | G44: 0 | H44: 0 | I44: 0 | J44: 0 | K44: 0 | L44: 0 | M44: 0 | N44: 0 | O44: 0 | P44: 0
B45: 0 | C45: Puten-Premix | D45: Premix | E45: 1.7 | F45: TRUE | G45: 0 | H45: 0 | I45: 0 | J45: 0 | K45: 0 | L45: 0 | M45: 0 | N45: 0 | O45: 0 | P45: 0
B46: 0 | C46: Broiler-Premix | D46: Premix | E46: 1.7 | F46: TRUE | G46: 0 | H46: 0 | I46: 0 | J46: 0 | K46: 0 | L46: 0 | M46: 0 | N46: 0 | O46: 0 | P46: 0
B47: 0 | C47: Legehennen-Premix | D47: Premix | E47: 1.5 | F47: TRUE | G47: 0 | H47: 0 | I47: 0 | J47: 0 | K47: 0 | L47: 0 | M47: 0 | N47: 0 | O47: 0 | P47: 0
B48: 0 | C48: Sauen-Premix | D48: Premix | E48: 1.4 | F48: TRUE | G48: 0 | H48: 0 | I48: 0 | J48: 0 | K48: 0 | L48: 0 | M48: 0 | N48: 0 | O48: 0 | P48: 0
B49: 0 | C49: Enzym-Mix | D49: Zusatzstoff | E49: 12 | F49: TRUE | G49: 0 | H49: 0 | I49: 0 | J49: 0 | K49: 0 | L49: 0 | M49: 0 | N49: 0 | O49: 0 | P49: 0
B50: 0 | C50: Kokzidiostatikum | D50: Zusatzstoff | E50: 15 | F50: TRUE | G50: 0 | H50: 0 | I50: 0 | J50: 0 | K50: 0 | L50: 0 | M50: 0 | N50: 0 | O50: 0 | P50: 0
B51: 0 | C51: Buttersäuresalz | D51: Zusatzstoff | E51: 2.5 | F51: TRUE | G51: 0 | H51: 0 | I51: 0 | J51: 0 | K51: 0 | L51: 0 | M51: 0 | N51: 0 | O51: 0 | P51: 0
B52: 0 | C52: Organische Säuren | D52: Zusatzstoff | E52: 1.4 | F52: TRUE | G52: 0 | H52: 0 | I52: 0 | J52: 0 | K52: 0 | L52: 0 | M52: 0 | N52: 0 | O52: 0 | P52: 0
B53: 0
B54: 0 | E54: 0
B55: 0 | E55: 0
B56: 0 | E56: 0
B57: 0 | E57: 0
B58: 0 | E58: 0
B59: 0 | E59: 0
B60: 0 | E60: 0
B61: 0 | E61: 0
B62: 0 | E62: 0
B63: 0 | E63: 0
B64: 0 | E64: 0
B65: 0 | E65: 0
B66: 0 | E66: 0
B67: 0 | E67: 0
B68: 0 | E68: 0
B69: 0 | E69: 0
B70: 0 | E70: 0
B71: 0 | E71: 0
B72: 0 | E72: 0
B73: 0 | E73: 0
B74: 0 | E74: 0
B75: 0 | E75: 0
B76: 0 | E76: 0
B77: 0 | E77: 0
B78: 0 | E78: 0
B79: 0 | E79: 0
B80: 0 | E80: 0
B81: 0 | E81: 0
B82: 0 | E82: 0
B83: 0 | E83: 0
B84: 0 | E84: 0
B85: 0 | E85: 0
B86: 0 | E86: 0
B87: 0 | E87: 0
B88: 0 | E88: 0
B89: 0 | E89: 0
B90: 0 | E90: 0
B91: 0 | E91: 0
B92: 0 | E92: 0
B93: 0 | E93: 0
B94: 0 | E94: 0
B95: 0 | E95: 0
B96: 0 | E96: 0
B97: 0 | E97: 0
B98: 0 | E98: 0
B99: 0 | E99: 0
B100: 10.30751165 | E100: 0
